Department Family,Entity,Date,Expense Type,Expense Area,Supplier,Transaction Number,Amount,Item Description
BEIS,UKRI - AHRC,03/01/2020,Health & Safety (inc. Medicals & Opticians),HR,Swindon Occupational Medical Services Ltd,98664860,350.00,Health & Safety (inc. Medicals & Opticians)
BEIS,UKRI - AHRC,03/01/2020,Mechanical & Electrical Maintenance,Operations,Premier Farnell UK Ltd T/A Farnell Onecall,98666183,6.06,Mechanical & Electrical Maintenance
BEIS,UKRI - AHRC,03/01/2020,Contract Staff,PSU JRS,Alexander Mann Solutions Ltd,98666719,3423.12,Contract Staff
BEIS,UKRI - AHRC,03/01/2020,Printing & Stationery,Operations,Banner Group Ltd,98667203,5.40,Printing & Stationery
BEIS,UKRI - AHRC,03/01/2020,Printing & Stationery,Operations,Banner Group Ltd,98667203,10.92,Printing & Stationery
BEIS,UKRI - AHRC,03/01/2020,T&S UK - Public Transport,International Partnership and Engagement,Unspecified,98667811,9.80,T&S UK - Public Transport
BEIS,UKRI - AHRC,03/01/2020,T&S UK - Subsistence,International Partnership and Engagement,Unspecified,98667811,20.66,T&S UK - Subsistence
BEIS,UKRI - AHRC,03/01/2020,T&S UK - Subsistence,International Partnership and Engagement,Unspecified,98667811,10.00,T&S UK - Subsistence
BEIS,UKRI - AHRC,06/01/2020,Non-staff travel and subsistance,Operations,Corporate Travel Management (North) Ltd,98666804,0.80,Non-staff travel and subsistance
BEIS,UKRI - AHRC,06/01/2020,Non-staff travel and subsistance,Operations,Corporate Travel Management (North) Ltd,98666804,75.00,Non-staff travel and subsistance
BEIS,UKRI - AHRC,06/01/2020,Non-staff travel and subsistance,Operations,Corporate Travel Management (North) Ltd,98666804,0.80,Non-staff travel and subsistance
BEIS,UKRI - AHRC,06/01/2020,Non-staff travel and subsistance,Operations,Corporate Travel Management (North) Ltd,98666804,75.00,Non-staff travel and subsistance
BEIS,UKRI - AHRC,06/01/2020,Non-staff travel and subsistance,Operations,Corporate Travel Management (North) Ltd,98666804,0.80,Non-staff travel and subsistance
BEIS,UKRI - AHRC,06/01/2020,Non-staff travel and subsistance,Operations,Corporate Travel Management (North) Ltd,98666804,75.00,Non-staff travel and subsistance
BEIS,UKRI - AHRC,06/01/2020,Non-staff travel and subsistance,Operations,Corporate Travel Management (North) Ltd,98666804,0.80,Non-staff travel and subsistance
BEIS,UKRI - AHRC,06/01/2020,Non-staff travel and subsistance,Operations,Corporate Travel Management (North) Ltd,98666804,75.00,Non-staff travel and subsistance
BEIS,UKRI - AHRC,06/01/2020,Non-staff travel and subsistance,Operations,Corporate Travel Management (North) Ltd,98666804,0.64,Non-staff travel and subsistance
BEIS,UKRI - AHRC,06/01/2020,T&S Overseas - Accommodation,SMT,Corporate Travel Management (North) Ltd,98666804,0.80,T&S Overseas - Accommodation
BEIS,UKRI - AHRC,06/01/2020,T&S Overseas - Accommodation,SMT,Corporate Travel Management (North) Ltd,98666804,109.00,T&S Overseas - Accommodation
BEIS,UKRI - AHRC,06/01/2020,T&S Overseas - Accommodation,SMT,Corporate Travel Management (North) Ltd,98666804,0.16,T&S Overseas - Accommodation
BEIS,UKRI - AHRC,06/01/2020,T&S Overseas - Flights,GCRF - Programme Delivery,Corporate Travel Management (North) Ltd,98666804,2.50,T&S Overseas - Flights
BEIS,UKRI - AHRC,06/01/2020,T&S Overseas - Flights,GCRF - Programme Delivery,Corporate Travel Management (North) Ltd,98666804,332.74,T&S Overseas - Flights
BEIS,UKRI - AHRC,06/01/2020,T&S UK - Accommodation,Digital Arts and Humanities and Creative Industries,Corporate Travel Management (North) Ltd,98666804,0.80,T&S UK - Accommodation
BEIS,UKRI - AHRC,06/01/2020,T&S UK - Accommodation,Digital Arts and Humanities and Creative Industries,Corporate Travel Management (North) Ltd,98666804,158.00,T&S UK - Accommodation
BEIS,UKRI - AHRC,06/01/2020,T&S UK - Accommodation,Digital Arts and Humanities and Creative Industries,Corporate Travel Management (North) Ltd,98666804,0.80,T&S UK - Accommodation
BEIS,UKRI - AHRC,06/01/2020,T&S UK - Accommodation,Digital Arts and Humanities and Creative Industries,Corporate Travel Management (North) Ltd,98666804,68.06,T&S UK - Accommodation
BEIS,UKRI - AHRC,06/01/2020,T&S UK - Accommodation,Digital Arts and Humanities and Creative Industries,Corporate Travel Management (North) Ltd,98666804,0.32,T&S UK - Accommodation
BEIS,UKRI - AHRC,06/01/2020,T&S UK - Accommodation,FIC- US,Corporate Travel Management (North) Ltd,98666804,0.80,T&S UK - Accommodation
BEIS,UKRI - AHRC,06/01/2020,T&S UK - Accommodation,FIC- US,Corporate Travel Management (North) Ltd,98666804,150.00,T&S UK - Accommodation
BEIS,UKRI - AHRC,06/01/2020,T&S UK - Accommodation,FIC- US,Corporate Travel Management (North) Ltd,98666804,0.80,T&S UK - Accommodation
BEIS,UKRI - AHRC,06/01/2020,T&S UK - Accommodation,FIC- US,Corporate Travel Management (North) Ltd,98666804,150.00,T&S UK - Accommodation
BEIS,UKRI - AHRC,06/01/2020,T&S UK - Accommodation,FIC- US,Corporate Travel Management (North) Ltd,98666804,0.80,T&S UK - Accommodation
BEIS,UKRI - AHRC,06/01/2020,T&S UK - Accommodation,FIC- US,Corporate Travel Management (North) Ltd,98666804,150.00,T&S UK - Accommodation
BEIS,UKRI - AHRC,06/01/2020,T&S UK - Accommodation,FIC- US,Corporate Travel Management (North) Ltd,98666804,0.80,T&S UK - Accommodation
BEIS,UKRI - AHRC,06/01/2020,T&S UK - Accommodation,FIC- US,Corporate Travel Management (North) Ltd,98666804,256.00,T&S UK - Accommodation
BEIS,UKRI - AHRC,06/01/2020,T&S UK - Accommodation,FIC- US,Corporate Travel Management (North) Ltd,98666804,0.80,T&S UK - Accommodation
BEIS,UKRI - AHRC,06/01/2020,T&S UK - Accommodation,FIC- US,Corporate Travel Management (North) Ltd,98666804,150.00,T&S UK - Accommodation
BEIS,UKRI - AHRC,06/01/2020,T&S UK - Accommodation,FIC- US,Corporate Travel Management (North) Ltd,98666804,0.80,T&S UK - Accommodation
BEIS,UKRI - AHRC,06/01/2020,T&S UK - Accommodation,FIC- US,Corporate Travel Management (North) Ltd,98666804,150.00,T&S UK - Accommodation
BEIS,UKRI - AHRC,06/01/2020,T&S UK - Accommodation,FIC- US,Corporate Travel Management (North) Ltd,98666804,0.80,T&S UK - Accommodation
BEIS,UKRI - AHRC,06/01/2020,T&S UK - Accommodation,FIC- US,Corporate Travel Management (North) Ltd,98666804,241.00,T&S UK - Accommodation
BEIS,UKRI - AHRC,06/01/2020,T&S UK - Accommodation,FIC- US,Corporate Travel Management (North) Ltd,98666804,0.80,T&S UK - Accommodation
BEIS,UKRI - AHRC,06/01/2020,T&S UK - Accommodation,FIC- US,Corporate Travel Management (North) Ltd,98666804,150.00,T&S UK - Accommodation
BEIS,UKRI - AHRC,06/01/2020,T&S UK - Accommodation,FIC- US,Corporate Travel Management (North) Ltd,98666804,1.28,T&S UK - Accommodation
BEIS,UKRI - AHRC,06/01/2020,T&S UK - Accommodation,GCRF - Programme Delivery,Corporate Travel Management (North) Ltd,98666804,0.80,T&S UK - Accommodation
BEIS,UKRI - AHRC,06/01/2020,T&S UK - Accommodation,GCRF - Programme Delivery,Corporate Travel Management (North) Ltd,98666804,225.00,T&S UK - Accommodation
BEIS,UKRI - AHRC,06/01/2020,T&S UK - Accommodation,GCRF - Programme Delivery,Corporate Travel Management (North) Ltd,98666804,0.80,T&S UK - Accommodation
BEIS,UKRI - AHRC,06/01/2020,T&S UK - Accommodation,GCRF - Programme Delivery,Corporate Travel Management (North) Ltd,98666804,150.00,T&S UK - Accommodation
BEIS,UKRI - AHRC,06/01/2020,T&S UK - Accommodation,GCRF - Programme Delivery,Corporate Travel Management (North) Ltd,98666804,0.80,T&S UK - Accommodation
BEIS,UKRI - AHRC,06/01/2020,T&S UK - Accommodation,GCRF - Programme Delivery,Corporate Travel Management (North) Ltd,98666804,150.00,T&S UK - Accommodation
BEIS,UKRI - AHRC,06/01/2020,T&S UK - Accommodation,GCRF - Programme Delivery,Corporate Travel Management (North) Ltd,98666804,0.80,T&S UK - Accommodation
BEIS,UKRI - AHRC,06/01/2020,T&S UK - Accommodation,GCRF - Programme Delivery,Corporate Travel Management (North) Ltd,98666804,150.00,T&S UK - Accommodation
BEIS,UKRI - AHRC,06/01/2020,T&S UK - Accommodation,GCRF - Programme Delivery,Corporate Travel Management (North) Ltd,98666804,0.80,T&S UK - Accommodation
BEIS,UKRI - AHRC,06/01/2020,T&S UK - Accommodation,GCRF - Programme Delivery,Corporate Travel Management (North) Ltd,98666804,118.90,T&S UK - Accommodation
BEIS,UKRI - AHRC,06/01/2020,T&S UK - Accommodation,GCRF - Programme Delivery,Corporate Travel Management (North) Ltd,98666804,0.80,T&S UK - Accommodation
BEIS,UKRI - AHRC,06/01/2020,T&S UK - Accommodation,GCRF - Programme Delivery,Corporate Travel Management (North) Ltd,98666804,115.00,T&S UK - Accommodation
BEIS,UKRI - AHRC,06/01/2020,T&S UK - Accommodation,GCRF - Programme Delivery,Corporate Travel Management (North) Ltd,98666804,0.80,T&S UK - Accommodation
BEIS,UKRI - AHRC,06/01/2020,T&S UK - Accommodation,GCRF - Programme Delivery,Corporate Travel Management (North) Ltd,98666804,62.10,T&S UK - Accommodation
BEIS,UKRI - AHRC,06/01/2020,T&S UK - Accommodation,GCRF - Programme Delivery,Corporate Travel Management (North) Ltd,98666804,0.80,T&S UK - Accommodation
BEIS,UKRI - AHRC,06/01/2020,T&S UK - Accommodation,GCRF - Programme Delivery,Corporate Travel Management (North) Ltd,98666804,57.60,T&S UK - Accommodation
BEIS,UKRI - AHRC,06/01/2020,T&S UK - Accommodation,GCRF - Programme Delivery,Corporate Travel Management (North) Ltd,98666804,0.80,T&S UK - Accommodation
BEIS,UKRI - AHRC,06/01/2020,T&S UK - Accommodation,GCRF - Programme Delivery,Corporate Travel Management (North) Ltd,98666804,225.00,T&S UK - Accommodation
BEIS,UKRI - AHRC,06/01/2020,T&S UK - Accommodation,GCRF - Programme Delivery,Corporate Travel Management (North) Ltd,98666804,0.80,T&S UK - Accommodation
BEIS,UKRI - AHRC,06/01/2020,T&S UK - Accommodation,GCRF - Programme Delivery,Corporate Travel Management (North) Ltd,98666804,150.00,T&S UK - Accommodation
BEIS,UKRI - AHRC,06/01/2020,T&S UK - Accommodation,GCRF - Programme Delivery,Corporate Travel Management (North) Ltd,98666804,0.80,T&S UK - Accommodation
BEIS,UKRI - AHRC,06/01/2020,T&S UK - Accommodation,GCRF - Programme Delivery,Corporate Travel Management (North) Ltd,98666804,150.00,T&S UK - Accommodation
BEIS,UKRI - AHRC,06/01/2020,T&S UK - Accommodation,GCRF - Programme Delivery,Corporate Travel Management (North) Ltd,98666804,0.80,T&S UK - Accommodation
BEIS,UKRI - AHRC,06/01/2020,T&S UK - Accommodation,GCRF - Programme Delivery,Corporate Travel Management (North) Ltd,98666804,75.00,T&S UK - Accommodation
BEIS,UKRI - AHRC,06/01/2020,T&S UK - Accommodation,GCRF - Programme Delivery,Corporate Travel Management (North) Ltd,98666804,0.80,T&S UK - Accommodation
BEIS,UKRI - AHRC,06/01/2020,T&S UK - Accommodation,GCRF - Programme Delivery,Corporate Travel Management (North) Ltd,98666804,75.00,T&S UK - Accommodation
BEIS,UKRI - AHRC,06/01/2020,T&S UK - Accommodation,GCRF - Programme Delivery,Corporate Travel Management (North) Ltd,98666804,0.80,T&S UK - Accommodation
BEIS,UKRI - AHRC,06/01/2020,T&S UK - Accommodation,GCRF - Programme Delivery,Corporate Travel Management (North) Ltd,98666804,58.50,T&S UK - Accommodation
BEIS,UKRI - AHRC,06/01/2020,T&S UK - Accommodation,GCRF - Programme Delivery,Corporate Travel Management (North) Ltd,98666804,2.24,T&S UK - Accommodation
BEIS,UKRI - AHRC,06/01/2020,T&S UK - Accommodation,"History, Heritage, Languages and Literature",Corporate Travel Management (North) Ltd,98666804,0.80,T&S UK - Accommodation
BEIS,UKRI - AHRC,06/01/2020,T&S UK - Accommodation,"History, Heritage, Languages and Literature",Corporate Travel Management (North) Ltd,98666804,75.00,T&S UK - Accommodation
BEIS,UKRI - AHRC,06/01/2020,T&S UK - Accommodation,"History, Heritage, Languages and Literature",Corporate Travel Management (North) Ltd,98666804,0.80,T&S UK - Accommodation
BEIS,UKRI - AHRC,06/01/2020,T&S UK - Accommodation,"History, Heritage, Languages and Literature",Corporate Travel Management (North) Ltd,98666804,75.00,T&S UK - Accommodation
BEIS,UKRI - AHRC,06/01/2020,T&S UK - Accommodation,"History, Heritage, Languages and Literature",Corporate Travel Management (North) Ltd,98666804,0.80,T&S UK - Accommodation
BEIS,UKRI - AHRC,06/01/2020,T&S UK - Accommodation,"History, Heritage, Languages and Literature",Corporate Travel Management (North) Ltd,98666804,75.00,T&S UK - Accommodation
BEIS,UKRI - AHRC,06/01/2020,T&S UK - Accommodation,"History, Heritage, Languages and Literature",Corporate Travel Management (North) Ltd,98666804,0.80,T&S UK - Accommodation
BEIS,UKRI - AHRC,06/01/2020,T&S UK - Accommodation,"History, Heritage, Languages and Literature",Corporate Travel Management (North) Ltd,98666804,75.00,T&S UK - Accommodation
BEIS,UKRI - AHRC,06/01/2020,T&S UK - Accommodation,"History, Heritage, Languages and Literature",Corporate Travel Management (North) Ltd,98666804,0.80,T&S UK - Accommodation
BEIS,UKRI - AHRC,06/01/2020,T&S UK - Accommodation,"History, Heritage, Languages and Literature",Corporate Travel Management (North) Ltd,98666804,75.00,T&S UK - Accommodation
BEIS,UKRI - AHRC,06/01/2020,T&S UK - Accommodation,"History, Heritage, Languages and Literature",Corporate Travel Management (North) Ltd,98666804,0.80,T&S UK - Accommodation
BEIS,UKRI - AHRC,06/01/2020,T&S UK - Accommodation,"History, Heritage, Languages and Literature",Corporate Travel Management (North) Ltd,98666804,75.00,T&S UK - Accommodation
BEIS,UKRI - AHRC,06/01/2020,T&S UK - Accommodation,"History, Heritage, Languages and Literature",Corporate Travel Management (North) Ltd,98666804,0.96,T&S UK - Accommodation
BEIS,UKRI - AHRC,06/01/2020,T&S UK - Accommodation,International,Corporate Travel Management (North) Ltd,98666804,0.80,T&S UK - Accommodation
BEIS,UKRI - AHRC,06/01/2020,T&S UK - Accommodation,International,Corporate Travel Management (North) Ltd,98666804,150.00,T&S UK - Accommodation
BEIS,UKRI - AHRC,06/01/2020,T&S UK - Accommodation,International,Corporate Travel Management (North) Ltd,98666804,0.80,T&S UK - Accommodation
BEIS,UKRI - AHRC,06/01/2020,T&S UK - Accommodation,International,Corporate Travel Management (North) Ltd,98666804,83.00,T&S UK - Accommodation
BEIS,UKRI - AHRC,06/01/2020,T&S UK - Accommodation,International,Corporate Travel Management (North) Ltd,98666804,0.80,T&S UK - Accommodation
BEIS,UKRI - AHRC,06/01/2020,T&S UK - Accommodation,International,Corporate Travel Management (North) Ltd,98666804,150.00,T&S UK - Accommodation
BEIS,UKRI - AHRC,06/01/2020,T&S UK - Accommodation,International,Corporate Travel Management (North) Ltd,98666804,0.80,T&S UK - Accommodation
BEIS,UKRI - AHRC,06/01/2020,T&S UK - Accommodation,International,Corporate Travel Management (North) Ltd,98666804,150.00,T&S UK - Accommodation
BEIS,UKRI - AHRC,06/01/2020,T&S UK - Accommodation,International,Corporate Travel Management (North) Ltd,98666804,0.80,T&S UK - Accommodation
BEIS,UKRI - AHRC,06/01/2020,T&S UK - Accommodation,International,Corporate Travel Management (North) Ltd,98666804,225.00,T&S UK - Accommodation
BEIS,UKRI - AHRC,06/01/2020,T&S UK - Accommodation,International,Corporate Travel Management (North) Ltd,98666804,0.80,T&S UK - Accommodation
BEIS,UKRI - AHRC,06/01/2020,T&S UK - Accommodation,International,Corporate Travel Management (North) Ltd,98666804,75.00,T&S UK - Accommodation
BEIS,UKRI - AHRC,06/01/2020,T&S UK - Accommodation,International,Corporate Travel Management (North) Ltd,98666804,0.80,T&S UK - Accommodation
BEIS,UKRI - AHRC,06/01/2020,T&S UK - Accommodation,International,Corporate Travel Management (North) Ltd,98666804,61.00,T&S UK - Accommodation
BEIS,UKRI - AHRC,06/01/2020,T&S UK - Accommodation,International,Corporate Travel Management (North) Ltd,98666804,0.80,T&S UK - Accommodation
BEIS,UKRI - AHRC,06/01/2020,T&S UK - Accommodation,International,Corporate Travel Management (North) Ltd,98666804,75.00,T&S UK - Accommodation
BEIS,UKRI - AHRC,06/01/2020,T&S UK - Accommodation,International,Corporate Travel Management (North) Ltd,98666804,0.80,T&S UK - Accommodation
BEIS,UKRI - AHRC,06/01/2020,T&S UK - Accommodation,International,Corporate Travel Management (North) Ltd,98666804,75.00,T&S UK - Accommodation
BEIS,UKRI - AHRC,06/01/2020,T&S UK - Accommodation,International,Corporate Travel Management (North) Ltd,98666804,0.80,T&S UK - Accommodation
BEIS,UKRI - AHRC,06/01/2020,T&S UK - Accommodation,International,Corporate Travel Management (North) Ltd,98666804,98.10,T&S UK - Accommodation
BEIS,UKRI - AHRC,06/01/2020,T&S UK - Accommodation,International,Corporate Travel Management (North) Ltd,98666804,0.80,T&S UK - Accommodation
BEIS,UKRI - AHRC,06/01/2020,T&S UK - Accommodation,International,Corporate Travel Management (North) Ltd,98666804,145.00,T&S UK - Accommodation
BEIS,UKRI - AHRC,06/01/2020,T&S UK - Accommodation,International,Corporate Travel Management (North) Ltd,98666804,1.76,T&S UK - Accommodation
BEIS,UKRI - AHRC,06/01/2020,T&S UK - Accommodation,Newton Programme Delivery,Corporate Travel Management (North) Ltd,98666804,0.50,T&S UK - Accommodation
BEIS,UKRI - AHRC,06/01/2020,T&S UK - Accommodation,Newton Programme Delivery,Corporate Travel Management (North) Ltd,98666804,1.44,T&S UK - Accommodation
BEIS,UKRI - AHRC,06/01/2020,T&S UK - Accommodation,Newton Programme Delivery,Corporate Travel Management (North) Ltd,98666804,2520.00,T&S UK - Accommodation
BEIS,UKRI - AHRC,06/01/2020,T&S UK - Accommodation,Newton Programme Delivery,Corporate Travel Management (North) Ltd,98666804,0.39,T&S UK - Accommodation
BEIS,UKRI - AHRC,06/01/2020,T&S UK - Accommodation,Operations,Corporate Travel Management (North) Ltd,98666804,0.80,T&S UK - Accommodation
BEIS,UKRI - AHRC,06/01/2020,T&S UK - Accommodation,Operations,Corporate Travel Management (North) Ltd,98666804,69.00,T&S UK - Accommodation
BEIS,UKRI - AHRC,06/01/2020,T&S UK - Accommodation,Operations,Corporate Travel Management (North) Ltd,98666804,0.80,T&S UK - Accommodation
BEIS,UKRI - AHRC,06/01/2020,T&S UK - Accommodation,Operations,Corporate Travel Management (North) Ltd,98666804,69.00,T&S UK - Accommodation
BEIS,UKRI - AHRC,06/01/2020,T&S UK - Accommodation,Operations,Corporate Travel Management (North) Ltd,98666804,0.80,T&S UK - Accommodation
BEIS,UKRI - AHRC,06/01/2020,T&S UK - Accommodation,Operations,Corporate Travel Management (North) Ltd,98666804,69.00,T&S UK - Accommodation
BEIS,UKRI - AHRC,06/01/2020,T&S UK - Accommodation,Operations,Corporate Travel Management (North) Ltd,98666804,0.80,T&S UK - Accommodation
BEIS,UKRI - AHRC,06/01/2020,T&S UK - Accommodation,Operations,Corporate Travel Management (North) Ltd,98666804,69.00,T&S UK - Accommodation
BEIS,UKRI - AHRC,06/01/2020,T&S UK - Accommodation,Operations,Corporate Travel Management (North) Ltd,98666804,0.80,T&S UK - Accommodation
BEIS,UKRI - AHRC,06/01/2020,T&S UK - Accommodation,Operations,Corporate Travel Management (North) Ltd,98666804,69.00,T&S UK - Accommodation
BEIS,UKRI - AHRC,06/01/2020,T&S UK - Accommodation,Operations,Corporate Travel Management (North) Ltd,98666804,0.80,T&S UK - Accommodation
BEIS,UKRI - AHRC,06/01/2020,T&S UK - Accommodation,Operations,Corporate Travel Management (North) Ltd,98666804,69.00,T&S UK - Accommodation
BEIS,UKRI - AHRC,06/01/2020,T&S UK - Accommodation,Operations,Corporate Travel Management (North) Ltd,98666804,0.80,T&S UK - Accommodation
BEIS,UKRI - AHRC,06/01/2020,T&S UK - Accommodation,Operations,Corporate Travel Management (North) Ltd,98666804,83.00,T&S UK - Accommodation
BEIS,UKRI - AHRC,06/01/2020,T&S UK - Accommodation,Operations,Corporate Travel Management (North) Ltd,98666804,0.80,T&S UK - Accommodation
BEIS,UKRI - AHRC,06/01/2020,T&S UK - Accommodation,Operations,Corporate Travel Management (North) Ltd,98666804,125.10,T&S UK - Accommodation
BEIS,UKRI - AHRC,06/01/2020,T&S UK - Accommodation,Operations,Corporate Travel Management (North) Ltd,98666804,2.00,T&S UK - Accommodation
BEIS,UKRI - AHRC,06/01/2020,T&S UK - Accommodation,Operations,Corporate Travel Management (North) Ltd,98666804,145.00,T&S UK - Accommodation
BEIS,UKRI - AHRC,06/01/2020,T&S UK - Accommodation,Operations,Corporate Travel Management (North) Ltd,98666804,0.80,T&S UK - Accommodation
BEIS,UKRI - AHRC,06/01/2020,T&S UK - Accommodation,Operations,Corporate Travel Management (North) Ltd,98666804,75.00,T&S UK - Accommodation
BEIS,UKRI - AHRC,06/01/2020,T&S UK - Accommodation,Operations,Corporate Travel Management (North) Ltd,98666804,0.80,T&S UK - Accommodation
BEIS,UKRI - AHRC,06/01/2020,T&S UK - Accommodation,Operations,Corporate Travel Management (North) Ltd,98666804,57.39,T&S UK - Accommodation
BEIS,UKRI - AHRC,06/01/2020,T&S UK - Accommodation,Operations,Corporate Travel Management (North) Ltd,98666804,0.80,T&S UK - Accommodation
BEIS,UKRI - AHRC,06/01/2020,T&S UK - Accommodation,Operations,Corporate Travel Management (North) Ltd,98666804,75.00,T&S UK - Accommodation
BEIS,UKRI - AHRC,06/01/2020,T&S UK - Accommodation,Operations,Corporate Travel Management (North) Ltd,98666804,0.80,T&S UK - Accommodation
BEIS,UKRI - AHRC,06/01/2020,T&S UK - Accommodation,Operations,Corporate Travel Management (North) Ltd,98666804,75.00,T&S UK - Accommodation
BEIS,UKRI - AHRC,06/01/2020,T&S UK - Accommodation,Operations,Corporate Travel Management (North) Ltd,98666804,2.32,T&S UK - Accommodation
BEIS,UKRI - AHRC,06/01/2020,T&S UK - Accommodation,SMT,Corporate Travel Management (North) Ltd,98666804,0.80,T&S UK - Accommodation
BEIS,UKRI - AHRC,06/01/2020,T&S UK - Accommodation,SMT,Corporate Travel Management (North) Ltd,98666804,193.10,T&S UK - Accommodation
BEIS,UKRI - AHRC,06/01/2020,T&S UK - Accommodation,SMT,Corporate Travel Management (North) Ltd,98666804,0.80,T&S UK - Accommodation
BEIS,UKRI - AHRC,06/01/2020,T&S UK - Accommodation,SMT,Corporate Travel Management (North) Ltd,98666804,200.00,T&S UK - Accommodation
BEIS,UKRI - AHRC,06/01/2020,T&S UK - Accommodation,SMT,Corporate Travel Management (North) Ltd,98666804,0.80,T&S UK - Accommodation
BEIS,UKRI - AHRC,06/01/2020,T&S UK - Accommodation,SMT,Corporate Travel Management (North) Ltd,98666804,182.00,T&S UK - Accommodation
BEIS,UKRI - AHRC,06/01/2020,T&S UK - Accommodation,SMT,Corporate Travel Management (North) Ltd,98666804,0.80,T&S UK - Accommodation
BEIS,UKRI - AHRC,06/01/2020,T&S UK - Accommodation,SMT,Corporate Travel Management (North) Ltd,98666804,162.50,T&S UK - Accommodation
BEIS,UKRI - AHRC,06/01/2020,T&S UK - Accommodation,SMT,Corporate Travel Management (North) Ltd,98666804,0.64,T&S UK - Accommodation
BEIS,UKRI - AHRC,06/01/2020,T&S UK - Accommodation,Secretariat,Corporate Travel Management (North) Ltd,98666804,0.80,T&S UK - Accommodation
BEIS,UKRI - AHRC,06/01/2020,T&S UK - Accommodation,Secretariat,Corporate Travel Management (North) Ltd,98666804,290.00,T&S UK - Accommodation
BEIS,UKRI - AHRC,06/01/2020,T&S UK - Accommodation,Secretariat,Corporate Travel Management (North) Ltd,98666804,0.80,T&S UK - Accommodation
BEIS,UKRI - AHRC,06/01/2020,T&S UK - Accommodation,Secretariat,Corporate Travel Management (North) Ltd,98666804,0.80,T&S UK - Accommodation
BEIS,UKRI - AHRC,06/01/2020,T&S UK - Accommodation,Secretariat,Corporate Travel Management (North) Ltd,98666804,270.00,T&S UK - Accommodation
BEIS,UKRI - AHRC,06/01/2020,T&S UK - Accommodation,Secretariat,Corporate Travel Management (North) Ltd,98666804,0.80,T&S UK - Accommodation
BEIS,UKRI - AHRC,06/01/2020,T&S UK - Accommodation,Secretariat,Corporate Travel Management (North) Ltd,98666804,270.00,T&S UK - Accommodation
BEIS,UKRI - AHRC,06/01/2020,T&S UK - Accommodation,Secretariat,Corporate Travel Management (North) Ltd,98666804,0.80,T&S UK - Accommodation
BEIS,UKRI - AHRC,06/01/2020,T&S UK - Accommodation,Secretariat,Corporate Travel Management (North) Ltd,98666804,135.00,T&S UK - Accommodation
BEIS,UKRI - AHRC,06/01/2020,T&S UK - Accommodation,Secretariat,Corporate Travel Management (North) Ltd,98666804,0.80,T&S UK - Accommodation
BEIS,UKRI - AHRC,06/01/2020,T&S UK - Accommodation,Secretariat,Corporate Travel Management (North) Ltd,98666804,0.80,T&S UK - Accommodation
BEIS,UKRI - AHRC,06/01/2020,T&S UK - Accommodation,Secretariat,Corporate Travel Management (North) Ltd,98666804,270.00,T&S UK - Accommodation
BEIS,UKRI - AHRC,06/01/2020,T&S UK - Accommodation,Secretariat,Corporate Travel Management (North) Ltd,98666804,0.80,T&S UK - Accommodation
BEIS,UKRI - AHRC,06/01/2020,T&S UK - Accommodation,Secretariat,Corporate Travel Management (North) Ltd,98666804,135.00,T&S UK - Accommodation
BEIS,UKRI - AHRC,06/01/2020,T&S UK - Accommodation,Secretariat,Corporate Travel Management (North) Ltd,98666804,2.00,T&S UK - Accommodation
BEIS,UKRI - AHRC,06/01/2020,T&S UK - Accommodation,Secretariat,Corporate Travel Management (North) Ltd,98666804,135.00,T&S UK - Accommodation
BEIS,UKRI - AHRC,06/01/2020,T&S UK - Accommodation,Secretariat,Corporate Travel Management (North) Ltd,98666804,1.68,T&S UK - Accommodation
BEIS,UKRI - AHRC,06/01/2020,T&S UK - Flights,Industrial Strategy Challenge Fund (ISCF) - Creative Clusters,Corporate Travel Management (North) Ltd,98666804,2.50,T&S UK - Flights
BEIS,UKRI - AHRC,06/01/2020,T&S UK - Flights,Industrial Strategy Challenge Fund (ISCF) - Creative Clusters,Corporate Travel Management (North) Ltd,98666804,169.51,T&S UK - Flights
BEIS,UKRI - AHRC,06/01/2020,T&S UK - Flights,SMT,Corporate Travel Management (North) Ltd,98666804,2.50,T&S UK - Flights
BEIS,UKRI - AHRC,06/01/2020,T&S UK - Flights,SMT,Corporate Travel Management (North) Ltd,98666804,142.98,T&S UK - Flights
BEIS,UKRI - AHRC,06/01/2020,T&S UK - Other Charges,Digital Arts and Humanities and Creative Industries,Corporate Travel Management (North) Ltd,98666804,135.24,T&S UK - Other Charges
BEIS,UKRI - AHRC,06/01/2020,T&S UK - Other Charges,Newton Programme,Corporate Travel Management (North) Ltd,98666804,122.66,T&S UK - Other Charges
BEIS,UKRI - AHRC,06/01/2020,T&S UK - Public Transport,Digital Arts and Humanities and Creative Industries,Corporate Travel Management (North) Ltd,98666804,150.16,T&S UK - Public Transport
BEIS,UKRI - AHRC,06/01/2020,T&S UK - Public Transport,Digital Arts and Humanities and Creative Industries,Corporate Travel Management (North) Ltd,98666804,0.25,T&S UK - Public Transport
BEIS,UKRI - AHRC,06/01/2020,T&S UK - Public Transport,Digital Arts and Humanities and Creative Industries,Corporate Travel Management (North) Ltd,98666804,69.90,T&S UK - Public Transport
BEIS,UKRI - AHRC,06/01/2020,T&S UK - Public Transport,Digital Arts and Humanities and Creative Industries,Corporate Travel Management (North) Ltd,98666804,0.25,T&S UK - Public Transport
BEIS,UKRI - AHRC,06/01/2020,T&S UK - Public Transport,Digital Arts and Humanities and Creative Industries,Corporate Travel Management (North) Ltd,98666804,78.30,T&S UK - Public Transport
BEIS,UKRI - AHRC,06/01/2020,T&S UK - Public Transport,Digital Arts and Humanities and Creative Industries,Corporate Travel Management (North) Ltd,98666804,0.25,T&S UK - Public Transport
BEIS,UKRI - AHRC,06/01/2020,T&S UK - Public Transport,Digital Arts and Humanities and Creative Industries,Corporate Travel Management (North) Ltd,98666804,119.60,T&S UK - Public Transport
BEIS,UKRI - AHRC,06/01/2020,T&S UK - Public Transport,Digital Arts and Humanities and Creative Industries,Corporate Travel Management (North) Ltd,98666804,0.25,T&S UK - Public Transport
BEIS,UKRI - AHRC,06/01/2020,T&S UK - Public Transport,Digital Arts and Humanities and Creative Industries,Corporate Travel Management (North) Ltd,98666804,178.10,T&S UK - Public Transport
BEIS,UKRI - AHRC,06/01/2020,T&S UK - Public Transport,Digital Arts and Humanities and Creative Industries,Corporate Travel Management (North) Ltd,98666804,0.25,T&S UK - Public Transport
BEIS,UKRI - AHRC,06/01/2020,T&S UK - Public Transport,Digital Arts and Humanities and Creative Industries,Corporate Travel Management (North) Ltd,98666804,115.00,T&S UK - Public Transport
BEIS,UKRI - AHRC,06/01/2020,T&S UK - Public Transport,Digital Arts and Humanities and Creative Industries,Corporate Travel Management (North) Ltd,98666804,122.52,T&S UK - Public Transport
BEIS,UKRI - AHRC,06/01/2020,T&S UK - Public Transport,Executive Office,Corporate Travel Management (North) Ltd,98666804,0.25,T&S UK - Public Transport
BEIS,UKRI - AHRC,06/01/2020,T&S UK - Public Transport,Executive Office,Corporate Travel Management (North) Ltd,98666804,69.90,T&S UK - Public Transport
BEIS,UKRI - AHRC,06/01/2020,T&S UK - Public Transport,Executive Office,Corporate Travel Management (North) Ltd,98666804,0.25,T&S UK - Public Transport
BEIS,UKRI - AHRC,06/01/2020,T&S UK - Public Transport,Executive Office,Corporate Travel Management (North) Ltd,98666804,114.40,T&S UK - Public Transport
BEIS,UKRI - AHRC,06/01/2020,T&S UK - Public Transport,Executive Office,Corporate Travel Management (North) Ltd,98666804,0.25,T&S UK - Public Transport
BEIS,UKRI - AHRC,06/01/2020,T&S UK - Public Transport,Executive Office,Corporate Travel Management (North) Ltd,98666804,69.90,T&S UK - Public Transport
BEIS,UKRI - AHRC,06/01/2020,T&S UK - Public Transport,FIC- US,Corporate Travel Management (North) Ltd,98666804,0.50,T&S UK - Public Transport
BEIS,UKRI - AHRC,06/01/2020,T&S UK - Public Transport,FIC- US,Corporate Travel Management (North) Ltd,98666804,29.90,T&S UK - Public Transport
BEIS,UKRI - AHRC,06/01/2020,T&S UK - Public Transport,FIC- US,Corporate Travel Management (North) Ltd,98666804,18.60,T&S UK - Public Transport
BEIS,UKRI - AHRC,06/01/2020,T&S UK - Public Transport,FIC- US,Corporate Travel Management (North) Ltd,98666804,0.25,T&S UK - Public Transport
BEIS,UKRI - AHRC,06/01/2020,T&S UK - Public Transport,FIC- US,Corporate Travel Management (North) Ltd,98666804,71.20,T&S UK - Public Transport
BEIS,UKRI - AHRC,06/01/2020,T&S UK - Public Transport,FIC- US,Corporate Travel Management (North) Ltd,98666804,0.25,T&S UK - Public Transport
BEIS,UKRI - AHRC,06/01/2020,T&S UK - Public Transport,FIC- US,Corporate Travel Management (North) Ltd,98666804,71.20,T&S UK - Public Transport
BEIS,UKRI - AHRC,06/01/2020,T&S UK - Public Transport,FIC- US,Corporate Travel Management (North) Ltd,98666804,0.25,T&S UK - Public Transport
BEIS,UKRI - AHRC,06/01/2020,T&S UK - Public Transport,FIC- US,Corporate Travel Management (North) Ltd,98666804,71.20,T&S UK - Public Transport
BEIS,UKRI - AHRC,06/01/2020,T&S UK - Public Transport,Finance,Corporate Travel Management (North) Ltd,98666804,0.25,T&S UK - Public Transport
BEIS,UKRI - AHRC,06/01/2020,T&S UK - Public Transport,Finance,Corporate Travel Management (North) Ltd,98666804,23.70,T&S UK - Public Transport
BEIS,UKRI - AHRC,06/01/2020,T&S UK - Public Transport,Finance,Corporate Travel Management (North) Ltd,98666804,0.25,T&S UK - Public Transport
BEIS,UKRI - AHRC,06/01/2020,T&S UK - Public Transport,Finance,Corporate Travel Management (North) Ltd,98666804,23.70,T&S UK - Public Transport
BEIS,UKRI - AHRC,06/01/2020,T&S UK - Public Transport,Finance,Corporate Travel Management (North) Ltd,98666804,0.25,T&S UK - Public Transport
BEIS,UKRI - AHRC,06/01/2020,T&S UK - Public Transport,Finance,Corporate Travel Management (North) Ltd,98666804,16.50,T&S UK - Public Transport
BEIS,UKRI - AHRC,06/01/2020,T&S UK - Public Transport,GCRF - Programme Delivery,Corporate Travel Management (North) Ltd,98666804,0.25,T&S UK - Public Transport
BEIS,UKRI - AHRC,06/01/2020,T&S UK - Public Transport,GCRF - Programme Delivery,Corporate Travel Management (North) Ltd,98666804,69.90,T&S UK - Public Transport
BEIS,UKRI - AHRC,06/01/2020,T&S UK - Public Transport,GCRF - Programme Delivery,Corporate Travel Management (North) Ltd,98666804,0.25,T&S UK - Public Transport
BEIS,UKRI - AHRC,06/01/2020,T&S UK - Public Transport,GCRF - Programme Delivery,Corporate Travel Management (North) Ltd,98666804,13.10,T&S UK - Public Transport
BEIS,UKRI - AHRC,06/01/2020,T&S UK - Public Transport,GCRF - Programme Delivery,Corporate Travel Management (North) Ltd,98666804,0.25,T&S UK - Public Transport
BEIS,UKRI - AHRC,06/01/2020,T&S UK - Public Transport,GCRF - Programme Delivery,Corporate Travel Management (North) Ltd,98666804,6.20,T&S UK - Public Transport
BEIS,UKRI - AHRC,06/01/2020,T&S UK - Public Transport,GCRF - Programme Delivery,Corporate Travel Management (North) Ltd,98666804,0.25,T&S UK - Public Transport
BEIS,UKRI - AHRC,06/01/2020,T&S UK - Public Transport,GCRF - Programme Delivery,Corporate Travel Management (North) Ltd,98666804,28.80,T&S UK - Public Transport
BEIS,UKRI - AHRC,06/01/2020,T&S UK - Public Transport,GCRF - Programme Delivery,Corporate Travel Management (North) Ltd,98666804,0.25,T&S UK - Public Transport
BEIS,UKRI - AHRC,06/01/2020,T&S UK - Public Transport,GCRF - Programme Delivery,Corporate Travel Management (North) Ltd,98666804,33.90,T&S UK - Public Transport
BEIS,UKRI - AHRC,06/01/2020,T&S UK - Public Transport,GCRF - Programme Delivery,Corporate Travel Management (North) Ltd,98666804,0.25,T&S UK - Public Transport
BEIS,UKRI - AHRC,06/01/2020,T&S UK - Public Transport,GCRF - Programme Delivery,Corporate Travel Management (North) Ltd,98666804,69.90,T&S UK - Public Transport
BEIS,UKRI - AHRC,06/01/2020,T&S UK - Public Transport,GCRF - Programme Delivery,Corporate Travel Management (North) Ltd,98666804,0.25,T&S UK - Public Transport
BEIS,UKRI - AHRC,06/01/2020,T&S UK - Public Transport,GCRF - Programme Delivery,Corporate Travel Management (North) Ltd,98666804,144.00,T&S UK - Public Transport
BEIS,UKRI - AHRC,06/01/2020,T&S UK - Public Transport,GCRF - Programme Delivery,Corporate Travel Management (North) Ltd,98666804,0.25,T&S UK - Public Transport
BEIS,UKRI - AHRC,06/01/2020,T&S UK - Public Transport,GCRF - Programme Delivery,Corporate Travel Management (North) Ltd,98666804,109.50,T&S UK - Public Transport
BEIS,UKRI - AHRC,06/01/2020,T&S UK - Public Transport,GCRF - Programme Delivery,Corporate Travel Management (North) Ltd,98666804,0.50,T&S UK - Public Transport
BEIS,UKRI - AHRC,06/01/2020,T&S UK - Public Transport,GCRF - Programme Delivery,Corporate Travel Management (North) Ltd,98666804,79.70,T&S UK - Public Transport
BEIS,UKRI - AHRC,06/01/2020,T&S UK - Public Transport,GCRF - Programme Delivery,Corporate Travel Management (North) Ltd,98666804,51.00,T&S UK - Public Transport
BEIS,UKRI - AHRC,06/01/2020,T&S UK - Public Transport,HR,Corporate Travel Management (North) Ltd,98666804,0.25,T&S UK - Public Transport
BEIS,UKRI - AHRC,06/01/2020,T&S UK - Public Transport,HR,Corporate Travel Management (North) Ltd,98666804,75.00,T&S UK - Public Transport
BEIS,UKRI - AHRC,06/01/2020,T&S UK - Public Transport,HR,Corporate Travel Management (North) Ltd,98666804,5.00,T&S UK - Public Transport
BEIS,UKRI - AHRC,06/01/2020,T&S UK - Public Transport,HR,Corporate Travel Management (North) Ltd,98666804,-88.00,T&S UK - Public Transport
BEIS,UKRI - AHRC,06/01/2020,T&S UK - Public Transport,"History, Heritage, Languages and Literature",Corporate Travel Management (North) Ltd,98666804,10.00,T&S UK - Public Transport
BEIS,UKRI - AHRC,06/01/2020,T&S UK - Public Transport,"History, Heritage, Languages and Literature",Corporate Travel Management (North) Ltd,98666804,-141.10,T&S UK - Public Transport
BEIS,UKRI - AHRC,06/01/2020,T&S UK - Public Transport,"History, Heritage, Languages and Literature",Corporate Travel Management (North) Ltd,98666804,5.00,T&S UK - Public Transport
BEIS,UKRI - AHRC,06/01/2020,T&S UK - Public Transport,"History, Heritage, Languages and Literature",Corporate Travel Management (North) Ltd,98666804,-50.40,T&S UK - Public Transport
BEIS,UKRI - AHRC,06/01/2020,T&S UK - Public Transport,"History, Heritage, Languages and Literature",Corporate Travel Management (North) Ltd,98666804,5.00,T&S UK - Public Transport
BEIS,UKRI - AHRC,06/01/2020,T&S UK - Public Transport,"History, Heritage, Languages and Literature",Corporate Travel Management (North) Ltd,98666804,-17.80,T&S UK - Public Transport
BEIS,UKRI - AHRC,06/01/2020,T&S UK - Public Transport,"History, Heritage, Languages and Literature",Corporate Travel Management (North) Ltd,98666804,0.25,T&S UK - Public Transport
BEIS,UKRI - AHRC,06/01/2020,T&S UK - Public Transport,"History, Heritage, Languages and Literature",Corporate Travel Management (North) Ltd,98666804,188.10,T&S UK - Public Transport
BEIS,UKRI - AHRC,06/01/2020,T&S UK - Public Transport,"History, Heritage, Languages and Literature",Corporate Travel Management (North) Ltd,98666804,0.25,T&S UK - Public Transport
BEIS,UKRI - AHRC,06/01/2020,T&S UK - Public Transport,"History, Heritage, Languages and Literature",Corporate Travel Management (North) Ltd,98666804,144.70,T&S UK - Public Transport
BEIS,UKRI - AHRC,06/01/2020,T&S UK - Public Transport,"History, Heritage, Languages and Literature",Corporate Travel Management (North) Ltd,98666804,0.25,T&S UK - Public Transport
BEIS,UKRI - AHRC,06/01/2020,T&S UK - Public Transport,"History, Heritage, Languages and Literature",Corporate Travel Management (North) Ltd,98666804,144.70,T&S UK - Public Transport
BEIS,UKRI - AHRC,06/01/2020,T&S UK - Public Transport,"History, Heritage, Languages and Literature",Corporate Travel Management (North) Ltd,98666804,74.27,T&S UK - Public Transport
BEIS,UKRI - AHRC,06/01/2020,T&S UK - Public Transport,"History, Heritage, Languages and Literature",Corporate Travel Management (North) Ltd,98666804,117.97,T&S UK - Public Transport
BEIS,UKRI - AHRC,06/01/2020,T&S UK - Public Transport,"History, Heritage, Languages and Literature",Corporate Travel Management (North) Ltd,98666804,65.95,T&S UK - Public Transport
BEIS,UKRI - AHRC,06/01/2020,T&S UK - Public Transport,"History, Heritage, Languages and Literature",Corporate Travel Management (North) Ltd,98666804,14.93,T&S UK - Public Transport
BEIS,UKRI - AHRC,06/01/2020,T&S UK - Public Transport,"History, Heritage, Languages and Literature",Corporate Travel Management (North) Ltd,98666804,14.93,T&S UK - Public Transport
BEIS,UKRI - AHRC,06/01/2020,T&S UK - Public Transport,"History, Heritage, Languages and Literature",Corporate Travel Management (North) Ltd,98666804,14.93,T&S UK - Public Transport
BEIS,UKRI - AHRC,06/01/2020,T&S UK - Public Transport,"History, Heritage, Languages and Literature",Corporate Travel Management (North) Ltd,98666804,14.93,T&S UK - Public Transport
BEIS,UKRI - AHRC,06/01/2020,T&S UK - Public Transport,"History, Heritage, Languages and Literature",Corporate Travel Management (North) Ltd,98666804,14.93,T&S UK - Public Transport
BEIS,UKRI - AHRC,06/01/2020,T&S UK - Public Transport,"History, Heritage, Languages and Literature",Corporate Travel Management (North) Ltd,98666804,14.93,T&S UK - Public Transport
BEIS,UKRI - AHRC,06/01/2020,T&S UK - Public Transport,"History, Heritage, Languages and Literature",Corporate Travel Management (North) Ltd,98666804,14.93,T&S UK - Public Transport
BEIS,UKRI - AHRC,06/01/2020,T&S UK - Public Transport,"History, Heritage, Languages and Literature",Corporate Travel Management (North) Ltd,98666804,18.41,T&S UK - Public Transport
BEIS,UKRI - AHRC,06/01/2020,T&S UK - Public Transport,"History, Heritage, Languages and Literature",Corporate Travel Management (North) Ltd,98666804,41.33,T&S UK - Public Transport
BEIS,UKRI - AHRC,06/01/2020,T&S UK - Public Transport,"History, Heritage, Languages and Literature",Corporate Travel Management (North) Ltd,98666804,44.06,T&S UK - Public Transport
BEIS,UKRI - AHRC,06/01/2020,T&S UK - Public Transport,"History, Heritage, Languages and Literature",Corporate Travel Management (North) Ltd,98666804,14.93,T&S UK - Public Transport
BEIS,UKRI - AHRC,06/01/2020,T&S UK - Public Transport,"History, Heritage, Languages and Literature",Corporate Travel Management (North) Ltd,98666804,25.39,T&S UK - Public Transport
BEIS,UKRI - AHRC,06/01/2020,T&S UK - Public Transport,"History, Heritage, Languages and Literature",Corporate Travel Management (North) Ltd,98666804,63.22,T&S UK - Public Transport
BEIS,UKRI - AHRC,06/01/2020,T&S UK - Public Transport,"History, Heritage, Languages and Literature",Corporate Travel Management (North) Ltd,98666804,14.93,T&S UK - Public Transport
BEIS,UKRI - AHRC,06/01/2020,T&S UK - Public Transport,"History, Heritage, Languages and Literature",Corporate Travel Management (North) Ltd,98666804,69.23,T&S UK - Public Transport
BEIS,UKRI - AHRC,06/01/2020,T&S UK - Public Transport,"History, Heritage, Languages and Literature",Corporate Travel Management (North) Ltd,98666804,5.00,T&S UK - Public Transport
BEIS,UKRI - AHRC,06/01/2020,T&S UK - Public Transport,"History, Heritage, Languages and Literature",Corporate Travel Management (North) Ltd,98666804,-82.00,T&S UK - Public Transport
BEIS,UKRI - AHRC,06/01/2020,T&S UK - Public Transport,Industrial Strategy Challenge Fund (ISCF) - Creative Clusters,Corporate Travel Management (North) Ltd,98666804,0.25,T&S UK - Public Transport
BEIS,UKRI - AHRC,06/01/2020,T&S UK - Public Transport,Industrial Strategy Challenge Fund (ISCF) - Creative Clusters,Corporate Travel Management (North) Ltd,98666804,69.90,T&S UK - Public Transport
BEIS,UKRI - AHRC,06/01/2020,T&S UK - Public Transport,Industrial Strategy Challenge Fund (ISCF) - Creative Clusters,Corporate Travel Management (North) Ltd,98666804,0.25,T&S UK - Public Transport
BEIS,UKRI - AHRC,06/01/2020,T&S UK - Public Transport,Industrial Strategy Challenge Fund (ISCF) - Creative Clusters,Corporate Travel Management (North) Ltd,98666804,136.20,T&S UK - Public Transport
BEIS,UKRI - AHRC,06/01/2020,T&S UK - Public Transport,Industrial Strategy Challenge Fund (ISCF) - Creative Clusters,Corporate Travel Management (North) Ltd,98666804,0.25,T&S UK - Public Transport
BEIS,UKRI - AHRC,06/01/2020,T&S UK - Public Transport,Industrial Strategy Challenge Fund (ISCF) - Creative Clusters,Corporate Travel Management (North) Ltd,98666804,120.00,T&S UK - Public Transport
BEIS,UKRI - AHRC,06/01/2020,T&S UK - Public Transport,Industrial Strategy Challenge Fund (ISCF) - Creative Clusters,Corporate Travel Management (North) Ltd,98666804,0.25,T&S UK - Public Transport
BEIS,UKRI - AHRC,06/01/2020,T&S UK - Public Transport,Industrial Strategy Challenge Fund (ISCF) - Creative Clusters,Corporate Travel Management (North) Ltd,98666804,144.70,T&S UK - Public Transport
BEIS,UKRI - AHRC,06/01/2020,T&S UK - Public Transport,Industrial Strategy Challenge Fund (ISCF) - Creative Clusters,Corporate Travel Management (North) Ltd,98666804,0.25,T&S UK - Public Transport
BEIS,UKRI - AHRC,06/01/2020,T&S UK - Public Transport,Industrial Strategy Challenge Fund (ISCF) - Creative Clusters,Corporate Travel Management (North) Ltd,98666804,78.30,T&S UK - Public Transport
BEIS,UKRI - AHRC,06/01/2020,T&S UK - Public Transport,Industrial Strategy Challenge Fund (ISCF) - Creative Clusters,Corporate Travel Management (North) Ltd,98666804,0.25,T&S UK - Public Transport
BEIS,UKRI - AHRC,06/01/2020,T&S UK - Public Transport,Industrial Strategy Challenge Fund (ISCF) - Creative Clusters,Corporate Travel Management (North) Ltd,98666804,114.40,T&S UK - Public Transport
BEIS,UKRI - AHRC,06/01/2020,T&S UK - Public Transport,Industrial Strategy Challenge Fund (ISCF) - Creative Clusters,Corporate Travel Management (North) Ltd,98666804,0.25,T&S UK - Public Transport
BEIS,UKRI - AHRC,06/01/2020,T&S UK - Public Transport,Industrial Strategy Challenge Fund (ISCF) - Creative Clusters,Corporate Travel Management (North) Ltd,98666804,144.70,T&S UK - Public Transport
BEIS,UKRI - AHRC,06/01/2020,T&S UK - Public Transport,Industrial Strategy Challenge Fund (ISCF) - Creative Clusters,Corporate Travel Management (North) Ltd,98666804,0.25,T&S UK - Public Transport
BEIS,UKRI - AHRC,06/01/2020,T&S UK - Public Transport,Industrial Strategy Challenge Fund (ISCF) - Creative Clusters,Corporate Travel Management (North) Ltd,98666804,106.50,T&S UK - Public Transport
BEIS,UKRI - AHRC,06/01/2020,T&S UK - Public Transport,Industrial Strategy Challenge Fund (ISCF) - Creative Clusters,Corporate Travel Management (North) Ltd,98666804,0.25,T&S UK - Public Transport
BEIS,UKRI - AHRC,06/01/2020,T&S UK - Public Transport,Industrial Strategy Challenge Fund (ISCF) - Creative Clusters,Corporate Travel Management (North) Ltd,98666804,119.60,T&S UK - Public Transport
BEIS,UKRI - AHRC,06/01/2020,T&S UK - Public Transport,Industrial Strategy Challenge Fund (ISCF) - Creative Clusters,Corporate Travel Management (North) Ltd,98666804,0.25,T&S UK - Public Transport
BEIS,UKRI - AHRC,06/01/2020,T&S UK - Public Transport,Industrial Strategy Challenge Fund (ISCF) - Creative Clusters,Corporate Travel Management (North) Ltd,98666804,126.70,T&S UK - Public Transport
BEIS,UKRI - AHRC,06/01/2020,T&S UK - Public Transport,Industrial Strategy Challenge Fund (ISCF) - Creative Clusters,Corporate Travel Management (North) Ltd,98666804,5.00,T&S UK - Public Transport
BEIS,UKRI - AHRC,06/01/2020,T&S UK - Public Transport,Industrial Strategy Challenge Fund (ISCF) - Creative Clusters,Corporate Travel Management (North) Ltd,98666804,-11.40,T&S UK - Public Transport
BEIS,UKRI - AHRC,06/01/2020,T&S UK - Public Transport,International Development and Area Studies,Corporate Travel Management (North) Ltd,98666804,0.25,T&S UK - Public Transport
BEIS,UKRI - AHRC,06/01/2020,T&S UK - Public Transport,International Development and Area Studies,Corporate Travel Management (North) Ltd,98666804,103.00,T&S UK - Public Transport
BEIS,UKRI - AHRC,06/01/2020,T&S UK - Public Transport,International Partnership and Engagement,Corporate Travel Management (North) Ltd,98666804,0.25,T&S UK - Public Transport
BEIS,UKRI - AHRC,06/01/2020,T&S UK - Public Transport,International Partnership and Engagement,Corporate Travel Management (North) Ltd,98666804,35.50,T&S UK - Public Transport
BEIS,UKRI - AHRC,06/01/2020,T&S UK - Public Transport,International Partnership and Engagement,Corporate Travel Management (North) Ltd,98666804,0.25,T&S UK - Public Transport
BEIS,UKRI - AHRC,06/01/2020,T&S UK - Public Transport,International Partnership and Engagement,Corporate Travel Management (North) Ltd,98666804,35.50,T&S UK - Public Transport
BEIS,UKRI - AHRC,06/01/2020,T&S UK - Public Transport,International Partnership and Engagement,Corporate Travel Management (North) Ltd,98666804,0.25,T&S UK - Public Transport
BEIS,UKRI - AHRC,06/01/2020,T&S UK - Public Transport,International Partnership and Engagement,Corporate Travel Management (North) Ltd,98666804,38.00,T&S UK - Public Transport
BEIS,UKRI - AHRC,06/01/2020,T&S UK - Public Transport,International Partnership and Engagement,Corporate Travel Management (North) Ltd,98666804,0.25,T&S UK - Public Transport
BEIS,UKRI - AHRC,06/01/2020,T&S UK - Public Transport,International Partnership and Engagement,Corporate Travel Management (North) Ltd,98666804,25.10,T&S UK - Public Transport
BEIS,UKRI - AHRC,06/01/2020,T&S UK - Public Transport,International Partnership and Engagement,Corporate Travel Management (North) Ltd,98666804,0.25,T&S UK - Public Transport
BEIS,UKRI - AHRC,06/01/2020,T&S UK - Public Transport,International Partnership and Engagement,Corporate Travel Management (North) Ltd,98666804,94.50,T&S UK - Public Transport
BEIS,UKRI - AHRC,06/01/2020,T&S UK - Public Transport,Newton Programme Delivery,Corporate Travel Management (North) Ltd,98666804,5.00,T&S UK - Public Transport
BEIS,UKRI - AHRC,06/01/2020,T&S UK - Public Transport,Newton Programme Delivery,Corporate Travel Management (North) Ltd,98666804,-139.00,T&S UK - Public Transport
BEIS,UKRI - AHRC,06/01/2020,T&S UK - Public Transport,Newton Programme Delivery,Corporate Travel Management (North) Ltd,98666804,10.00,T&S UK - Public Transport
BEIS,UKRI - AHRC,06/01/2020,T&S UK - Public Transport,Newton Programme Delivery,Corporate Travel Management (North) Ltd,98666804,-93.80,T&S UK - Public Transport
BEIS,UKRI - AHRC,06/01/2020,T&S UK - Public Transport,Operations,Corporate Travel Management (North) Ltd,98666804,5.00,T&S UK - Public Transport
BEIS,UKRI - AHRC,06/01/2020,T&S UK - Public Transport,Operations,Corporate Travel Management (North) Ltd,98666804,-37.40,T&S UK - Public Transport
BEIS,UKRI - AHRC,06/01/2020,T&S UK - Public Transport,Operations,Corporate Travel Management (North) Ltd,98666804,5.00,T&S UK - Public Transport
BEIS,UKRI - AHRC,06/01/2020,T&S UK - Public Transport,Operations,Corporate Travel Management (North) Ltd,98666804,-37.40,T&S UK - Public Transport
BEIS,UKRI - AHRC,06/01/2020,T&S UK - Public Transport,PSU Project Office,Corporate Travel Management (North) Ltd,98666804,0.25,T&S UK - Public Transport
BEIS,UKRI - AHRC,06/01/2020,T&S UK - Public Transport,PSU Project Office,Corporate Travel Management (North) Ltd,98666804,144.00,T&S UK - Public Transport
BEIS,UKRI - AHRC,06/01/2020,T&S UK - Public Transport,PSU Project Office,Corporate Travel Management (North) Ltd,98666804,0.25,T&S UK - Public Transport
BEIS,UKRI - AHRC,06/01/2020,T&S UK - Public Transport,PSU Project Office,Corporate Travel Management (North) Ltd,98666804,69.90,T&S UK - Public Transport
BEIS,UKRI - AHRC,06/01/2020,T&S UK - Public Transport,PSU Project Office,Corporate Travel Management (North) Ltd,98666804,0.25,T&S UK - Public Transport
BEIS,UKRI - AHRC,06/01/2020,T&S UK - Public Transport,PSU Project Office,Corporate Travel Management (North) Ltd,98666804,62.80,T&S UK - Public Transport
BEIS,UKRI - AHRC,06/01/2020,T&S UK - Public Transport,PSU Project Office,Corporate Travel Management (North) Ltd,98666804,0.25,T&S UK - Public Transport
BEIS,UKRI - AHRC,06/01/2020,T&S UK - Public Transport,PSU Project Office,Corporate Travel Management (North) Ltd,98666804,69.90,T&S UK - Public Transport
BEIS,UKRI - AHRC,06/01/2020,T&S UK - Public Transport,PSU Project Office,Corporate Travel Management (North) Ltd,98666804,0.25,T&S UK - Public Transport
BEIS,UKRI - AHRC,06/01/2020,T&S UK - Public Transport,PSU Project Office,Corporate Travel Management (North) Ltd,98666804,23.90,T&S UK - Public Transport
BEIS,UKRI - AHRC,06/01/2020,T&S UK - Public Transport,Public and Stakeholder Engagement,Corporate Travel Management (North) Ltd,98666804,0.25,T&S UK - Public Transport
BEIS,UKRI - AHRC,06/01/2020,T&S UK - Public Transport,Public and Stakeholder Engagement,Corporate Travel Management (North) Ltd,98666804,151.60,T&S UK - Public Transport
BEIS,UKRI - AHRC,06/01/2020,T&S UK - Public Transport,Public and Stakeholder Engagement,Corporate Travel Management (North) Ltd,98666804,0.50,T&S UK - Public Transport
BEIS,UKRI - AHRC,06/01/2020,T&S UK - Public Transport,Public and Stakeholder Engagement,Corporate Travel Management (North) Ltd,98666804,10.90,T&S UK - Public Transport
BEIS,UKRI - AHRC,06/01/2020,T&S UK - Public Transport,Public and Stakeholder Engagement,Corporate Travel Management (North) Ltd,98666804,10.90,T&S UK - Public Transport
BEIS,UKRI - AHRC,06/01/2020,T&S UK - Public Transport,Public and Stakeholder Engagement,Corporate Travel Management (North) Ltd,98666804,0.25,T&S UK - Public Transport
BEIS,UKRI - AHRC,06/01/2020,T&S UK - Public Transport,Public and Stakeholder Engagement,Corporate Travel Management (North) Ltd,98666804,151.50,T&S UK - Public Transport
BEIS,UKRI - AHRC,06/01/2020,T&S UK - Public Transport,Public and Stakeholder Engagement,Corporate Travel Management (North) Ltd,98666804,0.25,T&S UK - Public Transport
BEIS,UKRI - AHRC,06/01/2020,T&S UK - Public Transport,Public and Stakeholder Engagement,Corporate Travel Management (North) Ltd,98666804,209.00,T&S UK - Public Transport
BEIS,UKRI - AHRC,06/01/2020,T&S UK - Public Transport,Public and Stakeholder Engagement,Corporate Travel Management (North) Ltd,98666804,0.25,T&S UK - Public Transport
BEIS,UKRI - AHRC,06/01/2020,T&S UK - Public Transport,Public and Stakeholder Engagement,Corporate Travel Management (North) Ltd,98666804,8.60,T&S UK - Public Transport
BEIS,UKRI - AHRC,06/01/2020,T&S UK - Public Transport,Public and Stakeholder Engagement,Corporate Travel Management (North) Ltd,98666804,0.25,T&S UK - Public Transport
BEIS,UKRI - AHRC,06/01/2020,T&S UK - Public Transport,Public and Stakeholder Engagement,Corporate Travel Management (North) Ltd,98666804,18.10,T&S UK - Public Transport
BEIS,UKRI - AHRC,06/01/2020,T&S UK - Public Transport,Public and Stakeholder Engagement,Corporate Travel Management (North) Ltd,98666804,0.25,T&S UK - Public Transport
BEIS,UKRI - AHRC,06/01/2020,T&S UK - Public Transport,Public and Stakeholder Engagement,Corporate Travel Management (North) Ltd,98666804,12.00,T&S UK - Public Transport
BEIS,UKRI - AHRC,06/01/2020,T&S UK - Public Transport,Public and Stakeholder Engagement,Corporate Travel Management (North) Ltd,98666804,5.00,T&S UK - Public Transport
BEIS,UKRI - AHRC,06/01/2020,T&S UK - Public Transport,Public and Stakeholder Engagement,Corporate Travel Management (North) Ltd,98666804,-30.70,T&S UK - Public Transport
BEIS,UKRI - AHRC,06/01/2020,T&S UK - Public Transport,SMT,Corporate Travel Management (North) Ltd,98666804,0.25,T&S UK - Public Transport
BEIS,UKRI - AHRC,06/01/2020,T&S UK - Public Transport,SMT,Corporate Travel Management (North) Ltd,98666804,19.00,T&S UK - Public Transport
BEIS,UKRI - AHRC,06/01/2020,T&S UK - Public Transport,SMT,Corporate Travel Management (North) Ltd,98666804,10.00,T&S UK - Public Transport
BEIS,UKRI - AHRC,06/01/2020,T&S UK - Public Transport,SMT,Corporate Travel Management (North) Ltd,98666804,-47.60,T&S UK - Public Transport
BEIS,UKRI - AHRC,06/01/2020,T&S UK - Public Transport,SMT,Corporate Travel Management (North) Ltd,98666804,10.00,T&S UK - Public Transport
BEIS,UKRI - AHRC,06/01/2020,T&S UK - Public Transport,SMT,Corporate Travel Management (North) Ltd,98666804,-37.20,T&S UK - Public Transport
BEIS,UKRI - AHRC,06/01/2020,T&S UK - Public Transport,SMT,Corporate Travel Management (North) Ltd,98666804,0.25,T&S UK - Public Transport
BEIS,UKRI - AHRC,06/01/2020,T&S UK - Public Transport,SMT,Corporate Travel Management (North) Ltd,98666804,138.00,T&S UK - Public Transport
BEIS,UKRI - AHRC,06/01/2020,T&S UK - Public Transport,SMT,Corporate Travel Management (North) Ltd,98666804,0.25,T&S UK - Public Transport
BEIS,UKRI - AHRC,06/01/2020,T&S UK - Public Transport,SMT,Corporate Travel Management (North) Ltd,98666804,73.10,T&S UK - Public Transport
BEIS,UKRI - AHRC,06/01/2020,T&S UK - Public Transport,SMT,Corporate Travel Management (North) Ltd,98666804,5.00,T&S UK - Public Transport
BEIS,UKRI - AHRC,06/01/2020,T&S UK - Public Transport,SMT,Corporate Travel Management (North) Ltd,98666804,-13.60,T&S UK - Public Transport
BEIS,UKRI - AHRC,06/01/2020,T&S UK - Public Transport,SMT,Corporate Travel Management (North) Ltd,98666804,0.25,T&S UK - Public Transport
BEIS,UKRI - AHRC,06/01/2020,T&S UK - Public Transport,SMT,Corporate Travel Management (North) Ltd,98666804,200.30,T&S UK - Public Transport
BEIS,UKRI - AHRC,06/01/2020,T&S UK - Public Transport,SMT,Corporate Travel Management (North) Ltd,98666804,0.25,T&S UK - Public Transport
BEIS,UKRI - AHRC,06/01/2020,T&S UK - Public Transport,SMT,Corporate Travel Management (North) Ltd,98666804,116.20,T&S UK - Public Transport
BEIS,UKRI - AHRC,06/01/2020,T&S UK - Public Transport,SMT,Corporate Travel Management (North) Ltd,98666804,0.25,T&S UK - Public Transport
BEIS,UKRI - AHRC,06/01/2020,T&S UK - Public Transport,SMT,Corporate Travel Management (North) Ltd,98666804,65.20,T&S UK - Public Transport
BEIS,UKRI - AHRC,06/01/2020,T&S UK - Public Transport,SMT,Corporate Travel Management (North) Ltd,98666804,0.25,T&S UK - Public Transport
BEIS,UKRI - AHRC,06/01/2020,T&S UK - Public Transport,SMT,Corporate Travel Management (North) Ltd,98666804,133.00,T&S UK - Public Transport
BEIS,UKRI - AHRC,06/01/2020,T&S UK - Public Transport,SMT,Corporate Travel Management (North) Ltd,98666804,0.25,T&S UK - Public Transport
BEIS,UKRI - AHRC,06/01/2020,T&S UK - Public Transport,SMT,Corporate Travel Management (North) Ltd,98666804,71.10,T&S UK - Public Transport
BEIS,UKRI - AHRC,06/01/2020,T&S UK - Public Transport,SMT,Corporate Travel Management (North) Ltd,98666804,0.50,T&S UK - Public Transport
BEIS,UKRI - AHRC,06/01/2020,T&S UK - Public Transport,SMT,Corporate Travel Management (North) Ltd,98666804,94.00,T&S UK - Public Transport
BEIS,UKRI - AHRC,06/01/2020,T&S UK - Public Transport,SMT,Corporate Travel Management (North) Ltd,98666804,0.25,T&S UK - Public Transport
BEIS,UKRI - AHRC,06/01/2020,T&S UK - Public Transport,SMT,Corporate Travel Management (North) Ltd,98666804,138.00,T&S UK - Public Transport
BEIS,UKRI - AHRC,06/01/2020,T&S UK - Public Transport,SMT,Corporate Travel Management (North) Ltd,98666804,0.25,T&S UK - Public Transport
BEIS,UKRI - AHRC,06/01/2020,T&S UK - Public Transport,SMT,Corporate Travel Management (North) Ltd,98666804,218.00,T&S UK - Public Transport
BEIS,UKRI - AHRC,06/01/2020,T&S UK - Public Transport,SMT,Corporate Travel Management (North) Ltd,98666804,0.25,T&S UK - Public Transport
BEIS,UKRI - AHRC,06/01/2020,T&S UK - Public Transport,SMT,Corporate Travel Management (North) Ltd,98666804,69.00,T&S UK - Public Transport
BEIS,UKRI - AHRC,06/01/2020,T&S UK - Public Transport,SMT,Corporate Travel Management (North) Ltd,98666804,0.25,T&S UK - Public Transport
BEIS,UKRI - AHRC,06/01/2020,T&S UK - Public Transport,SMT,Corporate Travel Management (North) Ltd,98666804,17.00,T&S UK - Public Transport
BEIS,UKRI - AHRC,06/01/2020,T&S UK - Public Transport,SMT,Corporate Travel Management (North) Ltd,98666804,0.25,T&S UK - Public Transport
BEIS,UKRI - AHRC,06/01/2020,T&S UK - Public Transport,SMT,Corporate Travel Management (North) Ltd,98666804,89.00,T&S UK - Public Transport
BEIS,UKRI - AHRC,06/01/2020,T&S UK - Public Transport,SMT,Corporate Travel Management (North) Ltd,98666804,0.25,T&S UK - Public Transport
BEIS,UKRI - AHRC,06/01/2020,T&S UK - Public Transport,SMT,Corporate Travel Management (North) Ltd,98666804,12.00,T&S UK - Public Transport
BEIS,UKRI - AHRC,06/01/2020,T&S UK - Public Transport,SMT,Corporate Travel Management (North) Ltd,98666804,0.25,T&S UK - Public Transport
BEIS,UKRI - AHRC,06/01/2020,T&S UK - Public Transport,SMT,Corporate Travel Management (North) Ltd,98666804,97.80,T&S UK - Public Transport
BEIS,UKRI - AHRC,06/01/2020,T&S UK - Public Transport,SMT,Corporate Travel Management (North) Ltd,98666804,0.25,T&S UK - Public Transport
BEIS,UKRI - AHRC,06/01/2020,T&S UK - Public Transport,SMT,Corporate Travel Management (North) Ltd,98666804,136.80,T&S UK - Public Transport
BEIS,UKRI - AHRC,06/01/2020,T&S UK - Public Transport,SMT,Corporate Travel Management (North) Ltd,98666804,0.25,T&S UK - Public Transport
BEIS,UKRI - AHRC,06/01/2020,T&S UK - Public Transport,SMT,Corporate Travel Management (North) Ltd,98666804,133.00,T&S UK - Public Transport
BEIS,UKRI - AHRC,06/01/2020,T&S UK - Public Transport,SMT,Corporate Travel Management (North) Ltd,98666804,0.25,T&S UK - Public Transport
BEIS,UKRI - AHRC,06/01/2020,T&S UK - Public Transport,SMT,Corporate Travel Management (North) Ltd,98666804,12.30,T&S UK - Public Transport
BEIS,UKRI - AHRC,06/01/2020,T&S UK - Public Transport,SMT,Corporate Travel Management (North) Ltd,98666804,5.00,T&S UK - Public Transport
BEIS,UKRI - AHRC,06/01/2020,T&S UK - Public Transport,SMT,Corporate Travel Management (North) Ltd,98666804,-128.00,T&S UK - Public Transport
BEIS,UKRI - AHRC,06/01/2020,T&S UK - Public Transport,SMT,Corporate Travel Management (North) Ltd,98666804,5.00,T&S UK - Public Transport
BEIS,UKRI - AHRC,06/01/2020,T&S UK - Public Transport,SMT,Corporate Travel Management (North) Ltd,98666804,-15.50,T&S UK - Public Transport
BEIS,UKRI - AHRC,06/01/2020,T&S UK - Public Transport,SMT,Corporate Travel Management (North) Ltd,98666804,0.25,T&S UK - Public Transport
BEIS,UKRI - AHRC,06/01/2020,T&S UK - Public Transport,SMT,Corporate Travel Management (North) Ltd,98666804,153.00,T&S UK - Public Transport
BEIS,UKRI - AHRC,06/01/2020,T&S UK - Public Transport,SMT,Corporate Travel Management (North) Ltd,98666804,0.25,T&S UK - Public Transport
BEIS,UKRI - AHRC,06/01/2020,T&S UK - Public Transport,SMT,Corporate Travel Management (North) Ltd,98666804,97.80,T&S UK - Public Transport
BEIS,UKRI - AHRC,06/01/2020,T&S UK - Public Transport,SMT,Corporate Travel Management (North) Ltd,98666804,0.25,T&S UK - Public Transport
BEIS,UKRI - AHRC,06/01/2020,T&S UK - Public Transport,SMT,Corporate Travel Management (North) Ltd,98666804,133.00,T&S UK - Public Transport
BEIS,UKRI - AHRC,06/01/2020,T&S UK - Public Transport,SMT,Corporate Travel Management (North) Ltd,98666804,5.00,T&S UK - Public Transport
BEIS,UKRI - AHRC,06/01/2020,T&S UK - Public Transport,SMT,Corporate Travel Management (North) Ltd,98666804,-25.60,T&S UK - Public Transport
BEIS,UKRI - AHRC,06/01/2020,T&S UK - Public Transport,SMT,Corporate Travel Management (North) Ltd,98666804,0.25,T&S UK - Public Transport
BEIS,UKRI - AHRC,06/01/2020,T&S UK - Public Transport,SMT,Corporate Travel Management (North) Ltd,98666804,178.00,T&S UK - Public Transport
BEIS,UKRI - AHRC,06/01/2020,T&S UK - Public Transport,SMT,Corporate Travel Management (North) Ltd,98666804,0.75,T&S UK - Public Transport
BEIS,UKRI - AHRC,06/01/2020,T&S UK - Public Transport,SMT,Corporate Travel Management (North) Ltd,98666804,66.60,T&S UK - Public Transport
BEIS,UKRI - AHRC,06/01/2020,T&S UK - Public Transport,SMT,Corporate Travel Management (North) Ltd,98666804,51.00,T&S UK - Public Transport
BEIS,UKRI - AHRC,06/01/2020,T&S UK - Public Transport,SMT,Corporate Travel Management (North) Ltd,98666804,138.00,T&S UK - Public Transport
BEIS,UKRI - AHRC,06/01/2020,T&S UK - Public Transport,SMT,Corporate Travel Management (North) Ltd,98666804,0.25,T&S UK - Public Transport
BEIS,UKRI - AHRC,06/01/2020,T&S UK - Public Transport,SMT,Corporate Travel Management (North) Ltd,98666804,21.40,T&S UK - Public Transport
BEIS,UKRI - AHRC,06/01/2020,T&S UK - Public Transport,SMT,Corporate Travel Management (North) Ltd,98666804,0.25,T&S UK - Public Transport
BEIS,UKRI - AHRC,06/01/2020,T&S UK - Public Transport,SMT,Corporate Travel Management (North) Ltd,98666804,138.00,T&S UK - Public Transport
BEIS,UKRI - AHRC,06/01/2020,T&S UK - Public Transport,SMT,Corporate Travel Management (North) Ltd,98666804,-111.60,T&S UK - Public Transport
BEIS,UKRI - AHRC,06/01/2020,T&S UK - Public Transport,SMT,Corporate Travel Management (North) Ltd,98666804,0.25,T&S UK - Public Transport
BEIS,UKRI - AHRC,06/01/2020,T&S UK - Public Transport,SMT,Corporate Travel Management (North) Ltd,98666804,133.00,T&S UK - Public Transport
BEIS,UKRI - AHRC,06/01/2020,T&S UK - Public Transport,SMT,Corporate Travel Management (North) Ltd,98666804,10.00,T&S UK - Public Transport
BEIS,UKRI - AHRC,06/01/2020,T&S UK - Public Transport,SMT,Corporate Travel Management (North) Ltd,98666804,-149.10,T&S UK - Public Transport
BEIS,UKRI - AHRC,06/01/2020,T&S UK - Public Transport,SMT,Corporate Travel Management (North) Ltd,98666804,10.00,T&S UK - Public Transport
BEIS,UKRI - AHRC,06/01/2020,T&S UK - Public Transport,SMT,Corporate Travel Management (North) Ltd,98666804,-39.10,T&S UK - Public Transport
BEIS,UKRI - AHRC,06/01/2020,T&S UK - Public Transport,SMT,Corporate Travel Management (North) Ltd,98666804,-23.80,T&S UK - Public Transport
BEIS,UKRI - AHRC,06/01/2020,T&S UK - Public Transport,SMT,Corporate Travel Management (North) Ltd,98666804,10.00,T&S UK - Public Transport
BEIS,UKRI - AHRC,06/01/2020,T&S UK - Public Transport,SMT,Corporate Travel Management (North) Ltd,98666804,-66.70,T&S UK - Public Transport
BEIS,UKRI - AHRC,06/01/2020,T&S UK - Public Transport,SMT,Corporate Travel Management (North) Ltd,98666804,5.00,T&S UK - Public Transport
BEIS,UKRI - AHRC,06/01/2020,T&S UK - Public Transport,SMT,Corporate Travel Management (North) Ltd,98666804,-64.00,T&S UK - Public Transport
BEIS,UKRI - AHRC,06/01/2020,T&S UK - Public Transport,Skills Strategy,Corporate Travel Management (North) Ltd,98666804,0.25,T&S UK - Public Transport
BEIS,UKRI - AHRC,06/01/2020,T&S UK - Public Transport,Skills Strategy,Corporate Travel Management (North) Ltd,98666804,86.80,T&S UK - Public Transport
BEIS,UKRI - AHRC,06/01/2020,T&S UK - Public Transport,Skills Strategy,Corporate Travel Management (North) Ltd,98666804,0.25,T&S UK - Public Transport
BEIS,UKRI - AHRC,06/01/2020,T&S UK - Public Transport,Skills Strategy,Corporate Travel Management (North) Ltd,98666804,36.80,T&S UK - Public Transport
BEIS,UKRI - AHRC,06/01/2020,T&S UK - Public Transport,Skills Strategy,Corporate Travel Management (North) Ltd,98666804,0.25,T&S UK - Public Transport
BEIS,UKRI - AHRC,06/01/2020,T&S UK - Public Transport,Skills Strategy,Corporate Travel Management (North) Ltd,98666804,92.50,T&S UK - Public Transport
BEIS,UKRI - AHRC,06/01/2020,T&S UK - Public Transport,Skills Strategy,Corporate Travel Management (North) Ltd,98666804,0.25,T&S UK - Public Transport
BEIS,UKRI - AHRC,06/01/2020,T&S UK - Public Transport,Skills Strategy,Corporate Travel Management (North) Ltd,98666804,74.40,T&S UK - Public Transport
BEIS,UKRI - AHRC,06/01/2020,T&S UK - Public Transport,Skills Strategy,Corporate Travel Management (North) Ltd,98666804,0.25,T&S UK - Public Transport
BEIS,UKRI - AHRC,06/01/2020,T&S UK - Public Transport,Skills Strategy,Corporate Travel Management (North) Ltd,98666804,35.70,T&S UK - Public Transport
BEIS,UKRI - AHRC,06/01/2020,T&S UK - Public Transport,Skills Strategy,Corporate Travel Management (North) Ltd,98666804,0.25,T&S UK - Public Transport
BEIS,UKRI - AHRC,06/01/2020,T&S UK - Public Transport,Skills Strategy,Corporate Travel Management (North) Ltd,98666804,147.50,T&S UK - Public Transport
BEIS,UKRI - AHRC,06/01/2020,T&S UK - Public Transport,Skills Strategy,Corporate Travel Management (North) Ltd,98666804,0.25,T&S UK - Public Transport
BEIS,UKRI - AHRC,06/01/2020,T&S UK - Public Transport,Skills Strategy,Corporate Travel Management (North) Ltd,98666804,182.00,T&S UK - Public Transport
BEIS,UKRI - AHRC,06/01/2020,T&S UK - Public Transport,Skills Strategy,Corporate Travel Management (North) Ltd,98666804,0.25,T&S UK - Public Transport
BEIS,UKRI - AHRC,06/01/2020,T&S UK - Public Transport,Skills Strategy,Corporate Travel Management (North) Ltd,98666804,69.30,T&S UK - Public Transport
BEIS,UKRI - AHRC,06/01/2020,T&S UK - Public Transport,Skills Strategy,Corporate Travel Management (North) Ltd,98666804,0.25,T&S UK - Public Transport
BEIS,UKRI - AHRC,06/01/2020,T&S UK - Public Transport,Skills Strategy,Corporate Travel Management (North) Ltd,98666804,9.10,T&S UK - Public Transport
BEIS,UKRI - AHRC,06/01/2020,T&S UK - Public Transport,Skills Strategy,Corporate Travel Management (North) Ltd,98666804,0.25,T&S UK - Public Transport
BEIS,UKRI - AHRC,06/01/2020,T&S UK - Public Transport,Skills Strategy,Corporate Travel Management (North) Ltd,98666804,50.50,T&S UK - Public Transport
BEIS,UKRI - AHRC,06/01/2020,T&S UK - Mileage,SMT,Unspecified,98668443,18.00,T&S UK - Mileage
BEIS,UKRI - AHRC,06/01/2020,T&S UK - Parking Tolls Congestion Charges,SMT,Unspecified,98668443,14.40,T&S UK - Parking Tolls Congestion Charges
BEIS,UKRI - AHRC,06/01/2020,T&S UK - Public Transport,SMT,Unspecified,98668443,15.30,T&S UK - Public Transport
BEIS,UKRI - AHRC,06/01/2020,T&S UK - Subsistence,SMT,Unspecified,98668443,11.45,T&S UK - Subsistence
BEIS,UKRI - AHRC,06/01/2020,T&S UK - Subsistence,SMT,Unspecified,98668443,10.35,T&S UK - Subsistence
BEIS,UKRI - AHRC,06/01/2020,T&S UK - Mileage,SMT,Unspecified,98668444,18.00,T&S UK - Mileage
BEIS,UKRI - AHRC,06/01/2020,T&S UK - Parking Tolls Congestion Charges,SMT,Unspecified,98668444,21.90,T&S UK - Parking Tolls Congestion Charges
BEIS,UKRI - AHRC,06/01/2020,T&S UK - Subsistence,SMT,Unspecified,98668444,5.20,T&S UK - Subsistence
BEIS,UKRI - AHRC,06/01/2020,T&S UK - Subsistence,SMT,Unspecified,98668444,18.10,T&S UK - Subsistence
BEIS,UKRI - AHRC,06/01/2020,T&S UK - Subsistence,SMT,Unspecified,98668444,7.19,T&S UK - Subsistence
BEIS,UKRI - AHRC,06/01/2020,T&S UK - Subsistence,SMT,Unspecified,98668444,5.00,T&S UK - Subsistence
BEIS,UKRI - AHRC,06/01/2020,Non-staff travel and subsistance,Funds for International Collaboration (FIC 20 US),Non Employee Expenses Supplier,98668961,1749.87,Non-staff travel and subsistance
BEIS,UKRI - AHRC,06/01/2020,Non-staff travel and subsistance,Funds for International Collaboration (FIC 20 US),Non Employee Expenses Supplier,98668962,794.58,Non-staff travel and subsistance
BEIS,UKRI - AHRC,06/01/2020,Non-staff travel and subsistance,Funds for International Collaboration (FIC 20 US),Non Employee Expenses Supplier,98668963,1516.78,Non-staff travel and subsistance
BEIS,UKRI - AHRC,06/01/2020,Non-staff travel and subsistance,Funds for International Collaboration (FIC 20 US),Non Employee Expenses Supplier,98668964,1729.71,Non-staff travel and subsistance
BEIS,UKRI - AHRC,07/01/2020,T&S UK - Subsistence,International Development and Area Studies,Unspecified,98661378,4.99,T&S UK - Subsistence
BEIS,UKRI - AHRC,07/01/2020,T&S Overseas - Subsistence,International Development and Area Studies,Unspecified,98661379,30.00,T&S Overseas - Subsistence
BEIS,UKRI - AHRC,07/01/2020,T&S Overseas - Subsistence,International Development and Area Studies,Unspecified,98661379,46.86,T&S Overseas - Subsistence
BEIS,UKRI - AHRC,07/01/2020,Research Grant Expenditure,Global Challenges Research Fund (GCRF),UKRI - Economic & Social Research Council,98665156,7203.56,Research Grant Expenditure
BEIS,UKRI - AHRC,07/01/2020,T&S UK - Mileage,SMT,Unspecified,98668656,18.00,T&S UK - Mileage
BEIS,UKRI - AHRC,07/01/2020,T&S UK - Parking Tolls Congestion Charges,SMT,Unspecified,98668656,28.80,T&S UK - Parking Tolls Congestion Charges
BEIS,UKRI - AHRC,07/01/2020,T&S UK - Public Transport,SMT,Unspecified,98668656,178.00,T&S UK - Public Transport
BEIS,UKRI - AHRC,07/01/2020,T&S UK - Subsistence,SMT,Unspecified,98668656,16.10,T&S UK - Subsistence
BEIS,UKRI - AHRC,07/01/2020,T&S UK - Subsistence,SMT,Unspecified,98668656,20.72,T&S UK - Subsistence
BEIS,UKRI - AHRC,07/01/2020,T&S UK - Subsistence,SMT,Unspecified,98668656,5.81,T&S UK - Subsistence
BEIS,UKRI - AHRC,07/01/2020,T&S UK - Subsistence,SMT,Unspecified,98668656,5.00,T&S UK - Subsistence
BEIS,UKRI - AHRC,08/01/2020,T&S Overseas - Flights,Funds for International Collaboration (FIC 20 US),King's College London,98668468,1595.20,T&S Overseas - Flights
BEIS,UKRI - AHRC,08/01/2020,Consultancy Services,Digital Arts and Humanities and Creative Industries,Zeff Associates Ltd,98668852,600.00,Consultancy Services
BEIS,UKRI - AHRC,08/01/2020,Advertising & Promotion,Public and Stakeholder Engagement,Firebird Films Ltd,98668926,3576.00,Advertising & Promotion
BEIS,UKRI - AHRC,08/01/2020,Non-staff travel and subsistance,Funds for International Collaboration (FIC 20 US),Non Employee Expenses Supplier,98669314,911.42,Non-staff travel and subsistance
BEIS,UKRI - AHRC,08/01/2020,Non-staff travel and subsistance,Operations,Non Employee Expenses Supplier,98669328,28.10,Non-staff travel and subsistance
BEIS,UKRI - AHRC,08/01/2020,Non-staff travel and subsistance,Operations,Non Employee Expenses Supplier,98669329,130.48,Non-staff travel and subsistance
BEIS,UKRI - AHRC,08/01/2020,Non-staff travel and subsistance,International Partnership and Engagement,Non Employee Expenses Supplier,98669330,16.60,Non-staff travel and subsistance
BEIS,UKRI - AHRC,08/01/2020,Non-staff travel and subsistance,International Partnership and Engagement,Non Employee Expenses Supplier,98669331,158.80,Non-staff travel and subsistance
BEIS,UKRI - AHRC,08/01/2020,Catering Contracts,FIC- US,British Embassy,98670369,2754.06,Catering Contracts
BEIS,UKRI - AHRC,08/01/2020,Non-staff travel and subsistance,JPI Cultural Heritage Project,Non Employee Expenses Supplier,98670377,570.59,Non-staff travel and subsistance
BEIS,UKRI - AHRC,08/01/2020,Health & Safety (inc. Medicals & Opticians),Operations,Unspecified,98670454,98.00,Health & Safety (inc. Medicals & Opticians)
BEIS,UKRI - AHRC,09/01/2020,Meetings & Catering,Corporate Services,Calder Conference Ltd,98669448,340.00,Meetings & Catering
BEIS,UKRI - AHRC,09/01/2020,Mechanical & Electrical Maintenance,Operations,Premier Farnell UK Ltd T/A Farnell Onecall,98671393,0.68,Mechanical & Electrical Maintenance
BEIS,UKRI - AHRC,10/01/2020,Non-staff travel and subsistance,SMT,Non Employee Expenses Supplier,98671809,232.23,Non-staff travel and subsistance
BEIS,UKRI - AHRC,10/01/2020,Non-staff travel and subsistance,SMT,Non Employee Expenses Supplier,98671810,111.59,Non-staff travel and subsistance
BEIS,UKRI - AHRC,10/01/2020,Contract Staff,PSU Project Office,Alexander Mann Solutions Ltd,98671895,1118.23,Contract Staff
BEIS,UKRI - AHRC,10/01/2020,T&S UK - Parking Tolls Congestion Charges,SMT,Unspecified,98671926,8.80,T&S UK - Parking Tolls Congestion Charges
BEIS,UKRI - AHRC,10/01/2020,T&S UK - Public Transport,SMT,Unspecified,98671926,17.60,T&S UK - Public Transport
BEIS,UKRI - AHRC,10/01/2020,T&S UK - Subsistence,SMT,Unspecified,98671926,3.15,T&S UK - Subsistence
BEIS,UKRI - AHRC,10/01/2020,T&S UK - Subsistence,SMT,Unspecified,98671926,16.70,T&S UK - Subsistence
BEIS,UKRI - AHRC,10/01/2020,T&S UK - Subsistence,SMT,Unspecified,98671926,5.90,T&S UK - Subsistence
BEIS,UKRI - AHRC,10/01/2020,T&S UK - Subsistence,SMT,Unspecified,98671926,3.90,T&S UK - Subsistence
BEIS,UKRI - AHRC,10/01/2020,T&S UK - Public Transport,Digital Arts and Humanities and Creative Industries,Unspecified,98671927,55.50,T&S UK - Public Transport
BEIS,UKRI - AHRC,10/01/2020,T&S UK - Subsistence,Digital Arts and Humanities and Creative Industries,Unspecified,98671927,5.00,T&S UK - Subsistence
BEIS,UKRI - AHRC,13/01/2020,T&S UK - Public Transport,Executive Office,Unspecified,98665928,30.00,T&S UK - Public Transport
BEIS,UKRI - AHRC,13/01/2020,T&S UK - Subsistence,Executive Office,Unspecified,98665928,11.80,T&S UK - Subsistence
BEIS,UKRI - AHRC,13/01/2020,Contract Staff,PSU JRS,Alexander Mann Solutions Ltd,98673239,1369.25,Contract Staff
BEIS,UKRI - AHRC,13/01/2020,Catering Contracts,Public and Stakeholder Engagement,Cardiff University,98673483,3262.50,Catering Contracts
BEIS,UKRI - AHRC,13/01/2020,T&S UK - Mileage,SMT,Unspecified,98673664,27.00,T&S UK - Mileage
BEIS,UKRI - AHRC,13/01/2020,T&S UK - Public Transport,Public and Stakeholder Engagement,Unspecified,98673665,1.50,T&S UK - Public Transport
BEIS,UKRI - AHRC,13/01/2020,T&S UK - Subsistence,Public and Stakeholder Engagement,Unspecified,98673665,29.75,T&S UK - Subsistence
BEIS,UKRI - AHRC,13/01/2020,T&S UK - Subsistence,Public and Stakeholder Engagement,Unspecified,98673665,6.24,T&S UK - Subsistence
BEIS,UKRI - AHRC,13/01/2020,T&S UK - Subsistence,Public and Stakeholder Engagement,Unspecified,98673665,2.30,T&S UK - Subsistence
BEIS,UKRI - AHRC,14/01/2020,T&S UK - Public Transport,Digital Arts and Humanities and Creative Industries,Unspecified,98616344,9.90,T&S UK - Public Transport
BEIS,UKRI - AHRC,14/01/2020,T&S UK - Subsistence,Digital Arts and Humanities and Creative Industries,Unspecified,98616344,10.00,T&S UK - Subsistence
BEIS,UKRI - AHRC,14/01/2020,T&S UK - Public Transport,Digital Arts and Humanities and Creative Industries,Unspecified,98623670,16.50,T&S UK - Public Transport
BEIS,UKRI - AHRC,14/01/2020,Reward & Recognition Team Advances,Balance Sheet,EDENRED (UK GROUP) LTD,98626904,999.00,Reward & Recognition Team Advances
BEIS,UKRI - AHRC,14/01/2020,T&S UK - Mileage,Digital Arts and Humanities and Creative Industries,Unspecified,98630513,35.10,T&S UK - Mileage
BEIS,UKRI - AHRC,14/01/2020,T&S UK - Other Charges,Digital Arts and Humanities and Creative Industries,Unspecified,98630513,10.00,T&S UK - Other Charges
BEIS,UKRI - AHRC,14/01/2020,T&S UK - Public Transport,Digital Arts and Humanities and Creative Industries,Unspecified,98630513,38.30,T&S UK - Public Transport
BEIS,UKRI - AHRC,14/01/2020,T&S UK - Subsistence,Digital Arts and Humanities and Creative Industries,Unspecified,98630513,18.40,T&S UK - Subsistence
BEIS,UKRI - AHRC,14/01/2020,T&S UK - Subsistence,Digital Arts and Humanities and Creative Industries,Unspecified,98630513,15.00,T&S UK - Subsistence
BEIS,UKRI - AHRC,14/01/2020,T&S UK - Other Charges,Digital Arts and Humanities and Creative Industries,Unspecified,98661376,8.50,T&S UK - Other Charges
BEIS,UKRI - AHRC,14/01/2020,T&S UK - Public Transport,Digital Arts and Humanities and Creative Industries,Unspecified,98661376,79.90,T&S UK - Public Transport
BEIS,UKRI - AHRC,14/01/2020,T&S UK - Subsistence,Digital Arts and Humanities and Creative Industries,Unspecified,98661376,33.80,T&S UK - Subsistence
BEIS,UKRI - AHRC,14/01/2020,T&S UK - Subsistence,Digital Arts and Humanities and Creative Industries,Unspecified,98661376,70.75,T&S UK - Subsistence
BEIS,UKRI - AHRC,14/01/2020,T&S UK - Subsistence,Digital Arts and Humanities and Creative Industries,Unspecified,98661376,15.00,T&S UK - Subsistence
BEIS,UKRI - AHRC,14/01/2020,Cleaning & Sterilisation,Corporate Services,Banner Group Ltd,98672323,3.91,Cleaning & Sterilisation
BEIS,UKRI - AHRC,14/01/2020,Recruitment Costs,Corporate Services,Agenda Resource Management Ltd,98672358,153.91,Recruitment Costs
BEIS,UKRI - AHRC,14/01/2020,Research Grant Expenditure,Global Uncertainties Programme,UKRI - Economic & Social Research Council,98672768,-4083.40,Research Grant Expenditure
BEIS,UKRI - AHRC,14/01/2020,Research Grant Expenditure,GCRF - Programme Delivery,UKRI - Economic & Social Research Council,98672797,32218.34,Research Grant Expenditure
BEIS,UKRI - AHRC,14/01/2020,Nursery Deductions,Balance Sheet,EDENRED (UK GROUP) LTD,98672897,1903.00,Nursery Deductions
BEIS,UKRI - AHRC,14/01/2020,NI Payable Salaries,Balance Sheet,HM Revenue & Customs,98673406,43892.22,NI Payable Salaries
BEIS,UKRI - AHRC,14/01/2020,PAYE Payable Salaries,Balance Sheet,HM Revenue & Customs,98673407,40394.62,PAYE Payable Salaries
BEIS,UKRI - AHRC,14/01/2020,Student Loans,Balance Sheet,HM Revenue & Customs,98673408,4342.76,Student Loans
BEIS,UKRI - AHRC,14/01/2020,Apprenticeship Levy,Corporate Services,HM Revenue & Customs,98673409,1388.00,Apprenticeship Levy
BEIS,UKRI - AHRC,14/01/2020,Staff Training,Corporate Services,MINDSET WESSEX LTD,98673803,200.00,Staff Training
BEIS,UKRI - AHRC,14/01/2020,Non-staff travel and subsistance,"History, Heritage, Languages and Literature",Non Employee Expenses Supplier,98673817,190.70,Non-staff travel and subsistance
BEIS,UKRI - AHRC,14/01/2020,Non-staff travel and subsistance,SMT,Non Employee Expenses Supplier,98673818,137.00,Non-staff travel and subsistance
BEIS,UKRI - AHRC,14/01/2020,Non-staff travel and subsistance,SMT,Non Employee Expenses Supplier,98673819,20.00,Non-staff travel and subsistance
BEIS,UKRI - AHRC,14/01/2020,Non-staff travel and subsistance,SMT,Non Employee Expenses Supplier,98673820,532.91,Non-staff travel and subsistance
BEIS,UKRI - AHRC,14/01/2020,Non-staff travel and subsistance,SMT,Non Employee Expenses Supplier,98673821,768.91,Non-staff travel and subsistance
BEIS,UKRI - AHRC,14/01/2020,Non-staff travel and subsistance,SMT,Non Employee Expenses Supplier,98673822,202.61,Non-staff travel and subsistance
BEIS,UKRI - AHRC,14/01/2020,Non-staff travel and subsistance,SMT,Non Employee Expenses Supplier,98673823,357.81,Non-staff travel and subsistance
BEIS,UKRI - AHRC,14/01/2020,Non-staff travel and subsistance,Funds for International Collaboration (FIC 20 US),Non Employee Expenses Supplier,98673824,331.18,Non-staff travel and subsistance
BEIS,UKRI - AHRC,14/01/2020,Health & Safety (inc. Medicals & Opticians),Health and Environmental Humanities,Unspecified,98673922,66.00,Health & Safety (inc. Medicals & Opticians)
BEIS,UKRI - AHRC,14/01/2020,T&S UK - Other Charges,Health and Environmental Humanities,Unspecified,98673922,9.95,T&S UK - Other Charges
BEIS,UKRI - AHRC,14/01/2020,T&S UK - Subsistence,Health and Environmental Humanities,Unspecified,98673922,8.90,T&S UK - Subsistence
BEIS,UKRI - AHRC,15/01/2020,T&S UK - Other Charges,Executive Office,Unspecified,98658986,151.00,T&S UK - Other Charges
BEIS,UKRI - AHRC,15/01/2020,T&S UK - Vehicle Hire,Executive Office,Unspecified,98658986,64.80,T&S UK - Vehicle Hire
BEIS,UKRI - AHRC,15/01/2020,Voluntary Deductions,Balance Sheet,Chargive,98673410,570.83,Voluntary Deductions
BEIS,UKRI - AHRC,15/01/2020,Union Deductions,Balance Sheet,PCS Union,98673412,66.45,Union Deductions
BEIS,UKRI - AHRC,15/01/2020,Ees Pension Deductions - JSS,Balance Sheet,RCPS Pension,98673413,10159.10,Ees Pension Deductions - JSS
BEIS,UKRI - AHRC,15/01/2020,Ers Pension Deductions - JSS,Balance Sheet,RCPS Pension,98673414,45876.96,Ers Pension Deductions - JSS
BEIS,UKRI - AHRC,15/01/2020,Partnership Pension Deductions,Balance Sheet,Scottish Widows,98673415,369.68,Partnership Pension Deductions
BEIS,UKRI - AHRC,15/01/2020,Ers Pension Deductions - JSS,Balance Sheet,Cabinet Office RM Shared Services,98673416,12.83,Ers Pension Deductions - JSS
BEIS,UKRI - AHRC,15/01/2020,Ees Pension Deductions - MyCSP,Balance Sheet,Cabinet Office RM Shared Services,98673417,5475.05,Ees Pension Deductions - MyCSP
BEIS,UKRI - AHRC,15/01/2020,Ers Pension Deductions - MyCSP,Balance Sheet,Cabinet Office RM Shared Services,98673418,27532.10,Ers Pension Deductions - MyCSP
BEIS,UKRI - AHRC,15/01/2020,Ees Pension Deductions - MRC,Balance Sheet,UKRI - Medical Research Council,98673419,134.32,Ees Pension Deductions - MRC
BEIS,UKRI - AHRC,15/01/2020,Ers Pension Deductions - MRC,Balance Sheet,UKRI - Medical Research Council,98673420,309.96,Ers Pension Deductions - MRC
BEIS,UKRI - AHRC,15/01/2020,Non-staff travel and subsistance,"History, Heritage, Languages and Literature",Non Employee Expenses Supplier,98675396,54.90,Non-staff travel and subsistance
BEIS,UKRI - AHRC,15/01/2020,Non-staff travel and subsistance,Newton Programme,Non Employee Expenses Supplier,98675397,384.93,Non-staff travel and subsistance
BEIS,UKRI - AHRC,15/01/2020,Non-staff travel and subsistance,Newton Programme,Non Employee Expenses Supplier,98675398,15.64,Non-staff travel and subsistance
BEIS,UKRI - AHRC,15/01/2020,T&S UK - Public Transport,Public and Stakeholder Engagement,Unspecified,98675525,17.10,T&S UK - Public Transport
BEIS,UKRI - AHRC,15/01/2020,T&S UK - Public Transport,Public and Stakeholder Engagement,Unspecified,98675525,10.00,T&S UK - Public Transport
BEIS,UKRI - AHRC,15/01/2020,T&S UK - Subsistence,Public and Stakeholder Engagement,Unspecified,98675525,20.20,T&S UK - Subsistence
BEIS,UKRI - AHRC,15/01/2020,T&S UK - Subsistence,Public and Stakeholder Engagement,Unspecified,98675525,38.15,T&S UK - Subsistence
BEIS,UKRI - AHRC,15/01/2020,T&S UK - Subsistence,Public and Stakeholder Engagement,Unspecified,98675525,25.35,T&S UK - Subsistence
BEIS,UKRI - AHRC,15/01/2020,T&S UK - Subsistence,Public and Stakeholder Engagement,Unspecified,98675525,15.00,T&S UK - Subsistence
BEIS,UKRI - AHRC,16/01/2020,Printing & Stationery,Operations,Banner Group Ltd,98675636,10.97,Printing & Stationery
BEIS,UKRI - AHRC,16/01/2020,Hospitality,Public and Stakeholder Engagement,Hamer Inc.Ltd T/A Impact Catering,98675705,3571.80,Hospitality
BEIS,UKRI - AHRC,16/01/2020,T&S Overseas - Accommodation,GCRF - Programme Delivery,Unspecified,98675950,128.29,T&S Overseas - Accommodation
BEIS,UKRI - AHRC,16/01/2020,T&S Overseas - Mileage,GCRF - Programme Delivery,Unspecified,98675950,80.37,T&S Overseas - Mileage
BEIS,UKRI - AHRC,16/01/2020,T&S Overseas - Parking Tolls Congestion Charges,GCRF - Programme Delivery,Unspecified,98675950,12.50,T&S Overseas - Parking Tolls Congestion Charges
BEIS,UKRI - AHRC,16/01/2020,T&S Overseas - Subsistence,GCRF - Programme Delivery,Unspecified,98675950,15.00,T&S Overseas - Subsistence
BEIS,UKRI - AHRC,16/01/2020,T&S Overseas - Subsistence,GCRF - Programme Delivery,Unspecified,98675950,14.54,T&S Overseas - Subsistence
BEIS,UKRI - AHRC,16/01/2020,T&S Overseas - Subsistence,GCRF - Programme Delivery,Unspecified,98675950,10.99,T&S Overseas - Subsistence
BEIS,UKRI - AHRC,16/01/2020,T&S Overseas - Subsistence,GCRF - Programme Delivery,Unspecified,98675950,16.10,T&S Overseas - Subsistence
BEIS,UKRI - AHRC,17/01/2020,T&S UK - Parking Tolls Congestion Charges,Strategy and Evidence,Unspecified,98668657,7.70,T&S UK - Parking Tolls Congestion Charges
BEIS,UKRI - AHRC,17/01/2020,T&S UK - Public Transport,Industrial Strategy Challenge Fund (ISCF) - Creative Clusters,Unspecified,98668657,18.30,T&S UK - Public Transport
BEIS,UKRI - AHRC,17/01/2020,T&S UK - Public Transport,Strategy and Evidence,Unspecified,98668657,7.30,T&S UK - Public Transport
BEIS,UKRI - AHRC,17/01/2020,T&S UK - Subsistence,Industrial Strategy Challenge Fund (ISCF) - Creative Clusters,Unspecified,98668657,40.73,T&S UK - Subsistence
BEIS,UKRI - AHRC,17/01/2020,T&S UK - Subsistence,Industrial Strategy Challenge Fund (ISCF) - Creative Clusters,Unspecified,98668657,26.82,T&S UK - Subsistence
BEIS,UKRI - AHRC,17/01/2020,T&S UK - Subsistence,Industrial Strategy Challenge Fund (ISCF) - Creative Clusters,Unspecified,98668657,5.00,T&S UK - Subsistence
BEIS,UKRI - AHRC,17/01/2020,Contract Staff,PSU Project Office,Alexander Mann Solutions Ltd,98674841,1677.35,Contract Staff
BEIS,UKRI - AHRC,17/01/2020,Non-staff travel and subsistance,HR,Non Employee Expenses Supplier,98674874,1018.60,Non-staff travel and subsistance
BEIS,UKRI - AHRC,17/01/2020,T&S UK - Other Charges,Newton Programme Delivery,Unspecified,98676292,2.99,T&S UK - Other Charges
BEIS,UKRI - AHRC,17/01/2020,T&S UK - Public Transport,International Development and Area Studies,Unspecified,98676292,2.10,T&S UK - Public Transport
BEIS,UKRI - AHRC,17/01/2020,T&S UK - Subsistence,GCRF - Programme Delivery,Unspecified,98676292,8.90,T&S UK - Subsistence
BEIS,UKRI - AHRC,17/01/2020,T&S UK - Subsistence,International Development and Area Studies,Unspecified,98676292,9.83,T&S UK - Subsistence
BEIS,UKRI - AHRC,17/01/2020,T&S UK - Other Charges,GCRF - Programme Delivery,Unspecified,98676293,2.00,T&S UK - Other Charges
BEIS,UKRI - AHRC,17/01/2020,T&S UK - Public Transport,GCRF - Programme Delivery,Unspecified,98676293,2.10,T&S UK - Public Transport
BEIS,UKRI - AHRC,17/01/2020,T&S UK - Subsistence,GCRF - Programme Delivery,Unspecified,98676293,5.84,T&S UK - Subsistence
BEIS,UKRI - AHRC,20/01/2020,Advertising & Promotion,Public and Stakeholder Engagement,Unspecified,98674803,1200.00,Advertising & Promotion
BEIS,UKRI - AHRC,20/01/2020,T&S UK - Public Transport,Public and Stakeholder Engagement,Unspecified,98676677,1.50,T&S UK - Public Transport
BEIS,UKRI - AHRC,20/01/2020,T&S UK - Public Transport,Public and Stakeholder Engagement,Unspecified,98676677,5.70,T&S UK - Public Transport
BEIS,UKRI - AHRC,20/01/2020,T&S UK - Subsistence,Public and Stakeholder Engagement,Unspecified,98676677,31.10,T&S UK - Subsistence
BEIS,UKRI - AHRC,20/01/2020,T&S UK - Subsistence,Public and Stakeholder Engagement,Unspecified,98676677,7.44,T&S UK - Subsistence
BEIS,UKRI - AHRC,20/01/2020,T&S UK - Subsistence,Public and Stakeholder Engagement,Unspecified,98676677,3.20,T&S UK - Subsistence
BEIS,UKRI - AHRC,20/01/2020,T&S UK - Mileage,SMT,Unspecified,98676678,20.70,T&S UK - Mileage
BEIS,UKRI - AHRC,20/01/2020,T&S UK - Parking Tolls Congestion Charges,Public and Stakeholder Engagement,Unspecified,98676679,9.00,T&S UK - Parking Tolls Congestion Charges
BEIS,UKRI - AHRC,20/01/2020,T&S UK - Public Transport,Public and Stakeholder Engagement,Unspecified,98676679,5.60,T&S UK - Public Transport
BEIS,UKRI - AHRC,20/01/2020,T&S UK - Subsistence,Public and Stakeholder Engagement,Unspecified,98676679,29.73,T&S UK - Subsistence
BEIS,UKRI - AHRC,20/01/2020,Recruitment Costs,Corporate Services,Onefix Recruitment Ltd,98677259,150.00,Recruitment Costs
BEIS,UKRI - AHRC,20/01/2020,Non-staff travel and subsistance,Funds for International Collaboration (FIC 20 US),Non Employee Expenses Supplier,98677262,677.34,Non-staff travel and subsistance
BEIS,UKRI - AHRC,20/01/2020,Non-staff travel and subsistance,Funds for International Collaboration (FIC 20 US),Non Employee Expenses Supplier,98677263,771.96,Non-staff travel and subsistance
BEIS,UKRI - AHRC,20/01/2020,Non-staff travel and subsistance,Funds for International Collaboration (FIC 20 US),Non Employee Expenses Supplier,98677264,971.95,Non-staff travel and subsistance
BEIS,UKRI - AHRC,20/01/2020,Non-staff travel and subsistance,Funds for International Collaboration (FIC 20 US),Non Employee Expenses Supplier,98677265,1024.19,Non-staff travel and subsistance
BEIS,UKRI - AHRC,20/01/2020,Non-staff travel and subsistance,Funds for International Collaboration (FIC 20 US),Non Employee Expenses Supplier,98677266,981.32,Non-staff travel and subsistance
BEIS,UKRI - AHRC,21/01/2020,Provision for Early Retirement Liability,Corporate Services,RCPS Pension,98650536,872.03,Provision for Early Retirement Liability
BEIS,UKRI - AHRC,21/01/2020,Provision for Early Retirement Liability,Corporate Services,RCPS Pension,98661818,46506.13,Provision for Early Retirement Liability
BEIS,UKRI - AHRC,21/01/2020,Research Grant Expenditure,Global Challenges Research Fund (GCRF),UKRI - Medical Research Council,98662581,9978.27,Research Grant Expenditure
BEIS,UKRI - AHRC,21/01/2020,Provision for Early Retirement Liability,Corporate Services,RCPS Pension,98666785,872.03,Provision for Early Retirement Liability
BEIS,UKRI - AHRC,21/01/2020,T&S UK - Accommodation,Infrastruture Roadmap,Unspecified,98670455,10.23,T&S UK - Accommodation
BEIS,UKRI - AHRC,21/01/2020,T&S UK - Public Transport,Infrastruture Roadmap,Unspecified,98670455,51.16,T&S UK - Public Transport
BEIS,UKRI - AHRC,21/01/2020,T&S UK - Public Transport,Infrastruture Roadmap,Unspecified,98670455,15.32,T&S UK - Public Transport
BEIS,UKRI - AHRC,21/01/2020,T&S UK - Subsistence,Infrastruture Roadmap,Unspecified,98670455,6.82,T&S UK - Subsistence
BEIS,UKRI - AHRC,21/01/2020,T&S UK - Subsistence,Infrastruture Roadmap,Unspecified,98670455,42.63,T&S UK - Subsistence
BEIS,UKRI - AHRC,21/01/2020,T&S UK - Subsistence,Infrastruture Roadmap,Unspecified,98670455,16.11,T&S UK - Subsistence
BEIS,UKRI - AHRC,21/01/2020,T&S UK - Subsistence,Infrastruture Roadmap,Unspecified,98670455,4.99,T&S UK - Subsistence
BEIS,UKRI - AHRC,21/01/2020,Research Grant Expenditure,Global Challenges Research Fund (GCRF),UKRI - Medical Research Council,98676420,-8331.63,Research Grant Expenditure
BEIS,UKRI - AHRC,21/01/2020,Research Grant Expenditure,Global Challenges Research Fund (GCRF),UKRI - Medical Research Council,98676421,8331.63,Research Grant Expenditure
BEIS,UKRI - AHRC,21/01/2020,T&S UK - Public Transport,Digital Arts and Humanities and Creative Industries,Unspecified,98677645,170.34,T&S UK - Public Transport
BEIS,UKRI - AHRC,21/01/2020,T&S UK - Subsistence,Digital Arts and Humanities and Creative Industries,Unspecified,98677645,6.29,T&S UK - Subsistence
BEIS,UKRI - AHRC,21/01/2020,T&S UK - Subsistence,Digital Arts and Humanities and Creative Industries,Unspecified,98677645,25.85,T&S UK - Subsistence
BEIS,UKRI - AHRC,21/01/2020,T&S UK - Subsistence,Digital Arts and Humanities and Creative Industries,Unspecified,98677645,11.50,T&S UK - Subsistence
BEIS,UKRI - AHRC,21/01/2020,T&S UK - Subsistence,Digital Arts and Humanities and Creative Industries,Unspecified,98677645,10.00,T&S UK - Subsistence
BEIS,UKRI - AHRC,21/01/2020,Health & Safety (inc. Medicals & Opticians),SMT,Unspecified,98677646,36.90,Health & Safety (inc. Medicals & Opticians)
BEIS,UKRI - AHRC,21/01/2020,T&S UK - Public Transport,SMT,Unspecified,98677646,55.00,T&S UK - Public Transport
BEIS,UKRI - AHRC,21/01/2020,T&S UK - Subsistence,SMT,Unspecified,98677646,17.40,T&S UK - Subsistence
BEIS,UKRI - AHRC,21/01/2020,T&S UK - Subsistence,SMT,Unspecified,98677646,10.00,T&S UK - Subsistence
BEIS,UKRI - AHRC,21/01/2020,T&S UK - Subsistence,SMT,Unspecified,98677646,7.20,T&S UK - Subsistence
BEIS,UKRI - AHRC,21/01/2020,T&S UK - Other Charges,SMT,Unspecified,98677647,3.20,T&S UK - Other Charges
BEIS,UKRI - AHRC,21/01/2020,T&S UK - Parking Tolls Congestion Charges,SMT,Unspecified,98677647,21.10,T&S UK - Parking Tolls Congestion Charges
BEIS,UKRI - AHRC,21/01/2020,T&S UK - Public Transport,SMT,Unspecified,98677647,17.00,T&S UK - Public Transport
BEIS,UKRI - AHRC,21/01/2020,T&S UK - Subsistence,SMT,Unspecified,98677647,5.20,T&S UK - Subsistence
BEIS,UKRI - AHRC,21/01/2020,T&S UK - Subsistence,SMT,Unspecified,98677647,5.20,T&S UK - Subsistence
BEIS,UKRI - AHRC,21/01/2020,T&S UK - Subsistence,SMT,Unspecified,98677647,7.15,T&S UK - Subsistence
BEIS,UKRI - AHRC,21/01/2020,Non-staff travel and subsistance,Operations,Non Employee Expenses Supplier,98677973,86.54,Non-staff travel and subsistance
BEIS,UKRI - AHRC,21/01/2020,Non-staff travel and subsistance,Skills Strategy,Non Employee Expenses Supplier,98677974,130.30,Non-staff travel and subsistance
BEIS,UKRI - AHRC,21/01/2020,Non-staff travel and subsistance,"History, Heritage, Languages and Literature",Non Employee Expenses Supplier,98677975,56.70,Non-staff travel and subsistance
BEIS,UKRI - AHRC,21/01/2020,Non-staff travel and subsistance,Public and Stakeholder Engagement,Non Employee Expenses Supplier,98677976,37.67,Non-staff travel and subsistance
BEIS,UKRI - AHRC,21/01/2020,Non-staff travel and subsistance,"History, Heritage, Languages and Literature",Non Employee Expenses Supplier,98677977,213.53,Non-staff travel and subsistance
BEIS,UKRI - AHRC,21/01/2020,Non-staff travel and subsistance,GCRF - Programme Delivery,Non Employee Expenses Supplier,98677978,2597.72,Non-staff travel and subsistance
BEIS,UKRI - AHRC,22/01/2020,Training Awards - Postgraduates,BGP Award,"Royal Holloway, University of London",98672971,587482.88,Training Awards - Postgraduates
BEIS,UKRI - AHRC,22/01/2020,Training Awards - Postgraduates,BGP Award,University of the West of England,98672972,103456.51,Training Awards - Postgraduates
BEIS,UKRI - AHRC,22/01/2020,Training Awards - Postgraduates,BGP Award,University of Hull,98672973,77592.38,Training Awards - Postgraduates
BEIS,UKRI - AHRC,22/01/2020,Training Awards - Postgraduates,BGP Award,University College London,98672974,112314.83,Training Awards - Postgraduates
BEIS,UKRI - AHRC,22/01/2020,Training Awards - Postgraduates,BGP Award,University College London,98672975,821424.96,Training Awards - Postgraduates
BEIS,UKRI - AHRC,22/01/2020,Training Awards - Postgraduates,BGP Award,University of Oxford,98672976,620739.00,Training Awards - Postgraduates
BEIS,UKRI - AHRC,22/01/2020,Training Awards - Postgraduates,BGP Award,University of Glasgow,98672977,620739.00,Training Awards - Postgraduates
BEIS,UKRI - AHRC,22/01/2020,Training Awards - Postgraduates,BGP Award,University of Newcastle Upon Tyne,98672978,487269.18,Training Awards - Postgraduates
BEIS,UKRI - AHRC,22/01/2020,Training Awards - Postgraduates,BGP Award,University of Bristol GRANT,98672979,620739.00,Training Awards - Postgraduates
BEIS,UKRI - AHRC,22/01/2020,Training Awards - Postgraduates,BGP Award,University of Glasgow,98672980,78273.78,Training Awards - Postgraduates
BEIS,UKRI - AHRC,22/01/2020,Training Awards - Postgraduates,BGP Award,Northumbria University,98672981,51728.25,Training Awards - Postgraduates
BEIS,UKRI - AHRC,22/01/2020,Training Awards - Postgraduates,BGP Award,The University of Manchester,98672982,620739.00,Training Awards - Postgraduates
BEIS,UKRI - AHRC,22/01/2020,Training Awards - Postgraduates,BGP Award,University of Cambridge,98672983,623336.60,Training Awards - Postgraduates
BEIS,UKRI - AHRC,22/01/2020,Training Awards - Postgraduates,BGP Award,University of Reading,98672984,97300.50,Training Awards - Postgraduates
BEIS,UKRI - AHRC,22/01/2020,Training Awards - Postgraduates,BGP Award,University of Sussex,98672985,12361.39,Training Awards - Postgraduates
BEIS,UKRI - AHRC,22/01/2020,Training Awards - Postgraduates,BGP Award,University of Sussex,98672985,739796.93,Training Awards - Postgraduates
BEIS,UKRI - AHRC,22/01/2020,Training Awards - Postgraduates,BGP Award,University of Nottingham,98672986,662895.71,Training Awards - Postgraduates
BEIS,UKRI - AHRC,22/01/2020,Training Awards - Postgraduates,BGP Award,University of York,98672987,835787.25,Training Awards - Postgraduates
BEIS,UKRI - AHRC,22/01/2020,Training Awards - Postgraduates,BGP Award,Royal College of Art,98672988,102639.39,Training Awards - Postgraduates
BEIS,UKRI - AHRC,22/01/2020,Training Awards - Postgraduates,Collabrative Doctoral Grants - Block Payment,University of Liverpool,98672989,5040.25,Training Awards - Postgraduates
BEIS,UKRI - AHRC,22/01/2020,Training Awards - Postgraduates,Collabrative Doctoral Grants - Block Payment,University of Central Lancashire,98672990,5064.00,Training Awards - Postgraduates
BEIS,UKRI - AHRC,22/01/2020,Training Awards - Postgraduates,Collabrative Doctoral Grants - Block Payment,University of St Andrews,98672991,2532.01,Training Awards - Postgraduates
BEIS,UKRI - AHRC,22/01/2020,Training Awards - Postgraduates,Collabrative Doctoral Grants - Block Payment,University of Glasgow,98672992,2532.01,Training Awards - Postgraduates
BEIS,UKRI - AHRC,22/01/2020,Training Awards - Postgraduates,Collabrative Doctoral Grants - Block Payment,University of Glasgow,98672993,2532.01,Training Awards - Postgraduates
BEIS,UKRI - AHRC,22/01/2020,Training Awards - Postgraduates,Collabrative Doctoral Grants - Block Payment,University of Liverpool,98672994,5064.00,Training Awards - Postgraduates
BEIS,UKRI - AHRC,22/01/2020,Training Awards - Postgraduates,Collabrative Doctoral Grants - Block Payment,University of Sheffield,98672995,2532.01,Training Awards - Postgraduates
BEIS,UKRI - AHRC,22/01/2020,Training Awards - Postgraduates,Collabrative Doctoral Grants - Block Payment,University of Huddersfield,98672996,2532.01,Training Awards - Postgraduates
BEIS,UKRI - AHRC,22/01/2020,Training Awards - Postgraduates,Collabrative Doctoral Grants - Block Payment,University College London,98672997,2782.01,Training Awards - Postgraduates
BEIS,UKRI - AHRC,22/01/2020,Training Awards - Postgraduates,Collabrative Doctoral Grants - Block Payment,University of York,98672998,5064.00,Training Awards - Postgraduates
BEIS,UKRI - AHRC,22/01/2020,Training Awards - Postgraduates,Collabrative Doctoral Grants - Block Payment,Coventry University,98672999,2532.01,Training Awards - Postgraduates
BEIS,UKRI - AHRC,22/01/2020,Training Awards - Postgraduates,Collabrative Doctoral Grants - Block Payment,University of Liverpool,98673000,5064.00,Training Awards - Postgraduates
BEIS,UKRI - AHRC,22/01/2020,Training Awards - Postgraduates,Collabrative Doctoral Grants - Block Payment,University of Nottingham,98673001,2532.01,Training Awards - Postgraduates
BEIS,UKRI - AHRC,22/01/2020,Training Awards - Postgraduates,Collabrative Doctoral Grants - Block Payment,University of the Highlands and Islands,98673002,2532.01,Training Awards - Postgraduates
BEIS,UKRI - AHRC,22/01/2020,Training Awards - Postgraduates,Collabrative Doctoral Grants - Block Payment,University College London,98673003,2782.01,Training Awards - Postgraduates
BEIS,UKRI - AHRC,22/01/2020,Training Awards - Postgraduates,Collabrative Doctoral Grants - Block Payment,University of Durham,98673004,2532.01,Training Awards - Postgraduates
BEIS,UKRI - AHRC,22/01/2020,Training Awards - Postgraduates,Collabrative Doctoral Grants - Block Payment,University of Liverpool,98673005,7596.01,Training Awards - Postgraduates
BEIS,UKRI - AHRC,22/01/2020,Training Awards - Postgraduates,Collabrative Doctoral Grants - Block Payment,London South Bank University,98673006,2782.01,Training Awards - Postgraduates
BEIS,UKRI - AHRC,22/01/2020,Training Awards - Postgraduates,Collabrative Doctoral Grants - Block Payment,University of Nottingham,98673007,2532.01,Training Awards - Postgraduates
BEIS,UKRI - AHRC,22/01/2020,Training Awards - Postgraduates,Collabrative Doctoral Grants - Block Payment,Queen Mary University of London,98673008,2782.01,Training Awards - Postgraduates
BEIS,UKRI - AHRC,22/01/2020,Training Awards - Postgraduates,Collabrative Doctoral Grants - Block Payment,"Royal Holloway, University of London",98673009,2782.01,Training Awards - Postgraduates
BEIS,UKRI - AHRC,22/01/2020,Training Awards - Postgraduates,Collabrative Doctoral Grants - Block Payment,Queen Mary University of London,98673010,2782.01,Training Awards - Postgraduates
BEIS,UKRI - AHRC,22/01/2020,Training Awards - Postgraduates,Collabrative Doctoral Grants - Block Payment,"Royal Holloway, University of London",98673011,2782.01,Training Awards - Postgraduates
BEIS,UKRI - AHRC,22/01/2020,Training Awards - Postgraduates,Collabrative Doctoral Grants - Block Payment,University of York,98673012,2532.01,Training Awards - Postgraduates
BEIS,UKRI - AHRC,22/01/2020,Training Awards - Postgraduates,Collabrative Doctoral Grants - Block Payment,University of Warwick,98673013,2532.01,Training Awards - Postgraduates
BEIS,UKRI - AHRC,22/01/2020,Training Awards - Postgraduates,Collabrative Doctoral Grants - Block Payment,Birkbeck College,98673014,2782.01,Training Awards - Postgraduates
BEIS,UKRI - AHRC,22/01/2020,Training Awards - Postgraduates,Collabrative Doctoral Grants - Block Payment,University of Cambridge,98673015,2532.01,Training Awards - Postgraduates
BEIS,UKRI - AHRC,22/01/2020,Training Awards - Postgraduates,Collabrative Doctoral Grants - Block Payment,University of Kent,98673016,2532.01,Training Awards - Postgraduates
BEIS,UKRI - AHRC,22/01/2020,Training Awards - Postgraduates,Collabrative Doctoral Grants - Block Payment,University of Lincoln,98673017,2532.01,Training Awards - Postgraduates
BEIS,UKRI - AHRC,22/01/2020,Training Awards - Postgraduates,Collabrative Doctoral Grants - Block Payment,University of Brighton,98673018,2532.01,Training Awards - Postgraduates
BEIS,UKRI - AHRC,22/01/2020,Training Awards - Postgraduates,Collabrative Doctoral Grants - Block Payment,Swansea University,98673019,2532.01,Training Awards - Postgraduates
BEIS,UKRI - AHRC,22/01/2020,Training Awards - Postgraduates,Collabrative Doctoral Grants - Block Payment,Bath Spa University,98673020,2532.01,Training Awards - Postgraduates
BEIS,UKRI - AHRC,22/01/2020,Training Awards - Postgraduates,Collabrative Doctoral Grants - Block Payment,University of Leeds,98673021,2532.02,Training Awards - Postgraduates
BEIS,UKRI - AHRC,22/01/2020,Training Awards - Postgraduates,Collabrative Doctoral Grants - Block Payment,University of Brighton,98673022,2532.01,Training Awards - Postgraduates
BEIS,UKRI - AHRC,22/01/2020,Training Awards - Postgraduates,Collabrative Doctoral Grants - Block Payment,University of Leeds,98673023,2532.01,Training Awards - Postgraduates
BEIS,UKRI - AHRC,22/01/2020,Training Awards - Postgraduates,Collabrative Doctoral Grants - Block Payment,University of Durham,98673024,2532.01,Training Awards - Postgraduates
BEIS,UKRI - AHRC,22/01/2020,Training Awards - Postgraduates,Collabrative Doctoral Grants - Block Payment,Manchester Metropolitan University,98673025,2532.01,Training Awards - Postgraduates
BEIS,UKRI - AHRC,22/01/2020,Training Awards - Postgraduates,Collabrative Doctoral Grants - Block Payment,University of Durham,98673026,2531.96,Training Awards - Postgraduates
BEIS,UKRI - AHRC,22/01/2020,Training Awards - Postgraduates,Collabrative Doctoral Grants - Block Payment,University of Reading,98673027,2532.01,Training Awards - Postgraduates
BEIS,UKRI - AHRC,22/01/2020,Training Awards - Postgraduates,Collabrative Doctoral Grants - Block Payment,University of Bristol GRANT,98673028,2532.01,Training Awards - Postgraduates
BEIS,UKRI - AHRC,22/01/2020,Training Awards - Postgraduates,Collabrative Doctoral Grants - Block Payment,Royal College of Art,98673029,2782.01,Training Awards - Postgraduates
BEIS,UKRI - AHRC,22/01/2020,Training Awards - Postgraduates,Collabrative Doctoral Grants - Block Payment,University of Newcastle Upon Tyne,98673030,2532.01,Training Awards - Postgraduates
BEIS,UKRI - AHRC,22/01/2020,Training Awards - Postgraduates,Collabrative Doctoral Grants - Block Payment,University of Bedfordshire,98673031,2532.01,Training Awards - Postgraduates
BEIS,UKRI - AHRC,22/01/2020,Training Awards - Postgraduates,Collabrative Doctoral Grants - Block Payment,Guildhall School of Music & Drama,98673032,2782.01,Training Awards - Postgraduates
BEIS,UKRI - AHRC,22/01/2020,Training Awards - Postgraduates,Collabrative Doctoral Grants - Block Payment,The University of Manchester,98673033,2532.01,Training Awards - Postgraduates
BEIS,UKRI - AHRC,22/01/2020,Training Awards - Postgraduates,Collabrative Doctoral Grants - Block Payment,University of Glasgow,98673034,2532.01,Training Awards - Postgraduates
BEIS,UKRI - AHRC,22/01/2020,Training Awards - Postgraduates,Collabrative Doctoral Grants - Block Payment,University College London,98673035,2782.01,Training Awards - Postgraduates
BEIS,UKRI - AHRC,22/01/2020,Training Awards - Postgraduates,Collabrative Doctoral Grants - Block Payment,University of Leicester,98673036,2532.01,Training Awards - Postgraduates
BEIS,UKRI - AHRC,22/01/2020,Training Awards - Postgraduates,Collabrative Doctoral Grants - Block Payment,The University of Manchester,98673037,2532.01,Training Awards - Postgraduates
BEIS,UKRI - AHRC,22/01/2020,Training Awards - Postgraduates,Collabrative Doctoral Grants - Block Payment,Heriot Watt University,98673038,2532.01,Training Awards - Postgraduates
BEIS,UKRI - AHRC,22/01/2020,Training Awards - Postgraduates,Collabrative Doctoral Grants - Block Payment,University of Cambridge,98673039,2532.01,Training Awards - Postgraduates
BEIS,UKRI - AHRC,22/01/2020,Training Awards - Postgraduates,Collabrative Doctoral Grants - Block Payment,University of Northampton,98673040,2532.01,Training Awards - Postgraduates
BEIS,UKRI - AHRC,22/01/2020,Training Awards - Postgraduates,Collabrative Doctoral Grants - Block Payment,Queen Mary University of London,98673041,2782.01,Training Awards - Postgraduates
BEIS,UKRI - AHRC,22/01/2020,Training Awards - Postgraduates,Collabrative Doctoral Grants - Block Payment,University of York,98673042,2532.01,Training Awards - Postgraduates
BEIS,UKRI - AHRC,22/01/2020,Training Awards - Postgraduates,Collabrative Doctoral Grants - Block Payment,University of Leeds,98673043,2532.01,Training Awards - Postgraduates
BEIS,UKRI - AHRC,22/01/2020,Training Awards - Postgraduates,Collabrative Doctoral Grants - Block Payment,"City, University of London",98673044,2782.01,Training Awards - Postgraduates
BEIS,UKRI - AHRC,22/01/2020,Training Awards - Postgraduates,Collabrative Doctoral Grants - Block Payment,University of Bradford,98673045,4963.75,Training Awards - Postgraduates
BEIS,UKRI - AHRC,22/01/2020,Training Awards - Postgraduates,Collabrative Doctoral Grants - Block Payment,Birkbeck College,98673046,2782.01,Training Awards - Postgraduates
BEIS,UKRI - AHRC,22/01/2020,Training Awards - Postgraduates,Collabrative Doctoral Grants - Block Payment,University of Bristol GRANT,98673047,2532.01,Training Awards - Postgraduates
BEIS,UKRI - AHRC,22/01/2020,Training Awards - Postgraduates,Collabrative Doctoral Grants - Block Payment,Queen Mary University of London,98673048,2782.01,Training Awards - Postgraduates
BEIS,UKRI - AHRC,22/01/2020,Training Awards - Postgraduates,Collabrative Doctoral Grants - Block Payment,University of Edinburgh,98673049,2532.01,Training Awards - Postgraduates
BEIS,UKRI - AHRC,22/01/2020,Training Awards - Postgraduates,Collabrative Doctoral Grants - Block Payment,"SOAS, University of London",98673050,2782.01,Training Awards - Postgraduates
BEIS,UKRI - AHRC,22/01/2020,Training Awards - Postgraduates,Collabrative Doctoral Grants - Block Payment,University College London,98673051,2782.01,Training Awards - Postgraduates
BEIS,UKRI - AHRC,22/01/2020,Training Awards - Postgraduates,Collabrative Doctoral Grants - Block Payment,University of Edinburgh,98673052,5057.75,Training Awards - Postgraduates
BEIS,UKRI - AHRC,22/01/2020,Training Awards - Postgraduates,Collabrative Doctoral Grants - Block Payment,University of Oxford,98673053,5064.00,Training Awards - Postgraduates
BEIS,UKRI - AHRC,22/01/2020,Training Awards - Postgraduates,Collabrative Doctoral Grants - Block Payment,Nottingham Trent University,98673054,5064.00,Training Awards - Postgraduates
BEIS,UKRI - AHRC,22/01/2020,Training Awards - Postgraduates,Collabrative Doctoral Grants - Block Payment,"Royal Holloway, University of London",98673055,5564.00,Training Awards - Postgraduates
BEIS,UKRI - AHRC,22/01/2020,Training Awards - Postgraduates,Collabrative Doctoral Grants - Block Payment,Nottingham Trent University,98673056,5064.00,Training Awards - Postgraduates
BEIS,UKRI - AHRC,22/01/2020,Training Awards - Postgraduates,Collabrative Doctoral Grants - Block Payment,University of Sheffield,98673057,5543.90,Training Awards - Postgraduates
BEIS,UKRI - AHRC,22/01/2020,Training Awards - Postgraduates,Collabrative Doctoral Grants - Block Payment,University of Kent,98673058,5064.00,Training Awards - Postgraduates
BEIS,UKRI - AHRC,22/01/2020,Training Awards - Postgraduates,Collabrative Doctoral Grants - Block Payment,Birkbeck College,98673059,5564.00,Training Awards - Postgraduates
BEIS,UKRI - AHRC,22/01/2020,Training Awards - Postgraduates,Collabrative Doctoral Grants - Block Payment,University of Wolverhampton,98673060,5064.00,Training Awards - Postgraduates
BEIS,UKRI - AHRC,22/01/2020,Training Awards - Postgraduates,Collabrative Doctoral Grants - Block Payment,University of Edinburgh,98673061,5064.00,Training Awards - Postgraduates
BEIS,UKRI - AHRC,22/01/2020,Training Awards - Postgraduates,Collabrative Doctoral Grants - Block Payment,University of Bristol GRANT,98673062,5064.00,Training Awards - Postgraduates
BEIS,UKRI - AHRC,22/01/2020,Training Awards - Postgraduates,Collabrative Doctoral Grants - Block Payment,University of Edinburgh,98673063,5064.00,Training Awards - Postgraduates
BEIS,UKRI - AHRC,22/01/2020,Training Awards - Postgraduates,Collabrative Doctoral Grants - Block Payment,University of Durham,98673064,5064.00,Training Awards - Postgraduates
BEIS,UKRI - AHRC,22/01/2020,Training Awards - Postgraduates,Collabrative Doctoral Grants - Block Payment,University of Leeds,98673065,5064.00,Training Awards - Postgraduates
BEIS,UKRI - AHRC,22/01/2020,Training Awards - Postgraduates,Collabrative Doctoral Grants - Block Payment,University of Leicester,98673066,5064.00,Training Awards - Postgraduates
BEIS,UKRI - AHRC,22/01/2020,Training Awards - Postgraduates,Collabrative Doctoral Grants - Block Payment,University of Stirling,98673067,5064.00,Training Awards - Postgraduates
BEIS,UKRI - AHRC,22/01/2020,Training Awards - Postgraduates,Collabrative Doctoral Grants - Block Payment,University of Leeds,98673068,5064.00,Training Awards - Postgraduates
BEIS,UKRI - AHRC,22/01/2020,Training Awards - Postgraduates,Collabrative Doctoral Grants - Block Payment,University of St Andrews,98673069,5064.00,Training Awards - Postgraduates
BEIS,UKRI - AHRC,22/01/2020,Training Awards - Postgraduates,Collabrative Doctoral Grants - Block Payment,University of Leicester,98673070,5064.00,Training Awards - Postgraduates
BEIS,UKRI - AHRC,22/01/2020,Training Awards - Postgraduates,Collabrative Doctoral Grants - Block Payment,University of Central Lancashire,98673071,5064.00,Training Awards - Postgraduates
BEIS,UKRI - AHRC,22/01/2020,Training Awards - Postgraduates,Collabrative Doctoral Grants - Block Payment,University of Sussex,98673072,5064.00,Training Awards - Postgraduates
BEIS,UKRI - AHRC,22/01/2020,Training Awards - Postgraduates,Collabrative Doctoral Grants - Block Payment,University of Exeter,98673073,5064.00,Training Awards - Postgraduates
BEIS,UKRI - AHRC,22/01/2020,Training Awards - Postgraduates,Collabrative Doctoral Grants - Block Payment,University of Edinburgh,98673074,5064.00,Training Awards - Postgraduates
BEIS,UKRI - AHRC,22/01/2020,Training Awards - Postgraduates,Collabrative Doctoral Grants - Block Payment,University of Nottingham,98673075,5064.00,Training Awards - Postgraduates
BEIS,UKRI - AHRC,22/01/2020,Training Awards - Postgraduates,Collabrative Doctoral Grants - Block Payment,University of Glasgow,98673076,5064.00,Training Awards - Postgraduates
BEIS,UKRI - AHRC,22/01/2020,Training Awards - Postgraduates,Collabrative Doctoral Grants - Block Payment,University College London,98673077,5564.00,Training Awards - Postgraduates
BEIS,UKRI - AHRC,22/01/2020,Training Awards - Postgraduates,Collabrative Doctoral Grants - Block Payment,University of Birmingham GRANT,98673078,5064.00,Training Awards - Postgraduates
BEIS,UKRI - AHRC,22/01/2020,Training Awards - Postgraduates,Collabrative Doctoral Grants - Block Payment,Birkbeck College,98673079,5564.00,Training Awards - Postgraduates
BEIS,UKRI - AHRC,22/01/2020,Training Awards - Postgraduates,Collabrative Doctoral Grants - Block Payment,University of Oxford,98673080,5064.00,Training Awards - Postgraduates
BEIS,UKRI - AHRC,22/01/2020,Training Awards - Postgraduates,Collabrative Doctoral Grants - Block Payment,University of London,98673081,5564.00,Training Awards - Postgraduates
BEIS,UKRI - AHRC,22/01/2020,Training Awards - Postgraduates,Collabrative Doctoral Grants - Block Payment,University of Leicester,98673082,5064.00,Training Awards - Postgraduates
BEIS,UKRI - AHRC,22/01/2020,Training Awards - Postgraduates,Collabrative Doctoral Grants - Block Payment,King's College London,98673083,5564.00,Training Awards - Postgraduates
BEIS,UKRI - AHRC,22/01/2020,Training Awards - Postgraduates,Collabrative Doctoral Grants - Block Payment,University of Leeds,98673084,5117.72,Training Awards - Postgraduates
BEIS,UKRI - AHRC,22/01/2020,Training Awards - Postgraduates,Collabrative Doctoral Grants - Block Payment,De Montfort University,98673085,5064.00,Training Awards - Postgraduates
BEIS,UKRI - AHRC,22/01/2020,Training Awards - Postgraduates,Collabrative Doctoral Grants - Block Payment,University of Leicester,98673086,5064.00,Training Awards - Postgraduates
BEIS,UKRI - AHRC,22/01/2020,Training Awards - Postgraduates,Collabrative Doctoral Grants - Block Payment,Birkbeck College,98673087,5564.00,Training Awards - Postgraduates
BEIS,UKRI - AHRC,22/01/2020,Training Awards - Postgraduates,Collabrative Doctoral Grants - Block Payment,University of Reading,98673088,5064.00,Training Awards - Postgraduates
BEIS,UKRI - AHRC,22/01/2020,Training Awards - Postgraduates,Collabrative Doctoral Grants - Block Payment,University of York,98673089,5064.00,Training Awards - Postgraduates
BEIS,UKRI - AHRC,22/01/2020,Training Awards - Postgraduates,Collabrative Doctoral Grants - Block Payment,Courtauld Institute of Art,98673090,5564.00,Training Awards - Postgraduates
BEIS,UKRI - AHRC,22/01/2020,Training Awards - Postgraduates,Collabrative Doctoral Grants - Block Payment,University of York,98673091,5064.00,Training Awards - Postgraduates
BEIS,UKRI - AHRC,22/01/2020,Training Awards - Postgraduates,Collabrative Doctoral Grants - Block Payment,The University of Manchester,98673092,5064.00,Training Awards - Postgraduates
BEIS,UKRI - AHRC,22/01/2020,Training Awards - Postgraduates,Collabrative Doctoral Grants - Block Payment,University of Reading,98673093,5064.00,Training Awards - Postgraduates
BEIS,UKRI - AHRC,22/01/2020,Training Awards - Postgraduates,Collabrative Doctoral Grants - Block Payment,De Montfort University,98673094,5064.00,Training Awards - Postgraduates
BEIS,UKRI - AHRC,22/01/2020,Training Awards - Postgraduates,Collabrative Doctoral Grants - Block Payment,University of Westminster,98673095,5564.00,Training Awards - Postgraduates
BEIS,UKRI - AHRC,22/01/2020,Training Awards - Postgraduates,Collabrative Doctoral Grants - Block Payment,The University of Manchester,98673096,5064.00,Training Awards - Postgraduates
BEIS,UKRI - AHRC,22/01/2020,Training Awards - Postgraduates,Collabrative Doctoral Grants - Block Payment,Royal College of Art,98673097,5564.00,Training Awards - Postgraduates
BEIS,UKRI - AHRC,22/01/2020,Training Awards - Postgraduates,Collabrative Doctoral Grants - Block Payment,Northumbria University,98673098,5064.00,Training Awards - Postgraduates
BEIS,UKRI - AHRC,22/01/2020,Training Awards - Postgraduates,Collabrative Doctoral Grants - Block Payment,Glasgow School of Art,98673099,5064.00,Training Awards - Postgraduates
BEIS,UKRI - AHRC,22/01/2020,Training Awards - Postgraduates,Collabrative Doctoral Grants - Block Payment,Royal College of Art,98673100,4720.08,Training Awards - Postgraduates
BEIS,UKRI - AHRC,22/01/2020,Training Awards - Postgraduates,BGP Award,University of Glasgow,98673101,60768.00,Training Awards - Postgraduates
BEIS,UKRI - AHRC,22/01/2020,Training Awards - Postgraduates,BGP Award,University of Newcastle Upon Tyne,98673102,64001.00,Training Awards - Postgraduates
BEIS,UKRI - AHRC,22/01/2020,Training Awards - Postgraduates,BGP Award,The University of Manchester,98673103,60768.00,Training Awards - Postgraduates
BEIS,UKRI - AHRC,22/01/2020,Training Awards - Postgraduates,BGP Award,University of the West of England,98673104,62057.55,Training Awards - Postgraduates
BEIS,UKRI - AHRC,22/01/2020,Training Awards - Postgraduates,BGP Award,University of Nottingham,98673105,55522.00,Training Awards - Postgraduates
BEIS,UKRI - AHRC,22/01/2020,Training Awards - Postgraduates,BGP Award,"Royal Holloway, University of London",98673106,68973.90,Training Awards - Postgraduates
BEIS,UKRI - AHRC,22/01/2020,Training Awards - Postgraduates,Collabrative Doctoral Grants - Block Payment,University of London,98673107,5523.25,Training Awards - Postgraduates
BEIS,UKRI - AHRC,22/01/2020,Training Awards - Postgraduates,Collabrative Doctoral Grants - Block Payment,University of Sheffield,98673108,5023.25,Training Awards - Postgraduates
BEIS,UKRI - AHRC,22/01/2020,Training Awards - Postgraduates,Collabrative Doctoral Grants - Block Payment,University College London,98673109,5500.75,Training Awards - Postgraduates
BEIS,UKRI - AHRC,22/01/2020,Training Awards - Postgraduates,Collabrative Doctoral Grants - Block Payment,University of Sheffield,98673110,5023.25,Training Awards - Postgraduates
BEIS,UKRI - AHRC,22/01/2020,Training Awards - Postgraduates,Collabrative Doctoral Grants - Block Payment,"SOAS, University of London",98673111,5523.25,Training Awards - Postgraduates
BEIS,UKRI - AHRC,22/01/2020,Training Awards - Postgraduates,Collabrative Doctoral Grants - Block Payment,Northumbria University,98673112,5023.25,Training Awards - Postgraduates
BEIS,UKRI - AHRC,22/01/2020,Training Awards - Postgraduates,Collabrative Doctoral Grants - Block Payment,King's College London,98673113,5523.25,Training Awards - Postgraduates
BEIS,UKRI - AHRC,22/01/2020,Training Awards - Postgraduates,Collabrative Doctoral Grants - Block Payment,University of Brighton,98673114,5023.25,Training Awards - Postgraduates
BEIS,UKRI - AHRC,22/01/2020,Training Awards - Postgraduates,Collabrative Doctoral Grants - Block Payment,University of Stirling,98673115,5023.25,Training Awards - Postgraduates
BEIS,UKRI - AHRC,22/01/2020,Training Awards - Postgraduates,Collabrative Doctoral Grants - Block Payment,University of Liverpool,98673116,5023.25,Training Awards - Postgraduates
BEIS,UKRI - AHRC,22/01/2020,Training Awards - Postgraduates,Collabrative Doctoral Grants - Block Payment,Robert Gordon University,98673117,5023.25,Training Awards - Postgraduates
BEIS,UKRI - AHRC,22/01/2020,Training Awards - Postgraduates,Collabrative Doctoral Grants - Block Payment,University of Exeter,98673118,5023.25,Training Awards - Postgraduates
BEIS,UKRI - AHRC,22/01/2020,Training Awards - Postgraduates,Collabrative Doctoral Grants - Block Payment,University of Edinburgh,98673119,5023.25,Training Awards - Postgraduates
BEIS,UKRI - AHRC,22/01/2020,Training Awards - Postgraduates,Collabrative Doctoral Grants - Block Payment,University of Durham,98673120,5023.25,Training Awards - Postgraduates
BEIS,UKRI - AHRC,22/01/2020,Training Awards - Postgraduates,Collabrative Doctoral Grants - Block Payment,"City, University of London",98673121,5523.25,Training Awards - Postgraduates
BEIS,UKRI - AHRC,22/01/2020,Training Awards - Postgraduates,Collabrative Doctoral Grants - Block Payment,University of Strathclyde,98673122,4792.13,Training Awards - Postgraduates
BEIS,UKRI - AHRC,22/01/2020,Training Awards - Postgraduates,Collabrative Doctoral Grants - Block Payment,University College London,98673123,5523.25,Training Awards - Postgraduates
BEIS,UKRI - AHRC,22/01/2020,Training Awards - Postgraduates,Collabrative Doctoral Grants - Block Payment,University of Leeds,98673124,5023.25,Training Awards - Postgraduates
BEIS,UKRI - AHRC,22/01/2020,Training Awards - Postgraduates,Collabrative Doctoral Grants - Block Payment,University College London,98673125,5523.25,Training Awards - Postgraduates
BEIS,UKRI - AHRC,22/01/2020,Training Awards - Postgraduates,Collabrative Doctoral Grants - Block Payment,King's College London,98673126,5523.25,Training Awards - Postgraduates
BEIS,UKRI - AHRC,22/01/2020,Training Awards - Postgraduates,Collabrative Doctoral Grants - Block Payment,University of Southampton GRANT,98673127,5023.25,Training Awards - Postgraduates
BEIS,UKRI - AHRC,22/01/2020,Training Awards - Postgraduates,Collabrative Doctoral Grants - Block Payment,University of Central Lancashire,98673128,5023.25,Training Awards - Postgraduates
BEIS,UKRI - AHRC,22/01/2020,Training Awards - Postgraduates,Collabrative Doctoral Grants - Block Payment,Birkbeck College,98673129,5523.75,Training Awards - Postgraduates
BEIS,UKRI - AHRC,22/01/2020,Training Awards - Postgraduates,Collabrative Doctoral Grants - Block Payment,University of Glasgow,98673130,5023.25,Training Awards - Postgraduates
BEIS,UKRI - AHRC,22/01/2020,Training Awards - Postgraduates,Collabrative Doctoral Grants - Block Payment,University of Stirling,98673131,5023.25,Training Awards - Postgraduates
BEIS,UKRI - AHRC,22/01/2020,Training Awards - Postgraduates,Collabrative Doctoral Grants - Block Payment,University of Newcastle Upon Tyne,98673132,5023.25,Training Awards - Postgraduates
BEIS,UKRI - AHRC,22/01/2020,Training Awards - Postgraduates,Collabrative Doctoral Grants - Block Payment,University of Leeds,98673133,5023.25,Training Awards - Postgraduates
BEIS,UKRI - AHRC,22/01/2020,Training Awards - Postgraduates,Collabrative Doctoral Grants - Block Payment,University of Oxford,98673134,5023.25,Training Awards - Postgraduates
BEIS,UKRI - AHRC,22/01/2020,Training Awards - Postgraduates,Collabrative Doctoral Grants - Block Payment,University of York,98673135,5023.25,Training Awards - Postgraduates
BEIS,UKRI - AHRC,22/01/2020,Training Awards - Postgraduates,Collabrative Doctoral Grants - Block Payment,University of Kent,98673136,5023.25,Training Awards - Postgraduates
BEIS,UKRI - AHRC,22/01/2020,Training Awards - Postgraduates,Collabrative Doctoral Grants - Block Payment,University of Cambridge,98673137,5023.25,Training Awards - Postgraduates
BEIS,UKRI - AHRC,22/01/2020,Training Awards - Postgraduates,Collabrative Doctoral Grants - Block Payment,Courtauld Institute of Art,98673138,5523.25,Training Awards - Postgraduates
BEIS,UKRI - AHRC,22/01/2020,Training Awards - Postgraduates,Collabrative Doctoral Grants - Block Payment,Queen Mary University of London,98673139,6557.65,Training Awards - Postgraduates
BEIS,UKRI - AHRC,22/01/2020,Training Awards - Postgraduates,Collabrative Doctoral Grants - Block Payment,University of Durham,98673140,7031.35,Training Awards - Postgraduates
BEIS,UKRI - AHRC,22/01/2020,Training Awards - Postgraduates,Collabrative Doctoral Grants - Block Payment,University College London,98673141,5523.25,Training Awards - Postgraduates
BEIS,UKRI - AHRC,22/01/2020,Training Awards - Postgraduates,Collabrative Doctoral Grants - Block Payment,University of Kent,98673142,5023.25,Training Awards - Postgraduates
BEIS,UKRI - AHRC,22/01/2020,Training Awards - Postgraduates,Collabrative Doctoral Grants - Block Payment,University of Cambridge,98673143,5023.25,Training Awards - Postgraduates
BEIS,UKRI - AHRC,22/01/2020,Training Awards - Postgraduates,Collabrative Doctoral Grants - Block Payment,University of Cambridge,98673144,5023.25,Training Awards - Postgraduates
BEIS,UKRI - AHRC,22/01/2020,Training Awards - Postgraduates,Collabrative Doctoral Grants - Block Payment,University of Leeds,98673145,5023.25,Training Awards - Postgraduates
BEIS,UKRI - AHRC,22/01/2020,Training Awards - Postgraduates,Collabrative Doctoral Grants - Block Payment,University of Leeds,98673146,5023.25,Training Awards - Postgraduates
BEIS,UKRI - AHRC,22/01/2020,Training Awards - Postgraduates,Collabrative Doctoral Grants - Block Payment,University of Strathclyde,98673147,5023.25,Training Awards - Postgraduates
BEIS,UKRI - AHRC,22/01/2020,Training Awards - Postgraduates,Collabrative Doctoral Grants - Block Payment,University of London,98673148,4342.97,Training Awards - Postgraduates
BEIS,UKRI - AHRC,22/01/2020,Training Awards - Postgraduates,Collabrative Doctoral Grants - Block Payment,Keele University,98673149,5023.25,Training Awards - Postgraduates
BEIS,UKRI - AHRC,22/01/2020,Training Awards - Postgraduates,Collabrative Doctoral Grants - Block Payment,Goldsmiths College University of London,98673150,5523.25,Training Awards - Postgraduates
BEIS,UKRI - AHRC,22/01/2020,Training Awards - Postgraduates,Collabrative Doctoral Grants - Block Payment,De Montfort University,98673151,5023.25,Training Awards - Postgraduates
BEIS,UKRI - AHRC,22/01/2020,Training Awards - Postgraduates,Collabrative Doctoral Grants - Block Payment,Sheffield Hallam University,98673152,5023.25,Training Awards - Postgraduates
BEIS,UKRI - AHRC,22/01/2020,Training Awards - Postgraduates,Collabrative Doctoral Grants - Block Payment,De Montfort University,98673153,5023.25,Training Awards - Postgraduates
BEIS,UKRI - AHRC,22/01/2020,Training Awards - Postgraduates,Collabrative Doctoral Grants - Block Payment,University of the Arts London,98673154,5523.25,Training Awards - Postgraduates
BEIS,UKRI - AHRC,22/01/2020,Training Awards - Postgraduates,Collabrative Doctoral Grants - Block Payment,Royal College of Art,98673155,5523.25,Training Awards - Postgraduates
BEIS,UKRI - AHRC,22/01/2020,Training Awards - Postgraduates,International Placement Scheme,University of East Anglia,98673156,6870.00,Training Awards - Postgraduates
BEIS,UKRI - AHRC,22/01/2020,Training Awards - Postgraduates,Industrial Strategy Challenge Fund (ISCF) - Skills,The University of Manchester,98673157,19660.92,Training Awards - Postgraduates
BEIS,UKRI - AHRC,22/01/2020,Training Awards - Postgraduates,Industrial Strategy Challenge Fund (ISCF) - Skills,University of Glasgow,98673158,19660.92,Training Awards - Postgraduates
BEIS,UKRI - AHRC,22/01/2020,Training Awards - Postgraduates,Industrial Strategy Challenge Fund (ISCF) - Skills,University of Newcastle Upon Tyne,98673159,19660.92,Training Awards - Postgraduates
BEIS,UKRI - AHRC,22/01/2020,Training Awards - Postgraduates,Industrial Strategy Challenge Fund (ISCF) - Skills,"Royal Holloway, University of London",98673160,21632.93,Training Awards - Postgraduates
BEIS,UKRI - AHRC,22/01/2020,Training Awards - Postgraduates,Industrial Strategy Challenge Fund (ISCF) - Skills,University of Nottingham,98673161,20289.12,Training Awards - Postgraduates
BEIS,UKRI - AHRC,22/01/2020,Training Awards - Postgraduates,Industrial Strategy Challenge Fund (ISCF) - Skills,University of the West of England,98673162,19665.67,Training Awards - Postgraduates
BEIS,UKRI - AHRC,22/01/2020,Training Awards - Postgraduates,BGP Award,University of Nottingham,98673163,240095.68,Training Awards - Postgraduates
BEIS,UKRI - AHRC,22/01/2020,Training Awards - Postgraduates,BGP Award,University of Nottingham,98673163,240095.68,Training Awards - Postgraduates
BEIS,UKRI - AHRC,22/01/2020,Training Awards - Postgraduates,BGP Award,University of York,98673164,167374.20,Training Awards - Postgraduates
BEIS,UKRI - AHRC,22/01/2020,Training Awards - Postgraduates,BGP Award,University of York,98673164,167374.20,Training Awards - Postgraduates
BEIS,UKRI - AHRC,22/01/2020,Training Awards - Postgraduates,BGP Award,University College London,98673165,258670.13,Training Awards - Postgraduates
BEIS,UKRI - AHRC,22/01/2020,Training Awards - Postgraduates,BGP Award,University of Newcastle Upon Tyne,98673166,199031.18,Training Awards - Postgraduates
BEIS,UKRI - AHRC,22/01/2020,Training Awards - Postgraduates,BGP Award,The University of Manchester,98673167,157129.88,Training Awards - Postgraduates
BEIS,UKRI - AHRC,22/01/2020,Training Awards - Postgraduates,BGP Award,University of Oxford,98673168,266752.64,Training Awards - Postgraduates
BEIS,UKRI - AHRC,22/01/2020,Training Awards - Postgraduates,BGP Award,University of Bristol GRANT,98673169,104464.50,Training Awards - Postgraduates
BEIS,UKRI - AHRC,22/01/2020,Training Awards - Postgraduates,BGP Award,University of Bristol GRANT,98673169,104464.50,Training Awards - Postgraduates
BEIS,UKRI - AHRC,22/01/2020,Training Awards - Postgraduates,BGP Award,University of Glasgow,98673170,199031.18,Training Awards - Postgraduates
BEIS,UKRI - AHRC,22/01/2020,Training Awards - Postgraduates,BGP Award,"Royal Holloway, University of London",98673171,214991.18,Training Awards - Postgraduates
BEIS,UKRI - AHRC,22/01/2020,Training Awards - Postgraduates,BGP Award,University of Sussex,98673172,202971.83,Training Awards - Postgraduates
BEIS,UKRI - AHRC,22/01/2020,Training Awards - Postgraduates,Collabrative Doctoral Grants - Block Payment,University of Edinburgh,98673173,5021.50,Training Awards - Postgraduates
BEIS,UKRI - AHRC,22/01/2020,Training Awards - Postgraduates,Collabrative Doctoral Grants - Block Payment,University of Edinburgh,98673173,4899.65,Training Awards - Postgraduates
BEIS,UKRI - AHRC,22/01/2020,Training Awards - Postgraduates,Collabrative Doctoral Grants - Block Payment,"City, University of London",98673174,5521.50,Training Awards - Postgraduates
BEIS,UKRI - AHRC,22/01/2020,Training Awards - Postgraduates,Collabrative Doctoral Grants - Block Payment,"City, University of London",98673174,5521.50,Training Awards - Postgraduates
BEIS,UKRI - AHRC,22/01/2020,Training Awards - Postgraduates,Collabrative Doctoral Grants - Block Payment,University of York,98673175,5021.50,Training Awards - Postgraduates
BEIS,UKRI - AHRC,22/01/2020,Training Awards - Postgraduates,Collabrative Doctoral Grants - Block Payment,University of York,98673175,5021.50,Training Awards - Postgraduates
BEIS,UKRI - AHRC,22/01/2020,Training Awards - Postgraduates,Collabrative Doctoral Grants - Block Payment,University of Leicester,98673176,5021.50,Training Awards - Postgraduates
BEIS,UKRI - AHRC,22/01/2020,Training Awards - Postgraduates,Collabrative Doctoral Grants - Block Payment,University of Leicester,98673176,5021.50,Training Awards - Postgraduates
BEIS,UKRI - AHRC,22/01/2020,Training Awards - Postgraduates,Collabrative Doctoral Grants - Block Payment,Loughborough University,98673177,5021.50,Training Awards - Postgraduates
BEIS,UKRI - AHRC,22/01/2020,Training Awards - Postgraduates,Collabrative Doctoral Grants - Block Payment,Loughborough University,98673177,5021.50,Training Awards - Postgraduates
BEIS,UKRI - AHRC,22/01/2020,Training Awards - Postgraduates,Collabrative Doctoral Grants - Block Payment,University of Hull,98673178,5021.50,Training Awards - Postgraduates
BEIS,UKRI - AHRC,22/01/2020,Training Awards - Postgraduates,Collabrative Doctoral Grants - Block Payment,University of Hull,98673178,5021.50,Training Awards - Postgraduates
BEIS,UKRI - AHRC,22/01/2020,Training Awards - Postgraduates,Collabrative Doctoral Grants - Block Payment,University College London,98673179,5521.50,Training Awards - Postgraduates
BEIS,UKRI - AHRC,22/01/2020,Training Awards - Postgraduates,Collabrative Doctoral Grants - Block Payment,University College London,98673179,5521.50,Training Awards - Postgraduates
BEIS,UKRI - AHRC,22/01/2020,Training Awards - Postgraduates,Collabrative Doctoral Grants - Block Payment,University of Brighton,98673180,5021.50,Training Awards - Postgraduates
BEIS,UKRI - AHRC,22/01/2020,Training Awards - Postgraduates,Collabrative Doctoral Grants - Block Payment,University of Brighton,98673180,5021.50,Training Awards - Postgraduates
BEIS,UKRI - AHRC,22/01/2020,Training Awards - Postgraduates,Collabrative Doctoral Grants - Block Payment,University of Glasgow,98673181,5021.50,Training Awards - Postgraduates
BEIS,UKRI - AHRC,22/01/2020,Training Awards - Postgraduates,Collabrative Doctoral Grants - Block Payment,University of Glasgow,98673181,5021.50,Training Awards - Postgraduates
BEIS,UKRI - AHRC,22/01/2020,Training Awards - Postgraduates,Collabrative Doctoral Grants - Block Payment,University of London,98673182,5521.50,Training Awards - Postgraduates
BEIS,UKRI - AHRC,22/01/2020,Training Awards - Postgraduates,Collabrative Doctoral Grants - Block Payment,University of London,98673182,5521.50,Training Awards - Postgraduates
BEIS,UKRI - AHRC,22/01/2020,Training Awards - Postgraduates,Collabrative Doctoral Grants - Block Payment,University of Bristol GRANT,98673183,5021.50,Training Awards - Postgraduates
BEIS,UKRI - AHRC,22/01/2020,Training Awards - Postgraduates,Collabrative Doctoral Grants - Block Payment,University of Bristol GRANT,98673183,5021.50,Training Awards - Postgraduates
BEIS,UKRI - AHRC,22/01/2020,Training Awards - Postgraduates,Collabrative Doctoral Grants - Block Payment,Imperial College London,98673184,5521.50,Training Awards - Postgraduates
BEIS,UKRI - AHRC,22/01/2020,Training Awards - Postgraduates,Collabrative Doctoral Grants - Block Payment,Imperial College London,98673184,5521.50,Training Awards - Postgraduates
BEIS,UKRI - AHRC,22/01/2020,Training Awards - Postgraduates,Collabrative Doctoral Grants - Block Payment,University of St Andrews,98673185,5021.50,Training Awards - Postgraduates
BEIS,UKRI - AHRC,22/01/2020,Training Awards - Postgraduates,Collabrative Doctoral Grants - Block Payment,Goldsmiths College University of London,98673186,5521.50,Training Awards - Postgraduates
BEIS,UKRI - AHRC,22/01/2020,Training Awards - Postgraduates,Collabrative Doctoral Grants - Block Payment,Goldsmiths College University of London,98673186,5521.50,Training Awards - Postgraduates
BEIS,UKRI - AHRC,22/01/2020,Training Awards - Postgraduates,Collabrative Doctoral Grants - Block Payment,University of Leeds,98673187,5021.50,Training Awards - Postgraduates
BEIS,UKRI - AHRC,22/01/2020,Training Awards - Postgraduates,Collabrative Doctoral Grants - Block Payment,De Montfort University,98673188,4487.52,Training Awards - Postgraduates
BEIS,UKRI - AHRC,22/01/2020,Training Awards - Postgraduates,Collabrative Doctoral Grants - Block Payment,De Montfort University,98673188,4487.52,Training Awards - Postgraduates
BEIS,UKRI - AHRC,22/01/2020,Training Awards - Postgraduates,Collabrative Doctoral Grants - Block Payment,University of Edinburgh,98673189,5021.50,Training Awards - Postgraduates
BEIS,UKRI - AHRC,22/01/2020,Training Awards - Postgraduates,Collabrative Doctoral Grants - Block Payment,University of Edinburgh,98673189,5021.50,Training Awards - Postgraduates
BEIS,UKRI - AHRC,22/01/2020,Training Awards - Postgraduates,Collabrative Doctoral Grants - Block Payment,University of Edinburgh,98673190,5021.50,Training Awards - Postgraduates
BEIS,UKRI - AHRC,22/01/2020,Training Awards - Postgraduates,Collabrative Doctoral Grants - Block Payment,University of Edinburgh,98673190,5021.50,Training Awards - Postgraduates
BEIS,UKRI - AHRC,22/01/2020,Training Awards - Postgraduates,Collabrative Doctoral Grants - Block Payment,University of Leicester,98673191,5021.50,Training Awards - Postgraduates
BEIS,UKRI - AHRC,22/01/2020,Training Awards - Postgraduates,Collabrative Doctoral Grants - Block Payment,University of Leicester,98673191,5021.50,Training Awards - Postgraduates
BEIS,UKRI - AHRC,22/01/2020,Training Awards - Postgraduates,Collabrative Doctoral Grants - Block Payment,University of York,98673192,5021.50,Training Awards - Postgraduates
BEIS,UKRI - AHRC,22/01/2020,Training Awards - Postgraduates,Collabrative Doctoral Grants - Block Payment,University of York,98673192,5021.50,Training Awards - Postgraduates
BEIS,UKRI - AHRC,22/01/2020,Training Awards - Postgraduates,Collabrative Doctoral Grants - Block Payment,University of Durham,98673193,5021.50,Training Awards - Postgraduates
BEIS,UKRI - AHRC,22/01/2020,Training Awards - Postgraduates,Collabrative Doctoral Grants - Block Payment,University of Durham,98673193,5021.50,Training Awards - Postgraduates
BEIS,UKRI - AHRC,22/01/2020,Training Awards - Postgraduates,Collabrative Doctoral Grants - Block Payment,University of Warwick,98673194,5021.50,Training Awards - Postgraduates
BEIS,UKRI - AHRC,22/01/2020,Training Awards - Postgraduates,Collabrative Doctoral Grants - Block Payment,University of Warwick,98673194,5021.50,Training Awards - Postgraduates
BEIS,UKRI - AHRC,22/01/2020,Training Awards - Postgraduates,Collabrative Doctoral Grants - Block Payment,University of Brighton,98673195,5021.50,Training Awards - Postgraduates
BEIS,UKRI - AHRC,22/01/2020,Training Awards - Postgraduates,Collabrative Doctoral Grants - Block Payment,University of Brighton,98673195,5021.50,Training Awards - Postgraduates
BEIS,UKRI - AHRC,22/01/2020,Training Awards - Postgraduates,Collabrative Doctoral Grants - Block Payment,University of Southampton GRANT,98673196,5021.50,Training Awards - Postgraduates
BEIS,UKRI - AHRC,22/01/2020,Training Awards - Postgraduates,Collabrative Doctoral Grants - Block Payment,University of Southampton GRANT,98673196,5021.50,Training Awards - Postgraduates
BEIS,UKRI - AHRC,22/01/2020,Training Awards - Postgraduates,Collabrative Doctoral Grants - Block Payment,University College London,98673197,5521.50,Training Awards - Postgraduates
BEIS,UKRI - AHRC,22/01/2020,Training Awards - Postgraduates,Collabrative Doctoral Grants - Block Payment,University College London,98673197,5521.50,Training Awards - Postgraduates
BEIS,UKRI - AHRC,22/01/2020,Training Awards - Postgraduates,Collabrative Doctoral Grants - Block Payment,University of East Anglia,98673198,5021.50,Training Awards - Postgraduates
BEIS,UKRI - AHRC,22/01/2020,Training Awards - Postgraduates,Collabrative Doctoral Grants - Block Payment,University of East Anglia,98673198,5021.50,Training Awards - Postgraduates
BEIS,UKRI - AHRC,22/01/2020,Training Awards - Postgraduates,Collabrative Doctoral Grants - Block Payment,University of Nottingham,98673199,5021.50,Training Awards - Postgraduates
BEIS,UKRI - AHRC,22/01/2020,Training Awards - Postgraduates,Collabrative Doctoral Grants - Block Payment,University of Nottingham,98673199,5021.50,Training Awards - Postgraduates
BEIS,UKRI - AHRC,22/01/2020,Training Awards - Postgraduates,Collabrative Doctoral Grants - Block Payment,University of Leeds,98673200,5021.50,Training Awards - Postgraduates
BEIS,UKRI - AHRC,22/01/2020,Training Awards - Postgraduates,Collabrative Doctoral Grants - Block Payment,University of Bristol GRANT,98673201,5021.50,Training Awards - Postgraduates
BEIS,UKRI - AHRC,22/01/2020,Training Awards - Postgraduates,Collabrative Doctoral Grants - Block Payment,University of Bristol GRANT,98673201,5021.50,Training Awards - Postgraduates
BEIS,UKRI - AHRC,22/01/2020,Training Awards - Postgraduates,Collabrative Doctoral Grants - Block Payment,The Open University,98673202,5021.50,Training Awards - Postgraduates
BEIS,UKRI - AHRC,22/01/2020,Training Awards - Postgraduates,Collabrative Doctoral Grants - Block Payment,The Open University,98673202,5021.50,Training Awards - Postgraduates
BEIS,UKRI - AHRC,22/01/2020,Training Awards - Postgraduates,Collabrative Doctoral Grants - Block Payment,University of the Arts London,98673203,5521.50,Training Awards - Postgraduates
BEIS,UKRI - AHRC,22/01/2020,Training Awards - Postgraduates,Collabrative Doctoral Grants - Block Payment,University of Strathclyde,98673204,5021.50,Training Awards - Postgraduates
BEIS,UKRI - AHRC,22/01/2020,Training Awards - Postgraduates,Collabrative Doctoral Grants - Block Payment,University of Strathclyde,98673204,5021.50,Training Awards - Postgraduates
BEIS,UKRI - AHRC,22/01/2020,Training Awards - Postgraduates,Collabrative Doctoral Grants - Block Payment,University of Oxford,98673205,5021.50,Training Awards - Postgraduates
BEIS,UKRI - AHRC,22/01/2020,Training Awards - Postgraduates,Collabrative Doctoral Grants - Block Payment,University of Oxford,98673205,5021.50,Training Awards - Postgraduates
BEIS,UKRI - AHRC,22/01/2020,Training Awards - Postgraduates,Collabrative Doctoral Grants - Block Payment,King's College London,98673206,5521.50,Training Awards - Postgraduates
BEIS,UKRI - AHRC,22/01/2020,Training Awards - Postgraduates,Collabrative Doctoral Grants - Block Payment,King's College London,98673206,5521.50,Training Awards - Postgraduates
BEIS,UKRI - AHRC,22/01/2020,Training Awards - Postgraduates,Collabrative Doctoral Grants - Block Payment,Birkbeck College,98673207,5521.50,Training Awards - Postgraduates
BEIS,UKRI - AHRC,22/01/2020,Training Awards - Postgraduates,Collabrative Doctoral Grants - Block Payment,Birkbeck College,98673207,5521.50,Training Awards - Postgraduates
BEIS,UKRI - AHRC,22/01/2020,Training Awards - Postgraduates,Collabrative Doctoral Grants - Block Payment,University of Edinburgh,98673208,5021.50,Training Awards - Postgraduates
BEIS,UKRI - AHRC,22/01/2020,Training Awards - Postgraduates,Collabrative Doctoral Grants - Block Payment,University of Edinburgh,98673208,5021.50,Training Awards - Postgraduates
BEIS,UKRI - AHRC,22/01/2020,Training Awards - Postgraduates,Collabrative Doctoral Grants - Block Payment,University College London,98673209,5521.50,Training Awards - Postgraduates
BEIS,UKRI - AHRC,22/01/2020,Training Awards - Postgraduates,Collabrative Doctoral Grants - Block Payment,University of Leeds,98673210,5021.50,Training Awards - Postgraduates
BEIS,UKRI - AHRC,22/01/2020,Training Awards - Postgraduates,Collabrative Doctoral Grants - Block Payment,University College London,98673211,4987.53,Training Awards - Postgraduates
BEIS,UKRI - AHRC,22/01/2020,Training Awards - Postgraduates,Collabrative Doctoral Grants - Block Payment,Sheffield Hallam University,98673212,5021.50,Training Awards - Postgraduates
BEIS,UKRI - AHRC,22/01/2020,Training Awards - Postgraduates,Collabrative Doctoral Grants - Block Payment,Sheffield Hallam University,98673212,5021.50,Training Awards - Postgraduates
BEIS,UKRI - AHRC,22/01/2020,Training Awards - Postgraduates,Collabrative Doctoral Grants - Block Payment,University of Kent,98673213,5021.50,Training Awards - Postgraduates
BEIS,UKRI - AHRC,22/01/2020,Training Awards - Postgraduates,Collabrative Doctoral Grants - Block Payment,University of East Anglia,98673214,5021.50,Training Awards - Postgraduates
BEIS,UKRI - AHRC,22/01/2020,Training Awards - Postgraduates,Collabrative Doctoral Grants - Block Payment,University of East Anglia,98673214,5021.50,Training Awards - Postgraduates
BEIS,UKRI - AHRC,22/01/2020,Training Awards - Postgraduates,Collabrative Doctoral Grants - Block Payment,University of the Arts London,98673215,5521.50,Training Awards - Postgraduates
BEIS,UKRI - AHRC,22/01/2020,Training Awards - Postgraduates,Collabrative Doctoral Grants - Block Payment,University College London,98673216,5521.50,Training Awards - Postgraduates
BEIS,UKRI - AHRC,22/01/2020,Training Awards - Postgraduates,Collabrative Doctoral Grants - Block Payment,King's College London,98673217,5521.50,Training Awards - Postgraduates
BEIS,UKRI - AHRC,22/01/2020,Training Awards - Postgraduates,Collabrative Doctoral Grants - Block Payment,King's College London,98673217,5521.50,Training Awards - Postgraduates
BEIS,UKRI - AHRC,22/01/2020,Training Awards - Postgraduates,Collabrative Doctoral Grants - Block Payment,University of Warwick,98673218,3267.91,Training Awards - Postgraduates
BEIS,UKRI - AHRC,22/01/2020,Training Awards - Postgraduates,International Placement Scheme,University of Brighton,98673219,4470.00,Training Awards - Postgraduates
BEIS,UKRI - AHRC,22/01/2020,Training Awards - Postgraduates,International Placement Scheme,University of Oxford,98673220,4035.00,Training Awards - Postgraduates
BEIS,UKRI - AHRC,22/01/2020,Training Awards - Postgraduates,International Placement Scheme,University of Liverpool,98673221,8070.00,Training Awards - Postgraduates
BEIS,UKRI - AHRC,22/01/2020,Training Awards - Postgraduates,International Placement Scheme,University of Sheffield,98673222,4470.00,Training Awards - Postgraduates
BEIS,UKRI - AHRC,22/01/2020,Training Awards - Postgraduates,Collabrative Doctoral Grants - Block Payment,University of Brighton,98673223,5021.50,Training Awards - Postgraduates
BEIS,UKRI - AHRC,22/01/2020,Training Awards - Postgraduates,Collabrative Doctoral Grants - Block Payment,University of York,98673224,344.35,Training Awards - Postgraduates
BEIS,UKRI - AHRC,22/01/2020,Training Awards - Postgraduates,BGP Award,University of Nottingham,98673225,-25091.58,Training Awards - Postgraduates
BEIS,UKRI - AHRC,22/01/2020,Training Awards - Postgraduates,Collabrative Doctoral Grants - Block Payment,"Royal Holloway, University of London",98673226,491.75,Training Awards - Postgraduates
BEIS,UKRI - AHRC,22/01/2020,Training Awards - Postgraduates,Collabrative Doctoral Grants - Block Payment,University of Brighton,98673228,14691.00,Training Awards - Postgraduates
BEIS,UKRI - AHRC,22/01/2020,Training Awards - Postgraduates,Collabrative Doctoral Grants - Block Payment,University of Edinburgh,98673229,-1285.75,Training Awards - Postgraduates
BEIS,UKRI - AHRC,22/01/2020,Training Awards - Postgraduates,International Placement Scheme,University of Lincoln,98673230,4470.00,Training Awards - Postgraduates
BEIS,UKRI - AHRC,22/01/2020,Training Awards - Postgraduates,International Placement Scheme,University of Warwick,98673231,5670.00,Training Awards - Postgraduates
BEIS,UKRI - AHRC,22/01/2020,Training Awards - Postgraduates,International Placement Scheme,"SOAS, University of London",98673232,4470.00,Training Awards - Postgraduates
BEIS,UKRI - AHRC,22/01/2020,Training Awards - Postgraduates,International Placement Scheme,University of Exeter,98673233,3270.00,Training Awards - Postgraduates
BEIS,UKRI - AHRC,22/01/2020,Training Awards - Postgraduates,Collabrative Doctoral Grants - Block Payment,Cardiff University,98673252,2532.01,Training Awards - Postgraduates
BEIS,UKRI - AHRC,22/01/2020,Training Awards - Postgraduates,Collabrative Doctoral Grants - Block Payment,Cardiff University,98673253,5064.00,Training Awards - Postgraduates
BEIS,UKRI - AHRC,22/01/2020,Training Awards - Postgraduates,Collabrative Doctoral Grants - Block Payment,Cardiff University,98673254,4487.55,Training Awards - Postgraduates
BEIS,UKRI - AHRC,22/01/2020,Recruitment Costs,Corporate Services,Agenda Resource Management Ltd,98676747,153.91,Recruitment Costs
BEIS,UKRI - AHRC,22/01/2020,Recruitment Costs,Corporate Services,Agenda Resource Management Ltd,98676748,153.91,Recruitment Costs
BEIS,UKRI - AHRC,22/01/2020,Recruitment Costs,Corporate Services,Agenda Resource Management Ltd,98676749,153.91,Recruitment Costs
BEIS,UKRI - AHRC,22/01/2020,T&S Overseas - Flights,SMT,Corporate Travel Management (North) Ltd,98677916,4.50,T&S Overseas - Flights
BEIS,UKRI - AHRC,22/01/2020,T&S Overseas - Flights,SMT,Corporate Travel Management (North) Ltd,98677916,113.00,T&S Overseas - Flights
BEIS,UKRI - AHRC,22/01/2020,T&S Overseas - Public Transport,SMT,Corporate Travel Management (North) Ltd,98677916,4.50,T&S Overseas - Public Transport
BEIS,UKRI - AHRC,22/01/2020,T&S Overseas - Public Transport,SMT,Corporate Travel Management (North) Ltd,98677916,101.00,T&S Overseas - Public Transport
BEIS,UKRI - AHRC,22/01/2020,T&S Overseas - Public Transport,SMT,Corporate Travel Management (North) Ltd,98677916,53.00,T&S Overseas - Public Transport
BEIS,UKRI - AHRC,22/01/2020,T&S UK - Public Transport,Cultural Value EDI,Unspecified,98678706,2.40,T&S UK - Public Transport
BEIS,UKRI - AHRC,22/01/2020,T&S UK - Subsistence,Cultural Value EDI,Unspecified,98678706,39.45,T&S UK - Subsistence
BEIS,UKRI - AHRC,22/01/2020,T&S UK - Subsistence,Cultural Value EDI,Unspecified,98678706,32.85,T&S UK - Subsistence
BEIS,UKRI - AHRC,22/01/2020,T&S UK - Subsistence,Cultural Value EDI,Unspecified,98678706,10.00,T&S UK - Subsistence
BEIS,UKRI - AHRC,22/01/2020,T&S UK - Subsistence,Cultural Value EDI,Unspecified,98678706,5.00,T&S UK - Subsistence
BEIS,UKRI - AHRC,22/01/2020,T&S UK - Public Transport,Public and Stakeholder Engagement,Unspecified,98678707,11.00,T&S UK - Public Transport
BEIS,UKRI - AHRC,22/01/2020,T&S UK - Public Transport,Public and Stakeholder Engagement,Unspecified,98678708,6.80,T&S UK - Public Transport
BEIS,UKRI - AHRC,22/01/2020,T&S UK - Public Transport,Public and Stakeholder Engagement,Unspecified,98678708,20.00,T&S UK - Public Transport
BEIS,UKRI - AHRC,22/01/2020,T&S UK - Subsistence,Public and Stakeholder Engagement,Unspecified,98678708,36.80,T&S UK - Subsistence
BEIS,UKRI - AHRC,22/01/2020,T&S UK - Subsistence,Public and Stakeholder Engagement,Unspecified,98678708,27.12,T&S UK - Subsistence
BEIS,UKRI - AHRC,22/01/2020,T&S UK - Subsistence,Public and Stakeholder Engagement,Unspecified,98678708,26.48,T&S UK - Subsistence
BEIS,UKRI - AHRC,22/01/2020,T&S UK - Subsistence,Public and Stakeholder Engagement,Unspecified,98678708,61.25,T&S UK - Subsistence
BEIS,UKRI - AHRC,22/01/2020,T&S UK - Subsistence,Public and Stakeholder Engagement,Unspecified,98678708,40.00,T&S UK - Subsistence
BEIS,UKRI - AHRC,23/01/2020,Secondments,SMT,Unspecified,98675852,43862.40,Secondments
BEIS,UKRI - AHRC,23/01/2020,T&S UK - Parking Tolls Congestion Charges,SMT,Unspecified,98680115,33.60,T&S UK - Parking Tolls Congestion Charges
BEIS,UKRI - AHRC,23/01/2020,T&S UK - Public Transport,SMT,Unspecified,98680115,9.00,T&S UK - Public Transport
BEIS,UKRI - AHRC,23/01/2020,T&S UK - Public Transport,SMT,Unspecified,98680115,8.60,T&S UK - Public Transport
BEIS,UKRI - AHRC,23/01/2020,T&S UK - Subsistence,SMT,Unspecified,98680115,5.50,T&S UK - Subsistence
BEIS,UKRI - AHRC,23/01/2020,T&S UK - Subsistence,SMT,Unspecified,98680115,30.68,T&S UK - Subsistence
BEIS,UKRI - AHRC,23/01/2020,T&S UK - Subsistence,SMT,Unspecified,98680115,2.20,T&S UK - Subsistence
BEIS,UKRI - AHRC,24/01/2020,Recruitment Costs,Corporate Services,Agenda Resource Management Ltd,98679237,153.91,Recruitment Costs
BEIS,UKRI - AHRC,24/01/2020,Contract Staff,PSU Project Office,Alexander Mann Solutions Ltd,98679627,2795.58,Contract Staff
BEIS,UKRI - AHRC,24/01/2020,Recruitment Costs,Corporate Services,Agenda Resource Management Ltd,98679971,153.91,Recruitment Costs
BEIS,UKRI - AHRC,24/01/2020,Health & Safety (inc. Medicals & Opticians),Executive Office,Unspecified,98680656,157.00,Health & Safety (inc. Medicals & Opticians)
BEIS,UKRI - AHRC,24/01/2020,T&S UK - Other Charges,Executive Office,Unspecified,98680656,39.63,T&S UK - Other Charges
BEIS,UKRI - AHRC,24/01/2020,T&S UK - Subsistence,Operations,Unspecified,98680657,12.00,T&S UK - Subsistence
BEIS,UKRI - AHRC,24/01/2020,T&S UK - Subsistence,Operations,Unspecified,98680657,5.00,T&S UK - Subsistence
BEIS,UKRI - AHRC,24/01/2020,T&S UK - Public Transport,Operations,Unspecified,98680658,1.50,T&S UK - Public Transport
BEIS,UKRI - AHRC,24/01/2020,T&S UK - Subsistence,Operations,Unspecified,98680658,25.00,T&S UK - Subsistence
BEIS,UKRI - AHRC,27/01/2020,Voluntary Deductions,Balance Sheet,Swindon Office Sports and Social Club,98673411,36.00,Voluntary Deductions
BEIS,UKRI - AHRC,28/01/2020,Other Programme Costs,Digital Arts and Humanities and Creative Industries,The Nuffield Foundation,98677291,150000.00,Other Programme Costs
BEIS,UKRI - AHRC,28/01/2020,Meetings & Catering,Executive Office,Nesta Enterprises Ltd,98682319,960.00,Meetings & Catering
BEIS,UKRI - AHRC,28/01/2020,Conferences & Seminars,SMT,Unspecified,98682425,268.00,Conferences & Seminars
BEIS,UKRI - AHRC,28/01/2020,Education Fees & Study Materials,SMT,Unspecified,98682425,109.99,Education Fees & Study Materials
BEIS,UKRI - AHRC,28/01/2020,T&S UK - Parking Tolls Congestion Charges,Public and Stakeholder Engagement,Unspecified,98682426,10.20,T&S UK - Parking Tolls Congestion Charges
BEIS,UKRI - AHRC,28/01/2020,T&S UK - Subsistence,Public and Stakeholder Engagement,Unspecified,98682426,25.00,T&S UK - Subsistence
BEIS,UKRI - AHRC,28/01/2020,T&S UK - Subsistence,Public and Stakeholder Engagement,Unspecified,98682426,6.28,T&S UK - Subsistence
BEIS,UKRI - AHRC,29/01/2020,Non-staff travel and subsistance,Funds for International Collaboration (FIC 20 US),Non Employee Expenses Supplier,98681460,1064.98,Non-staff travel and subsistance
BEIS,UKRI - AHRC,29/01/2020,Non-staff travel and subsistance,Funds for International Collaboration (FIC 20 US),Non Employee Expenses Supplier,98681461,1310.35,Non-staff travel and subsistance
BEIS,UKRI - AHRC,29/01/2020,Non-staff travel and subsistance,Funds for International Collaboration (FIC 20 US),Non Employee Expenses Supplier,98681462,1099.72,Non-staff travel and subsistance
BEIS,UKRI - AHRC,29/01/2020,Non-staff travel and subsistance,Funds for International Collaboration (FIC 20 US),Non Employee Expenses Supplier,98681464,622.06,Non-staff travel and subsistance
BEIS,UKRI - AHRC,29/01/2020,Non-staff travel and subsistance,Funds for International Collaboration (FIC 20 US),Non Employee Expenses Supplier,98681465,1624.36,Non-staff travel and subsistance
BEIS,UKRI - AHRC,29/01/2020,Non-staff travel and subsistance,Public and Stakeholder Engagement,Non Employee Expenses Supplier,98681466,19.00,Non-staff travel and subsistance
BEIS,UKRI - AHRC,29/01/2020,International Subscriptions,CLARIN,Unspecified,98682655,11664.30,International Subscriptions
BEIS,UKRI - AHRC,29/01/2020,T&S UK - Public Transport,FIC- US,Unspecified,98682898,16.00,T&S UK - Public Transport
BEIS,UKRI - AHRC,29/01/2020,T&S UK - Subsistence,FIC- US,Unspecified,98682898,25.00,T&S UK - Subsistence
BEIS,UKRI - AHRC,29/01/2020,T&S UK - Public Transport,Cultural Value EDI,Unspecified,98682899,10.00,T&S UK - Public Transport
BEIS,UKRI - AHRC,29/01/2020,T&S UK - Subsistence,Cultural Value EDI,Unspecified,98682899,6.70,T&S UK - Subsistence
BEIS,UKRI - AHRC,29/01/2020,T&S UK - Subsistence,Cultural Value EDI,Unspecified,98682899,25.00,T&S UK - Subsistence
BEIS,UKRI - AHRC,29/01/2020,T&S UK - Subsistence,Cultural Value EDI,Unspecified,98682899,13.70,T&S UK - Subsistence
BEIS,UKRI - AHRC,29/01/2020,T&S UK - Subsistence,Cultural Value EDI,Unspecified,98682899,5.00,T&S UK - Subsistence
BEIS,UKRI - AHRC,29/01/2020,T&S UK - Public Transport,Industrial Strategy Challenge Fund (ISCF) - Creative Clusters,Unspecified,98682900,5.00,T&S UK - Public Transport
BEIS,UKRI - AHRC,29/01/2020,T&S UK - Public Transport,Industrial Strategy Challenge Fund (ISCF) - Creative Clusters,Unspecified,98682900,24.50,T&S UK - Public Transport
BEIS,UKRI - AHRC,29/01/2020,T&S UK - Public Transport,Industrial Strategy Challenge Fund (ISCF) - Creative Clusters,Unspecified,98682900,13.10,T&S UK - Public Transport
BEIS,UKRI - AHRC,29/01/2020,T&S UK - Public Transport,Strategy and Evidence,Unspecified,98682900,5.00,T&S UK - Public Transport
BEIS,UKRI - AHRC,29/01/2020,T&S UK - Public Transport,Strategy and Evidence,Unspecified,98682900,24.40,T&S UK - Public Transport
BEIS,UKRI - AHRC,29/01/2020,T&S UK - Subsistence,Industrial Strategy Challenge Fund (ISCF) - Creative Clusters,Unspecified,98682900,3.95,T&S UK - Subsistence
BEIS,UKRI - AHRC,29/01/2020,T&S UK - Public Transport,"History, Heritage, Languages and Literature",Unspecified,98682901,10.00,T&S UK - Public Transport
BEIS,UKRI - AHRC,29/01/2020,T&S UK - Other Charges,Health and Environmental Humanities,Unspecified,98682902,6.84,T&S UK - Other Charges
BEIS,UKRI - AHRC,29/01/2020,T&S UK - Parking Tolls Congestion Charges,Health and Environmental Humanities,Unspecified,98682902,16.50,T&S UK - Parking Tolls Congestion Charges
BEIS,UKRI - AHRC,29/01/2020,T&S UK - Public Transport,Health and Environmental Humanities,Unspecified,98682902,4.50,T&S UK - Public Transport
BEIS,UKRI - AHRC,29/01/2020,T&S UK - Public Transport,Health and Environmental Humanities,Unspecified,98682902,31.65,T&S UK - Public Transport
BEIS,UKRI - AHRC,29/01/2020,T&S UK - Subsistence,Health and Environmental Humanities,Unspecified,98682902,14.40,T&S UK - Subsistence
BEIS,UKRI - AHRC,29/01/2020,T&S UK - Subsistence,Health and Environmental Humanities,Unspecified,98682902,93.89,T&S UK - Subsistence
BEIS,UKRI - AHRC,29/01/2020,T&S UK - Subsistence,Health and Environmental Humanities,Unspecified,98682902,24.39,T&S UK - Subsistence
BEIS,UKRI - AHRC,29/01/2020,T&S UK - Subsistence,Health and Environmental Humanities,Unspecified,98682902,30.00,T&S UK - Subsistence
BEIS,UKRI - AHRC,29/01/2020,T&S UK - Public Transport,"History, Heritage, Languages and Literature",Unspecified,98682903,54.81,T&S UK - Public Transport
BEIS,UKRI - AHRC,30/01/2020,Corporate Events,Skills Strategy,Calder Conference Ltd,98681816,2419.99,Corporate Events
BEIS,UKRI - AHRC,30/01/2020,Conferences & Seminars,Skills Strategy,Calder Conference Ltd,98681817,135.01,Conferences & Seminars
BEIS,UKRI - AHRC,30/01/2020,Recruitment Costs,Corporate Services,Warwick University Services Ltd,98682872,500.00,Recruitment Costs
BEIS,UKRI - AHRC,30/01/2020,Non-staff travel and subsistance,"History, Heritage, Languages and Literature",Non Employee Expenses Supplier,98683088,8.65,Non-staff travel and subsistance
BEIS,UKRI - AHRC,30/01/2020,Non-staff travel and subsistance,SMT,Non Employee Expenses Supplier,98683231,136.28,Non-staff travel and subsistance
BEIS,UKRI - AHRC,30/01/2020,Non-staff travel and subsistance,SMT,Non Employee Expenses Supplier,98683232,572.50,Non-staff travel and subsistance
BEIS,UKRI - AHRC,30/01/2020,Non-staff travel and subsistance,SMT,Non Employee Expenses Supplier,98683233,35.00,Non-staff travel and subsistance
BEIS,UKRI - AHRC,30/01/2020,Non-staff travel and subsistance,SMT,Non Employee Expenses Supplier,98683234,158.70,Non-staff travel and subsistance
BEIS,UKRI - AHRC,30/01/2020,Non-staff travel and subsistance,SMT,Non Employee Expenses Supplier,98683235,733.77,Non-staff travel and subsistance
BEIS,UKRI - AHRC,31/01/2020,Recruitment Costs,Corporate Services,Onefix Recruitment Ltd,98681201,150.00,Recruitment Costs
BEIS,UKRI - AHRC,31/01/2020,Non-staff travel and subsistance,Funds for International Collaboration (FIC 20 US),Non Employee Expenses Supplier,98683569,837.36,Non-staff travel and subsistance
BEIS,UKRI - AHRC,31/01/2020,Non-staff travel and subsistance,Public and Stakeholder Engagement,Non Employee Expenses Supplier,98683571,2000.00,Non-staff travel and subsistance
BEIS,UKRI - AHRC,31/01/2020,Non-staff travel and subsistance,Newton Programme,Non Employee Expenses Supplier,98683572,16.55,Non-staff travel and subsistance
BEIS,UKRI - AHRC,31/01/2020,Non-staff travel and subsistance,Newton Programme,Non Employee Expenses Supplier,98683573,146.62,Non-staff travel and subsistance
BEIS,UKRI - AHRC,31/01/2020,Non-staff travel and subsistance,Newton Programme,Non Employee Expenses Supplier,98683574,339.80,Non-staff travel and subsistance
BEIS,UKRI - BBSRC,02/01/2020,T&S UK - Mileage,Innovation and Skills Group CDSU,Unspecified,98667518,63.00,T&S UK - Mileage
BEIS,UKRI - BBSRC,03/01/2020,Reward & Recognition Team Advances,Balance Sheet,EDENRED (UK GROUP) LTD,98626898,1000.00,Reward & Recognition Team Advances
BEIS,UKRI - BBSRC,03/01/2020,T&S UK - Public Transport,CE - Chief Executive,Corporate Airport Transfers Ltd,98662844,112.80,T&S UK - Public Transport
BEIS,UKRI - BBSRC,03/01/2020,Non-staff travel and subsistance,Science Group - Delivery Function,Corporate Travel Management (North) Ltd,98666720,0.50,Non-staff travel and subsistance
BEIS,UKRI - BBSRC,03/01/2020,Non-staff travel and subsistance,Science Group - Delivery Function,Corporate Travel Management (North) Ltd,98666720,50.10,Non-staff travel and subsistance
BEIS,UKRI - BBSRC,03/01/2020,Non-staff travel and subsistance,Science Group - Delivery Function,Corporate Travel Management (North) Ltd,98666720,12.10,Non-staff travel and subsistance
BEIS,UKRI - BBSRC,03/01/2020,T&S Overseas - Accommodation,Science Group,Corporate Travel Management (North) Ltd,98666720,0.80,T&S Overseas - Accommodation
BEIS,UKRI - BBSRC,03/01/2020,T&S Overseas - Accommodation,Science Group,Corporate Travel Management (North) Ltd,98666720,1136.77,T&S Overseas - Accommodation
BEIS,UKRI - BBSRC,03/01/2020,T&S Overseas - Accommodation,Science Group,Corporate Travel Management (North) Ltd,98666720,0.80,T&S Overseas - Accommodation
BEIS,UKRI - BBSRC,03/01/2020,T&S Overseas - Accommodation,Science Group,Corporate Travel Management (North) Ltd,98666720,0.32,T&S Overseas - Accommodation
BEIS,UKRI - BBSRC,03/01/2020,T&S Overseas - Flights,CE - IRU,Corporate Travel Management (North) Ltd,98666720,9.50,T&S Overseas - Flights
BEIS,UKRI - BBSRC,03/01/2020,T&S Overseas - Flights,CE - IRU,Corporate Travel Management (North) Ltd,98666720,2650.57,T&S Overseas - Flights
BEIS,UKRI - BBSRC,03/01/2020,T&S Overseas - Flights,CE - IRU,Corporate Travel Management (North) Ltd,98666720,2.50,T&S Overseas - Flights
BEIS,UKRI - BBSRC,03/01/2020,T&S Overseas - Flights,CE - IRU,Corporate Travel Management (North) Ltd,98666720,206.26,T&S Overseas - Flights
BEIS,UKRI - BBSRC,03/01/2020,T&S Overseas - Flights,CE - IRU,Corporate Travel Management (North) Ltd,98666720,2.50,T&S Overseas - Flights
BEIS,UKRI - BBSRC,03/01/2020,T&S Overseas - Flights,CE - IRU,Corporate Travel Management (North) Ltd,98666720,134.21,T&S Overseas - Flights
BEIS,UKRI - BBSRC,03/01/2020,T&S Overseas - Flights,European Initiatives,Corporate Travel Management (North) Ltd,98666720,2.50,T&S Overseas - Flights
BEIS,UKRI - BBSRC,03/01/2020,T&S Overseas - Flights,European Initiatives,Corporate Travel Management (North) Ltd,98666720,269.26,T&S Overseas - Flights
BEIS,UKRI - BBSRC,03/01/2020,T&S Overseas - Flights,Innovation and Skills Group,Corporate Travel Management (North) Ltd,98666720,2.50,T&S Overseas - Flights
BEIS,UKRI - BBSRC,03/01/2020,T&S Overseas - Flights,Innovation and Skills Group,Corporate Travel Management (North) Ltd,98666720,129.06,T&S Overseas - Flights
BEIS,UKRI - BBSRC,03/01/2020,T&S Overseas - Flights,RISD - UKRO,Corporate Travel Management (North) Ltd,98666720,4.50,T&S Overseas - Flights
BEIS,UKRI - BBSRC,03/01/2020,T&S Overseas - Flights,RISD - UKRO,Corporate Travel Management (North) Ltd,98666720,273.00,T&S Overseas - Flights
BEIS,UKRI - BBSRC,03/01/2020,T&S Overseas - Flights,Science Group,Corporate Travel Management (North) Ltd,98666720,9.50,T&S Overseas - Flights
BEIS,UKRI - BBSRC,03/01/2020,T&S Overseas - Flights,Science Group,Corporate Travel Management (North) Ltd,98666720,2934.87,T&S Overseas - Flights
BEIS,UKRI - BBSRC,03/01/2020,T&S UK - Accommodation,CE - CPS,Corporate Travel Management (North) Ltd,98666720,0.80,T&S UK - Accommodation
BEIS,UKRI - BBSRC,03/01/2020,T&S UK - Accommodation,CE - CPS,Corporate Travel Management (North) Ltd,98666720,75.00,T&S UK - Accommodation
BEIS,UKRI - BBSRC,03/01/2020,T&S UK - Accommodation,CE - CPS,Corporate Travel Management (North) Ltd,98666720,0.16,T&S UK - Accommodation
BEIS,UKRI - BBSRC,03/01/2020,T&S UK - Accommodation,CE - Chief Executive,Corporate Travel Management (North) Ltd,98666720,0.80,T&S UK - Accommodation
BEIS,UKRI - BBSRC,03/01/2020,T&S UK - Accommodation,CE - Chief Executive,Corporate Travel Management (North) Ltd,98666720,94.00,T&S UK - Accommodation
BEIS,UKRI - BBSRC,03/01/2020,T&S UK - Accommodation,CE - Chief Executive,Corporate Travel Management (North) Ltd,98666720,0.80,T&S UK - Accommodation
BEIS,UKRI - BBSRC,03/01/2020,T&S UK - Accommodation,CE - Chief Executive,Corporate Travel Management (North) Ltd,98666720,0.80,T&S UK - Accommodation
BEIS,UKRI - BBSRC,03/01/2020,T&S UK - Accommodation,CE - Chief Executive,Corporate Travel Management (North) Ltd,98666720,0.80,T&S UK - Accommodation
BEIS,UKRI - BBSRC,03/01/2020,T&S UK - Accommodation,CE - Chief Executive,Corporate Travel Management (North) Ltd,98666720,156.30,T&S UK - Accommodation
BEIS,UKRI - BBSRC,03/01/2020,T&S UK - Accommodation,CE - Chief Executive,Corporate Travel Management (North) Ltd,98666720,0.64,T&S UK - Accommodation
BEIS,UKRI - BBSRC,03/01/2020,T&S UK - Accommodation,CE - IRU,Corporate Travel Management (North) Ltd,98666720,0.80,T&S UK - Accommodation
BEIS,UKRI - BBSRC,03/01/2020,T&S UK - Accommodation,CE - IRU,Corporate Travel Management (North) Ltd,98666720,63.50,T&S UK - Accommodation
BEIS,UKRI - BBSRC,03/01/2020,T&S UK - Accommodation,CE - IRU,Corporate Travel Management (North) Ltd,98666720,0.80,T&S UK - Accommodation
BEIS,UKRI - BBSRC,03/01/2020,T&S UK - Accommodation,CE - IRU,Corporate Travel Management (North) Ltd,98666720,63.50,T&S UK - Accommodation
BEIS,UKRI - BBSRC,03/01/2020,T&S UK - Accommodation,CE - IRU,Corporate Travel Management (North) Ltd,98666720,0.80,T&S UK - Accommodation
BEIS,UKRI - BBSRC,03/01/2020,T&S UK - Accommodation,CE - IRU,Corporate Travel Management (North) Ltd,98666720,64.78,T&S UK - Accommodation
BEIS,UKRI - BBSRC,03/01/2020,T&S UK - Accommodation,CE - IRU,Corporate Travel Management (North) Ltd,98666720,0.48,T&S UK - Accommodation
BEIS,UKRI - BBSRC,03/01/2020,T&S UK - Accommodation,CIMG - Council Secretariat,Corporate Travel Management (North) Ltd,98666720,0.80,T&S UK - Accommodation
BEIS,UKRI - BBSRC,03/01/2020,T&S UK - Accommodation,CIMG - Council Secretariat,Corporate Travel Management (North) Ltd,98666720,112.00,T&S UK - Accommodation
BEIS,UKRI - BBSRC,03/01/2020,T&S UK - Accommodation,CIMG - Council Secretariat,Corporate Travel Management (North) Ltd,98666720,0.16,T&S UK - Accommodation
BEIS,UKRI - BBSRC,03/01/2020,T&S UK - Accommodation,CIMG - Director,Corporate Travel Management (North) Ltd,98666720,0.80,T&S UK - Accommodation
BEIS,UKRI - BBSRC,03/01/2020,T&S UK - Accommodation,CIMG - Director,Corporate Travel Management (North) Ltd,98666720,75.00,T&S UK - Accommodation
BEIS,UKRI - BBSRC,03/01/2020,T&S UK - Accommodation,CIMG - Director,Corporate Travel Management (North) Ltd,98666720,0.80,T&S UK - Accommodation
BEIS,UKRI - BBSRC,03/01/2020,T&S UK - Accommodation,CIMG - Director,Corporate Travel Management (North) Ltd,98666720,94.00,T&S UK - Accommodation
BEIS,UKRI - BBSRC,03/01/2020,T&S UK - Accommodation,CIMG - Director,Corporate Travel Management (North) Ltd,98666720,0.32,T&S UK - Accommodation
BEIS,UKRI - BBSRC,03/01/2020,T&S UK - Accommodation,CIMG - Programme Office,Corporate Travel Management (North) Ltd,98666720,0.80,T&S UK - Accommodation
BEIS,UKRI - BBSRC,03/01/2020,T&S UK - Accommodation,CIMG - Programme Office,Corporate Travel Management (North) Ltd,98666720,70.00,T&S UK - Accommodation
BEIS,UKRI - BBSRC,03/01/2020,T&S UK - Accommodation,CIMG - Programme Office,Corporate Travel Management (North) Ltd,98666720,0.80,T&S UK - Accommodation
BEIS,UKRI - BBSRC,03/01/2020,T&S UK - Accommodation,CIMG - Programme Office,Corporate Travel Management (North) Ltd,98666720,0.32,T&S UK - Accommodation
BEIS,UKRI - BBSRC,03/01/2020,T&S UK - Accommodation,European Initiatives,Corporate Travel Management (North) Ltd,98666720,0.80,T&S UK - Accommodation
BEIS,UKRI - BBSRC,03/01/2020,T&S UK - Accommodation,European Initiatives,Corporate Travel Management (North) Ltd,98666720,117.60,T&S UK - Accommodation
BEIS,UKRI - BBSRC,03/01/2020,T&S UK - Accommodation,European Initiatives,Corporate Travel Management (North) Ltd,98666720,0.16,T&S UK - Accommodation
BEIS,UKRI - BBSRC,03/01/2020,T&S UK - Accommodation,FG - Estates,Corporate Travel Management (North) Ltd,98666720,0.80,T&S UK - Accommodation
BEIS,UKRI - BBSRC,03/01/2020,T&S UK - Accommodation,FG - Estates,Corporate Travel Management (North) Ltd,98666720,0.80,T&S UK - Accommodation
BEIS,UKRI - BBSRC,03/01/2020,T&S UK - Accommodation,FG - Estates,Corporate Travel Management (North) Ltd,98666720,108.00,T&S UK - Accommodation
BEIS,UKRI - BBSRC,03/01/2020,T&S UK - Accommodation,FG - Estates,Corporate Travel Management (North) Ltd,98666720,0.80,T&S UK - Accommodation
BEIS,UKRI - BBSRC,03/01/2020,T&S UK - Accommodation,FG - Estates,Corporate Travel Management (North) Ltd,98666720,95.00,T&S UK - Accommodation
BEIS,UKRI - BBSRC,03/01/2020,T&S UK - Accommodation,FG - Estates,Corporate Travel Management (North) Ltd,98666720,0.32,T&S UK - Accommodation
BEIS,UKRI - BBSRC,03/01/2020,T&S UK - Accommodation,FG - Estates,Corporate Travel Management (North) Ltd,98666720,0.16,T&S UK - Accommodation
BEIS,UKRI - BBSRC,03/01/2020,T&S UK - Accommodation,RISD - UKRO,Corporate Travel Management (North) Ltd,98666720,0.80,T&S UK - Accommodation
BEIS,UKRI - BBSRC,03/01/2020,T&S UK - Accommodation,RISD - UKRO,Corporate Travel Management (North) Ltd,98666720,40.00,T&S UK - Accommodation
BEIS,UKRI - BBSRC,03/01/2020,T&S UK - Accommodation,RISD - UKRO,Corporate Travel Management (North) Ltd,98666720,0.16,T&S UK - Accommodation
BEIS,UKRI - BBSRC,03/01/2020,T&S UK - Accommodation,Science Group,Corporate Travel Management (North) Ltd,98666720,0.80,T&S UK - Accommodation
BEIS,UKRI - BBSRC,03/01/2020,T&S UK - Accommodation,Science Group,Corporate Travel Management (North) Ltd,98666720,94.00,T&S UK - Accommodation
BEIS,UKRI - BBSRC,03/01/2020,T&S UK - Accommodation,Science Group,Corporate Travel Management (North) Ltd,98666720,0.80,T&S UK - Accommodation
BEIS,UKRI - BBSRC,03/01/2020,T&S UK - Accommodation,Science Group,Corporate Travel Management (North) Ltd,98666720,94.00,T&S UK - Accommodation
BEIS,UKRI - BBSRC,03/01/2020,T&S UK - Accommodation,Science Group,Corporate Travel Management (North) Ltd,98666720,0.80,T&S UK - Accommodation
BEIS,UKRI - BBSRC,03/01/2020,T&S UK - Accommodation,Science Group,Corporate Travel Management (North) Ltd,98666720,0.80,T&S UK - Accommodation
BEIS,UKRI - BBSRC,03/01/2020,T&S UK - Accommodation,Science Group,Corporate Travel Management (North) Ltd,98666720,157.00,T&S UK - Accommodation
BEIS,UKRI - BBSRC,03/01/2020,T&S UK - Accommodation,Science Group,Corporate Travel Management (North) Ltd,98666720,0.80,T&S UK - Accommodation
BEIS,UKRI - BBSRC,03/01/2020,T&S UK - Accommodation,Science Group,Corporate Travel Management (North) Ltd,98666720,152.70,T&S UK - Accommodation
BEIS,UKRI - BBSRC,03/01/2020,T&S UK - Accommodation,Science Group,Corporate Travel Management (North) Ltd,98666720,0.80,T&S UK - Accommodation
BEIS,UKRI - BBSRC,03/01/2020,T&S UK - Accommodation,Science Group,Corporate Travel Management (North) Ltd,98666720,100.00,T&S UK - Accommodation
BEIS,UKRI - BBSRC,03/01/2020,T&S UK - Accommodation,Science Group,Corporate Travel Management (North) Ltd,98666720,0.80,T&S UK - Accommodation
BEIS,UKRI - BBSRC,03/01/2020,T&S UK - Accommodation,Science Group,Corporate Travel Management (North) Ltd,98666720,50.24,T&S UK - Accommodation
BEIS,UKRI - BBSRC,03/01/2020,T&S UK - Accommodation,Science Group,Corporate Travel Management (North) Ltd,98666720,1.12,T&S UK - Accommodation
BEIS,UKRI - BBSRC,03/01/2020,T&S UK - Accommodation,Science Group - Delivery Function,Corporate Travel Management (North) Ltd,98666720,0.80,T&S UK - Accommodation
BEIS,UKRI - BBSRC,03/01/2020,T&S UK - Accommodation,Science Group - Delivery Function,Corporate Travel Management (North) Ltd,98666720,0.16,T&S UK - Accommodation
BEIS,UKRI - BBSRC,03/01/2020,T&S UK - Flights,FG - Estates,Corporate Travel Management (North) Ltd,98666720,2.50,T&S UK - Flights
BEIS,UKRI - BBSRC,03/01/2020,T&S UK - Flights,FG - Estates,Corporate Travel Management (North) Ltd,98666720,71.98,T&S UK - Flights
BEIS,UKRI - BBSRC,03/01/2020,T&S UK - Flights,Science Group,Corporate Travel Management (North) Ltd,98666720,2.50,T&S UK - Flights
BEIS,UKRI - BBSRC,03/01/2020,T&S UK - Flights,Science Group,Corporate Travel Management (North) Ltd,98666720,69.98,T&S UK - Flights
BEIS,UKRI - BBSRC,03/01/2020,T&S UK - Public Transport,CE - CPS,Corporate Travel Management (North) Ltd,98666720,0.25,T&S UK - Public Transport
BEIS,UKRI - BBSRC,03/01/2020,T&S UK - Public Transport,CE - CPS,Corporate Travel Management (North) Ltd,98666720,46.15,T&S UK - Public Transport
BEIS,UKRI - BBSRC,03/01/2020,T&S UK - Public Transport,CE - CPS,Corporate Travel Management (North) Ltd,98666720,0.25,T&S UK - Public Transport
BEIS,UKRI - BBSRC,03/01/2020,T&S UK - Public Transport,CE - CPS,Corporate Travel Management (North) Ltd,98666720,95.00,T&S UK - Public Transport
BEIS,UKRI - BBSRC,03/01/2020,T&S UK - Public Transport,CE - CPS,Corporate Travel Management (North) Ltd,98666720,0.25,T&S UK - Public Transport
BEIS,UKRI - BBSRC,03/01/2020,T&S UK - Public Transport,CE - CPS,Corporate Travel Management (North) Ltd,98666720,104.90,T&S UK - Public Transport
BEIS,UKRI - BBSRC,03/01/2020,T&S UK - Public Transport,CE - CPS,Corporate Travel Management (North) Ltd,98666720,0.25,T&S UK - Public Transport
BEIS,UKRI - BBSRC,03/01/2020,T&S UK - Public Transport,CE - CPS,Corporate Travel Management (North) Ltd,98666720,122.90,T&S UK - Public Transport
BEIS,UKRI - BBSRC,03/01/2020,T&S UK - Public Transport,CE - CPS,Corporate Travel Management (North) Ltd,98666720,5.00,T&S UK - Public Transport
BEIS,UKRI - BBSRC,03/01/2020,T&S UK - Public Transport,CE - CPS,Corporate Travel Management (North) Ltd,98666720,-50.40,T&S UK - Public Transport
BEIS,UKRI - BBSRC,03/01/2020,T&S UK - Public Transport,CE - Chief Executive,Corporate Travel Management (North) Ltd,98666720,0.25,T&S UK - Public Transport
BEIS,UKRI - BBSRC,03/01/2020,T&S UK - Public Transport,CE - Chief Executive,Corporate Travel Management (North) Ltd,98666720,54.00,T&S UK - Public Transport
BEIS,UKRI - BBSRC,03/01/2020,T&S UK - Public Transport,CE - Chief Executive,Corporate Travel Management (North) Ltd,98666720,0.25,T&S UK - Public Transport
BEIS,UKRI - BBSRC,03/01/2020,T&S UK - Public Transport,CE - Chief Executive,Corporate Travel Management (North) Ltd,98666720,133.10,T&S UK - Public Transport
BEIS,UKRI - BBSRC,03/01/2020,T&S UK - Public Transport,CE - Chief Executive,Corporate Travel Management (North) Ltd,98666720,0.25,T&S UK - Public Transport
BEIS,UKRI - BBSRC,03/01/2020,T&S UK - Public Transport,CE - Chief Executive,Corporate Travel Management (North) Ltd,98666720,178.00,T&S UK - Public Transport
BEIS,UKRI - BBSRC,03/01/2020,T&S UK - Public Transport,CE - Chief Executive,Corporate Travel Management (North) Ltd,98666720,10.00,T&S UK - Public Transport
BEIS,UKRI - BBSRC,03/01/2020,T&S UK - Public Transport,CE - Chief Executive,Corporate Travel Management (North) Ltd,98666720,-87.80,T&S UK - Public Transport
BEIS,UKRI - BBSRC,03/01/2020,T&S UK - Public Transport,CE - IRU,Corporate Travel Management (North) Ltd,98666720,0.25,T&S UK - Public Transport
BEIS,UKRI - BBSRC,03/01/2020,T&S UK - Public Transport,CE - IRU,Corporate Travel Management (North) Ltd,98666720,144.00,T&S UK - Public Transport
BEIS,UKRI - BBSRC,03/01/2020,T&S UK - Public Transport,CE - IRU,Corporate Travel Management (North) Ltd,98666720,0.25,T&S UK - Public Transport
BEIS,UKRI - BBSRC,03/01/2020,T&S UK - Public Transport,CE - IRU,Corporate Travel Management (North) Ltd,98666720,58.80,T&S UK - Public Transport
BEIS,UKRI - BBSRC,03/01/2020,T&S UK - Public Transport,CE - IRU,Corporate Travel Management (North) Ltd,98666720,0.25,T&S UK - Public Transport
BEIS,UKRI - BBSRC,03/01/2020,T&S UK - Public Transport,CE - IRU,Corporate Travel Management (North) Ltd,98666720,70.40,T&S UK - Public Transport
BEIS,UKRI - BBSRC,03/01/2020,T&S UK - Public Transport,CE - IRU,Corporate Travel Management (North) Ltd,98666720,0.25,T&S UK - Public Transport
BEIS,UKRI - BBSRC,03/01/2020,T&S UK - Public Transport,CE - IRU,Corporate Travel Management (North) Ltd,98666720,114.40,T&S UK - Public Transport
BEIS,UKRI - BBSRC,03/01/2020,T&S UK - Public Transport,CE - IRU,Corporate Travel Management (North) Ltd,98666720,0.25,T&S UK - Public Transport
BEIS,UKRI - BBSRC,03/01/2020,T&S UK - Public Transport,CE - IRU,Corporate Travel Management (North) Ltd,98666720,10.00,T&S UK - Public Transport
BEIS,UKRI - BBSRC,03/01/2020,T&S UK - Public Transport,CE - IRU,Corporate Travel Management (North) Ltd,98666720,0.25,T&S UK - Public Transport
BEIS,UKRI - BBSRC,03/01/2020,T&S UK - Public Transport,CE - IRU,Corporate Travel Management (North) Ltd,98666720,87.60,T&S UK - Public Transport
BEIS,UKRI - BBSRC,03/01/2020,T&S UK - Public Transport,CIMG - Director,Corporate Travel Management (North) Ltd,98666720,0.25,T&S UK - Public Transport
BEIS,UKRI - BBSRC,03/01/2020,T&S UK - Public Transport,CIMG - Director,Corporate Travel Management (North) Ltd,98666720,54.10,T&S UK - Public Transport
BEIS,UKRI - BBSRC,03/01/2020,T&S UK - Public Transport,Innovation and Skills Group,Corporate Travel Management (North) Ltd,98666720,5.00,T&S UK - Public Transport
BEIS,UKRI - BBSRC,03/01/2020,T&S UK - Public Transport,Innovation and Skills Group,Corporate Travel Management (North) Ltd,98666720,-43.45,T&S UK - Public Transport
BEIS,UKRI - BBSRC,03/01/2020,T&S UK - Public Transport,Innovation and Skills Group,Corporate Travel Management (North) Ltd,98666720,0.25,T&S UK - Public Transport
BEIS,UKRI - BBSRC,03/01/2020,T&S UK - Public Transport,Innovation and Skills Group,Corporate Travel Management (North) Ltd,98666720,144.70,T&S UK - Public Transport
BEIS,UKRI - BBSRC,03/01/2020,T&S UK - Public Transport,Innovation and Skills Group,Corporate Travel Management (North) Ltd,98666720,5.00,T&S UK - Public Transport
BEIS,UKRI - BBSRC,03/01/2020,T&S UK - Public Transport,Innovation and Skills Group,Corporate Travel Management (North) Ltd,98666720,-139.00,T&S UK - Public Transport
BEIS,UKRI - BBSRC,03/01/2020,T&S UK - Public Transport,Innovation and Skills Group,Corporate Travel Management (North) Ltd,98666720,0.25,T&S UK - Public Transport
BEIS,UKRI - BBSRC,03/01/2020,T&S UK - Public Transport,Innovation and Skills Group,Corporate Travel Management (North) Ltd,98666720,43.20,T&S UK - Public Transport
BEIS,UKRI - BBSRC,03/01/2020,T&S UK - Public Transport,Innovation and Skills Group,Corporate Travel Management (North) Ltd,98666720,0.25,T&S UK - Public Transport
BEIS,UKRI - BBSRC,03/01/2020,T&S UK - Public Transport,Innovation and Skills Group,Corporate Travel Management (North) Ltd,98666720,148.00,T&S UK - Public Transport
BEIS,UKRI - BBSRC,03/01/2020,T&S UK - Public Transport,Innovation and Skills Group,Corporate Travel Management (North) Ltd,98666720,0.25,T&S UK - Public Transport
BEIS,UKRI - BBSRC,03/01/2020,T&S UK - Public Transport,Innovation and Skills Group,Corporate Travel Management (North) Ltd,98666720,211.65,T&S UK - Public Transport
BEIS,UKRI - BBSRC,03/01/2020,T&S UK - Public Transport,Innovation and Skills Group,Corporate Travel Management (North) Ltd,98666720,0.25,T&S UK - Public Transport
BEIS,UKRI - BBSRC,03/01/2020,T&S UK - Public Transport,Innovation and Skills Group,Corporate Travel Management (North) Ltd,98666720,96.55,T&S UK - Public Transport
BEIS,UKRI - BBSRC,03/01/2020,T&S UK - Public Transport,Innovation and Skills Group,Corporate Travel Management (North) Ltd,98666720,0.25,T&S UK - Public Transport
BEIS,UKRI - BBSRC,03/01/2020,T&S UK - Public Transport,Innovation and Skills Group,Corporate Travel Management (North) Ltd,98666720,168.40,T&S UK - Public Transport
BEIS,UKRI - BBSRC,03/01/2020,T&S UK - Public Transport,Innovation and Skills Group,Corporate Travel Management (North) Ltd,98666720,0.25,T&S UK - Public Transport
BEIS,UKRI - BBSRC,03/01/2020,T&S UK - Public Transport,Innovation and Skills Group,Corporate Travel Management (North) Ltd,98666720,81.10,T&S UK - Public Transport
BEIS,UKRI - BBSRC,03/01/2020,T&S UK - Public Transport,Innovation and Skills Group,Corporate Travel Management (North) Ltd,98666720,0.25,T&S UK - Public Transport
BEIS,UKRI - BBSRC,03/01/2020,T&S UK - Public Transport,Innovation and Skills Group,Corporate Travel Management (North) Ltd,98666720,169.80,T&S UK - Public Transport
BEIS,UKRI - BBSRC,03/01/2020,T&S UK - Public Transport,Innovation and Skills Group,Corporate Travel Management (North) Ltd,98666720,0.25,T&S UK - Public Transport
BEIS,UKRI - BBSRC,03/01/2020,T&S UK - Public Transport,Innovation and Skills Group,Corporate Travel Management (North) Ltd,98666720,57.40,T&S UK - Public Transport
BEIS,UKRI - BBSRC,03/01/2020,T&S UK - Public Transport,Innovation and Skills Group,Corporate Travel Management (North) Ltd,98666720,5.00,T&S UK - Public Transport
BEIS,UKRI - BBSRC,03/01/2020,T&S UK - Public Transport,Innovation and Skills Group,Corporate Travel Management (North) Ltd,98666720,-64.90,T&S UK - Public Transport
BEIS,UKRI - BBSRC,03/01/2020,T&S UK - Public Transport,Innovation and Skills Group,Corporate Travel Management (North) Ltd,98666720,0.25,T&S UK - Public Transport
BEIS,UKRI - BBSRC,03/01/2020,T&S UK - Public Transport,Innovation and Skills Group,Corporate Travel Management (North) Ltd,98666720,54.10,T&S UK - Public Transport
BEIS,UKRI - BBSRC,03/01/2020,T&S UK - Public Transport,Innovation and Skills Group,Corporate Travel Management (North) Ltd,98666720,0.25,T&S UK - Public Transport
BEIS,UKRI - BBSRC,03/01/2020,T&S UK - Public Transport,Innovation and Skills Group,Corporate Travel Management (North) Ltd,98666720,106.60,T&S UK - Public Transport
BEIS,UKRI - BBSRC,03/01/2020,T&S UK - Public Transport,Innovation and Skills Group,Corporate Travel Management (North) Ltd,98666720,0.25,T&S UK - Public Transport
BEIS,UKRI - BBSRC,03/01/2020,T&S UK - Public Transport,Innovation and Skills Group,Corporate Travel Management (North) Ltd,98666720,106.60,T&S UK - Public Transport
BEIS,UKRI - BBSRC,03/01/2020,T&S UK - Public Transport,Innovation and Skills Group,Corporate Travel Management (North) Ltd,98666720,0.25,T&S UK - Public Transport
BEIS,UKRI - BBSRC,03/01/2020,T&S UK - Public Transport,Innovation and Skills Group,Corporate Travel Management (North) Ltd,98666720,169.95,T&S UK - Public Transport
BEIS,UKRI - BBSRC,03/01/2020,T&S UK - Public Transport,Innovation and Skills Group,Corporate Travel Management (North) Ltd,98666720,0.25,T&S UK - Public Transport
BEIS,UKRI - BBSRC,03/01/2020,T&S UK - Public Transport,Innovation and Skills Group,Corporate Travel Management (North) Ltd,98666720,114.40,T&S UK - Public Transport
BEIS,UKRI - BBSRC,03/01/2020,T&S UK - Public Transport,Innovation and Skills Group,Corporate Travel Management (North) Ltd,98666720,0.25,T&S UK - Public Transport
BEIS,UKRI - BBSRC,03/01/2020,T&S UK - Public Transport,Innovation and Skills Group,Corporate Travel Management (North) Ltd,98666720,16.50,T&S UK - Public Transport
BEIS,UKRI - BBSRC,03/01/2020,T&S UK - Public Transport,Innovation and Skills Group,Corporate Travel Management (North) Ltd,98666720,0.25,T&S UK - Public Transport
BEIS,UKRI - BBSRC,03/01/2020,T&S UK - Public Transport,Innovation and Skills Group,Corporate Travel Management (North) Ltd,98666720,165.00,T&S UK - Public Transport
BEIS,UKRI - BBSRC,03/01/2020,T&S UK - Public Transport,Innovation and Skills Group,Corporate Travel Management (North) Ltd,98666720,0.25,T&S UK - Public Transport
BEIS,UKRI - BBSRC,03/01/2020,T&S UK - Public Transport,Innovation and Skills Group,Corporate Travel Management (North) Ltd,98666720,106.60,T&S UK - Public Transport
BEIS,UKRI - BBSRC,03/01/2020,T&S UK - Public Transport,Innovation and Skills Group,Corporate Travel Management (North) Ltd,98666720,5.00,T&S UK - Public Transport
BEIS,UKRI - BBSRC,03/01/2020,T&S UK - Public Transport,Innovation and Skills Group,Corporate Travel Management (North) Ltd,98666720,-163.40,T&S UK - Public Transport
BEIS,UKRI - BBSRC,03/01/2020,T&S UK - Public Transport,Innovation and Skills Group,Corporate Travel Management (North) Ltd,98666720,0.25,T&S UK - Public Transport
BEIS,UKRI - BBSRC,03/01/2020,T&S UK - Public Transport,Innovation and Skills Group,Corporate Travel Management (North) Ltd,98666720,24.70,T&S UK - Public Transport
BEIS,UKRI - BBSRC,03/01/2020,T&S UK - Public Transport,RISD - UKRO,Corporate Travel Management (North) Ltd,98666720,10.00,T&S UK - Public Transport
BEIS,UKRI - BBSRC,03/01/2020,T&S UK - Public Transport,RISD - UKRO,Corporate Travel Management (North) Ltd,98666720,-20.50,T&S UK - Public Transport
BEIS,UKRI - BBSRC,03/01/2020,T&S UK - Public Transport,RISD - UKRO,Corporate Travel Management (North) Ltd,98666720,5.00,T&S UK - Public Transport
BEIS,UKRI - BBSRC,03/01/2020,T&S UK - Public Transport,RISD - UKRO,Corporate Travel Management (North) Ltd,98666720,-12.70,T&S UK - Public Transport
BEIS,UKRI - BBSRC,03/01/2020,T&S UK - Public Transport,RISD - UKRO,Corporate Travel Management (North) Ltd,98666720,5.00,T&S UK - Public Transport
BEIS,UKRI - BBSRC,03/01/2020,T&S UK - Public Transport,RISD - UKRO,Corporate Travel Management (North) Ltd,98666720,-21.40,T&S UK - Public Transport
BEIS,UKRI - BBSRC,03/01/2020,T&S UK - Public Transport,Science Group,Corporate Travel Management (North) Ltd,98666720,0.25,T&S UK - Public Transport
BEIS,UKRI - BBSRC,03/01/2020,T&S UK - Public Transport,Science Group,Corporate Travel Management (North) Ltd,98666720,103.80,T&S UK - Public Transport
BEIS,UKRI - BBSRC,03/01/2020,T&S UK - Public Transport,Science Group,Corporate Travel Management (North) Ltd,98666720,0.25,T&S UK - Public Transport
BEIS,UKRI - BBSRC,03/01/2020,T&S UK - Public Transport,Science Group,Corporate Travel Management (North) Ltd,98666720,88.55,T&S UK - Public Transport
BEIS,UKRI - BBSRC,03/01/2020,T&S UK - Public Transport,Science Group,Corporate Travel Management (North) Ltd,98666720,10.00,T&S UK - Public Transport
BEIS,UKRI - BBSRC,03/01/2020,T&S UK - Public Transport,Science Group,Corporate Travel Management (North) Ltd,98666720,-93.80,T&S UK - Public Transport
BEIS,UKRI - BBSRC,03/01/2020,T&S UK - Public Transport,Science Group,Corporate Travel Management (North) Ltd,98666720,0.25,T&S UK - Public Transport
BEIS,UKRI - BBSRC,03/01/2020,T&S UK - Public Transport,Science Group,Corporate Travel Management (North) Ltd,98666720,49.00,T&S UK - Public Transport
BEIS,UKRI - BBSRC,03/01/2020,T&S UK - Public Transport,Science Group,Corporate Travel Management (North) Ltd,98666720,0.25,T&S UK - Public Transport
BEIS,UKRI - BBSRC,03/01/2020,T&S UK - Public Transport,Science Group,Corporate Travel Management (North) Ltd,98666720,23.30,T&S UK - Public Transport
BEIS,UKRI - BBSRC,03/01/2020,T&S UK - Public Transport,Science Group,Corporate Travel Management (North) Ltd,98666720,0.25,T&S UK - Public Transport
BEIS,UKRI - BBSRC,03/01/2020,T&S UK - Public Transport,Science Group,Corporate Travel Management (North) Ltd,98666720,49.60,T&S UK - Public Transport
BEIS,UKRI - BBSRC,03/01/2020,T&S UK - Public Transport,Science Group,Corporate Travel Management (North) Ltd,98666720,0.25,T&S UK - Public Transport
BEIS,UKRI - BBSRC,03/01/2020,T&S UK - Public Transport,Science Group,Corporate Travel Management (North) Ltd,98666720,23.30,T&S UK - Public Transport
BEIS,UKRI - BBSRC,03/01/2020,T&S UK - Public Transport,Science Group,Corporate Travel Management (North) Ltd,98666720,0.25,T&S UK - Public Transport
BEIS,UKRI - BBSRC,03/01/2020,T&S UK - Public Transport,Science Group,Corporate Travel Management (North) Ltd,98666720,80.20,T&S UK - Public Transport
BEIS,UKRI - BBSRC,03/01/2020,T&S UK - Public Transport,Science Group,Corporate Travel Management (North) Ltd,98666720,0.25,T&S UK - Public Transport
BEIS,UKRI - BBSRC,03/01/2020,T&S UK - Public Transport,Science Group,Corporate Travel Management (North) Ltd,98666720,36.10,T&S UK - Public Transport
BEIS,UKRI - BBSRC,03/01/2020,T&S UK - Public Transport,Science Group,Corporate Travel Management (North) Ltd,98666720,0.25,T&S UK - Public Transport
BEIS,UKRI - BBSRC,03/01/2020,T&S UK - Public Transport,Science Group,Corporate Travel Management (North) Ltd,98666720,95.30,T&S UK - Public Transport
BEIS,UKRI - BBSRC,03/01/2020,T&S UK - Public Transport,Science Group,Corporate Travel Management (North) Ltd,98666720,0.25,T&S UK - Public Transport
BEIS,UKRI - BBSRC,03/01/2020,T&S UK - Public Transport,Science Group,Corporate Travel Management (North) Ltd,98666720,103.60,T&S UK - Public Transport
BEIS,UKRI - BBSRC,03/01/2020,T&S UK - Public Transport,Science Group,Corporate Travel Management (North) Ltd,98666720,0.25,T&S UK - Public Transport
BEIS,UKRI - BBSRC,03/01/2020,T&S UK - Public Transport,Science Group,Corporate Travel Management (North) Ltd,98666720,144.00,T&S UK - Public Transport
BEIS,UKRI - BBSRC,03/01/2020,T&S UK - Public Transport,Science Group,Corporate Travel Management (North) Ltd,98666720,2.60,T&S UK - Public Transport
BEIS,UKRI - BBSRC,03/01/2020,T&S UK - Public Transport,Science Group,Corporate Travel Management (North) Ltd,98666720,38.20,T&S UK - Public Transport
BEIS,UKRI - BBSRC,03/01/2020,T&S UK - Public Transport,Science Group,Corporate Travel Management (North) Ltd,98666720,0.25,T&S UK - Public Transport
BEIS,UKRI - BBSRC,03/01/2020,T&S UK - Public Transport,Science Group,Corporate Travel Management (North) Ltd,98666720,148.00,T&S UK - Public Transport
BEIS,UKRI - BBSRC,03/01/2020,T&S UK - Public Transport,Science Group,Corporate Travel Management (North) Ltd,98666720,0.25,T&S UK - Public Transport
BEIS,UKRI - BBSRC,03/01/2020,T&S UK - Public Transport,Science Group,Corporate Travel Management (North) Ltd,98666720,82.00,T&S UK - Public Transport
BEIS,UKRI - BBSRC,03/01/2020,T&S UK - Public Transport,Science Group,Corporate Travel Management (North) Ltd,98666720,0.25,T&S UK - Public Transport
BEIS,UKRI - BBSRC,03/01/2020,T&S UK - Public Transport,Science Group,Corporate Travel Management (North) Ltd,98666720,117.50,T&S UK - Public Transport
BEIS,UKRI - BBSRC,03/01/2020,T&S UK - Public Transport,Science Group,Corporate Travel Management (North) Ltd,98666720,0.25,T&S UK - Public Transport
BEIS,UKRI - BBSRC,03/01/2020,T&S UK - Public Transport,Science Group,Corporate Travel Management (North) Ltd,98666720,117.50,T&S UK - Public Transport
BEIS,UKRI - BBSRC,03/01/2020,T&S UK - Public Transport,Science Group,Corporate Travel Management (North) Ltd,98666720,0.25,T&S UK - Public Transport
BEIS,UKRI - BBSRC,03/01/2020,T&S UK - Public Transport,Science Group,Corporate Travel Management (North) Ltd,98666720,288.80,T&S UK - Public Transport
BEIS,UKRI - BBSRC,03/01/2020,T&S UK - Public Transport,Science Group,Corporate Travel Management (North) Ltd,98666720,0.25,T&S UK - Public Transport
BEIS,UKRI - BBSRC,03/01/2020,T&S UK - Public Transport,Science Group,Corporate Travel Management (North) Ltd,98666720,7.00,T&S UK - Public Transport
BEIS,UKRI - BBSRC,03/01/2020,T&S UK - Public Transport,Science Group,Corporate Travel Management (North) Ltd,98666720,2.60,T&S UK - Public Transport
BEIS,UKRI - BBSRC,03/01/2020,T&S UK - Public Transport,Science Group,Corporate Travel Management (North) Ltd,98666720,38.20,T&S UK - Public Transport
BEIS,UKRI - BBSRC,03/01/2020,T&S UK - Public Transport,Science Group,Corporate Travel Management (North) Ltd,98666720,0.25,T&S UK - Public Transport
BEIS,UKRI - BBSRC,03/01/2020,T&S UK - Public Transport,Science Group,Corporate Travel Management (North) Ltd,98666720,192.50,T&S UK - Public Transport
BEIS,UKRI - BBSRC,03/01/2020,T&S UK - Public Transport,Science Group,Corporate Travel Management (North) Ltd,98666720,0.50,T&S UK - Public Transport
BEIS,UKRI - BBSRC,03/01/2020,T&S UK - Public Transport,Science Group,Corporate Travel Management (North) Ltd,98666720,64.40,T&S UK - Public Transport
BEIS,UKRI - BBSRC,03/01/2020,T&S UK - Public Transport,Science Group,Corporate Travel Management (North) Ltd,98666720,84.50,T&S UK - Public Transport
BEIS,UKRI - BBSRC,03/01/2020,T&S UK - Public Transport,Science Group,Corporate Travel Management (North) Ltd,98666720,0.25,T&S UK - Public Transport
BEIS,UKRI - BBSRC,03/01/2020,T&S UK - Public Transport,Science Group,Corporate Travel Management (North) Ltd,98666720,22.10,T&S UK - Public Transport
BEIS,UKRI - BBSRC,03/01/2020,T&S UK - Public Transport,Science Group,Corporate Travel Management (North) Ltd,98666720,0.25,T&S UK - Public Transport
BEIS,UKRI - BBSRC,03/01/2020,T&S UK - Public Transport,Science Group,Corporate Travel Management (North) Ltd,98666720,48.40,T&S UK - Public Transport
BEIS,UKRI - BBSRC,03/01/2020,T&S UK - Public Transport,Science Group,Corporate Travel Management (North) Ltd,98666720,0.25,T&S UK - Public Transport
BEIS,UKRI - BBSRC,03/01/2020,T&S UK - Public Transport,Science Group,Corporate Travel Management (North) Ltd,98666720,114.30,T&S UK - Public Transport
BEIS,UKRI - BBSRC,03/01/2020,T&S UK - Public Transport,Science Group,Corporate Travel Management (North) Ltd,98666720,0.25,T&S UK - Public Transport
BEIS,UKRI - BBSRC,03/01/2020,T&S UK - Public Transport,Science Group,Corporate Travel Management (North) Ltd,98666720,90.60,T&S UK - Public Transport
BEIS,UKRI - BBSRC,03/01/2020,T&S UK - Public Transport,Science Group,Corporate Travel Management (North) Ltd,98666720,0.25,T&S UK - Public Transport
BEIS,UKRI - BBSRC,03/01/2020,T&S UK - Public Transport,Science Group,Corporate Travel Management (North) Ltd,98666720,53.50,T&S UK - Public Transport
BEIS,UKRI - BBSRC,03/01/2020,T&S UK - Public Transport,Science Group,Corporate Travel Management (North) Ltd,98666720,0.25,T&S UK - Public Transport
BEIS,UKRI - BBSRC,03/01/2020,T&S UK - Public Transport,Science Group,Corporate Travel Management (North) Ltd,98666720,71.20,T&S UK - Public Transport
BEIS,UKRI - BBSRC,03/01/2020,T&S UK - Public Transport,Science Group,Corporate Travel Management (North) Ltd,98666720,0.25,T&S UK - Public Transport
BEIS,UKRI - BBSRC,03/01/2020,T&S UK - Public Transport,Science Group,Corporate Travel Management (North) Ltd,98666720,96.10,T&S UK - Public Transport
BEIS,UKRI - BBSRC,03/01/2020,T&S UK - Public Transport,Science Group,Corporate Travel Management (North) Ltd,98666720,0.25,T&S UK - Public Transport
BEIS,UKRI - BBSRC,03/01/2020,T&S UK - Public Transport,Science Group,Corporate Travel Management (North) Ltd,98666720,69.90,T&S UK - Public Transport
BEIS,UKRI - BBSRC,03/01/2020,T&S UK - Public Transport,Science Group,Corporate Travel Management (North) Ltd,98666720,0.25,T&S UK - Public Transport
BEIS,UKRI - BBSRC,03/01/2020,T&S UK - Public Transport,Science Group,Corporate Travel Management (North) Ltd,98666720,15.00,T&S UK - Public Transport
BEIS,UKRI - BBSRC,03/01/2020,T&S UK - Public Transport,Science Group,Corporate Travel Management (North) Ltd,98666720,0.25,T&S UK - Public Transport
BEIS,UKRI - BBSRC,03/01/2020,T&S UK - Public Transport,Science Group,Corporate Travel Management (North) Ltd,98666720,142.30,T&S UK - Public Transport
BEIS,UKRI - BBSRC,03/01/2020,T&S UK - Public Transport,Science Group,Corporate Travel Management (North) Ltd,98666720,10.00,T&S UK - Public Transport
BEIS,UKRI - BBSRC,03/01/2020,T&S UK - Public Transport,Science Group,Corporate Travel Management (North) Ltd,98666720,-68.30,T&S UK - Public Transport
BEIS,UKRI - BBSRC,03/01/2020,T&S UK - Public Transport,Science Group,Corporate Travel Management (North) Ltd,98666720,10.00,T&S UK - Public Transport
BEIS,UKRI - BBSRC,03/01/2020,T&S UK - Public Transport,Science Group,Corporate Travel Management (North) Ltd,98666720,-66.80,T&S UK - Public Transport
BEIS,UKRI - BBSRC,03/01/2020,T&S UK - Public Transport,Science Group,Corporate Travel Management (North) Ltd,98666720,5.00,T&S UK - Public Transport
BEIS,UKRI - BBSRC,03/01/2020,T&S UK - Public Transport,Science Group,Corporate Travel Management (North) Ltd,98666720,-53.70,T&S UK - Public Transport
BEIS,UKRI - BBSRC,03/01/2020,T&S UK - Public Transport,Science Group,Corporate Travel Management (North) Ltd,98666720,5.00,T&S UK - Public Transport
BEIS,UKRI - BBSRC,03/01/2020,T&S UK - Public Transport,Science Group,Corporate Travel Management (North) Ltd,98666720,-33.10,T&S UK - Public Transport
BEIS,UKRI - BBSRC,03/01/2020,T&S UK - Public Transport,Science Group,Corporate Travel Management (North) Ltd,98666720,5.00,T&S UK - Public Transport
BEIS,UKRI - BBSRC,03/01/2020,T&S UK - Public Transport,Science Group,Corporate Travel Management (North) Ltd,98666720,-116.55,T&S UK - Public Transport
BEIS,UKRI - BBSRC,03/01/2020,T&S UK - Vehicle Hire,Innovation and Skills Group,Corporate Travel Management (North) Ltd,98666720,20.76,T&S UK - Vehicle Hire
